Workbook

Sheet DCF VALUE AS ON COD
B2: M/s VITP (DATA CENTRE)
B4: Enterprise Value/Business Value as on Valuation Date
B6: Particular (INR Crore) | H6: ='P&L'!K2 -> 2029-03-31 | I6: ='P&L'!L2 -> 2030-03-31 | J6: ='P&L'!M2 -> 2031-03-31 | K6: ='P&L'!N2 -> 2032-03-31 | L6: ='P&L'!O2 -> 2033-03-31 | M6: ='P&L'!P2 -> 2034-03-31 | N6: ='P&L'!Q2 -> 2035-03-31 | O6: ='P&L'!R2 -> 2036-03-31 | P6: ='P&L'!S2 -> 2037-03-31 | Q6: ='P&L'!T2 -> 2038-03-31 | R6: ='P&L'!U2 -> 2039-03-31 | S6: ='P&L'!V2 -> 2040-03-31 | T6: ='P&L'!W2 -> 2041-03-31 | U6: ='P&L'!X2 -> 2042-03-31 | V6: ='P&L'!Y2 -> 2043-03-31
... 6 more rows

Sheet DCF VALUE AS ON VALUATION DATE
B2: M/s VITP (DATA CENTRE)
B4: Enterprise Value/Business Value as on Valuation Date
B6: Particular (INR Crore) | C6: ='P&L'!F2 -> 2024-03-31 | D6: ='P&L'!G2 -> 2025-03-31 | E6: ='P&L'!H2 -> 2026-03-31 | F6: ='P&L'!I2 -> 2027-03-31 | G6: ='P&L'!J2 -> 2028-03-31 | H6: ='P&L'!K2 -> 2029-03-31 | I6: ='P&L'!L2 -> 2030-03-31 | J6: ='P&L'!M2 -> 2031-03-31 | K6: ='P&L'!N2 -> 2032-03-31 | L6: ='P&L'!O2 -> 2033-03-31 | M6: ='P&L'!P2 -> 2034-03-31 | N6: ='P&L'!Q2 -> 2035-03-31 | O6: ='P&L'!R2 -> 2036-03-31 | P6: ='P&L'!S2 -> 2037-03-31 | Q6: ='P&L'!T2 -> 2038-03-31 | R6: ='P&L'!U2 -> 2039-03-31 | S6: ='P&L'!V2 -> 2040-03-31 | T6: ='P&L'!W2 -> 2041-03-31 | U6: ='P&L'!X2 -> 2042-03-31 | V6: ='P&L'!Y2 -> 2043-03-31
... 6 more rows

Sheet Legend1
B2: Sheet Colour
C4: Summary sheets
C5: Assumption sheets
C6: Working sheets
C7: Financials/Output sheets
B10: Data Colour
B12: BLUE | C12: Data in Blue is manually fed
B13: BLACK | C13: Data in black is formula linked

Sheet Legend
B2: Sheet Colour
C4: Summary sheets
C5: Assumption sheets
C6: Working sheets
C7: Financials/Output sheets
B10: Data Colour
B12: BLUE | C12: Data in Blue is manually fed
B13: BLACK | C13: Data in black is formula linked

Sheet Summary2
C2: Project Summary
J3: Options
C4: Project Cost (Rs Crore) | J4: Increase in Project Cost | L4: 0 | T4: 0 | U4: 0 | V4: 0 | X4: 0
C5: Project Hard Cost | D5: ='[4]Capex Debt1'!E20 -> 1394.176315 | F5: Important dates | T5: 0.05 | U5: 0.05 | V5: 0.05 | X5: 0.01
C6: Contingency | D6: ='[4]Capex Debt1'!E21 -> 27.82352631 | F6: Zero Date | G6: =[4]Timelines1!C4 -> 2024-01-01 | J6: Decrease in Revenue | L6: 0 | T6: 0.1 | U6: 0.15 | V6: 0.1 | X6: 0.015
C7: Soft Costs | F7: COD Date | G7: =[4]Timelines1!C28 -> 2029-01-01 | T7: 0.15 | U7: 0.1 | V7: 0.15 | X7: 0.02
... 7 more rows

Sheet Summary
C2: Project Summary
J3: Options
C4: Project Cost (Rs Crore) | J4: Increase in Project Cost | L4: 0 | T4: 0 | U4: 0 | V4: 0
C5: Project Hard Cost | D5: ='Capex Debt'!E20 -> 1394.176315 | F5: Important dates | T5: 0.05 | U5: 0.05 | V5: 0.05
C6: Contingency | D6: ='Capex Debt'!E21 -> 27.82352631 | F6: Zero Date | G6: =Timelines!C4 -> 2024-01-01 | J6: Decrease in Revenue | L6: 0 | T6: 0.1 | U6: 0.1 | V6: 0.1
C7: Soft Costs | F7: COD Date | G7: =Timelines!C28 -> 2029-01-01 | T7: 0.15 | U7: 0.15 | V7: 0.15
... 7 more rows

Sheet Timelines1
B2: Project Schedule
B4: Zero Date | C4: 2024-01-01
B5: Qtr Ending | C5: =EOMONTH(DATE(YEAR(C4),CEILING(MONTH(C4),3),1),0) -> 2024-03-31
B6: Previous Qtr Ending | C6: =EOMONTH(DATE(YEAR(C4),CEILING(MONTH(C4)-3,3),1),0) -> 2023-12-31
B7: Construction Period, Months | C7: 60
... 7 more rows

Sheet Timelines
B2: Project Schedule
B4: Zero Date | C4: 2024-01-01
B5: Qtr Ending | C5: =EOMONTH(DATE(YEAR(C4),CEILING(MONTH(C4),3),1),0) -> 2024-03-31
B6: Previous Qtr Ending | C6: =EOMONTH(DATE(YEAR(C4),CEILING(MONTH(C4)-3,3),1),0) -> 2023-12-31
B7: Construction Period, Months | C7: 60
... 7 more rows

Sheet Assumptions1
C2: Project Core Cost
B4: Sr. No. | C4: Particulars | D4: Cost (in Rs. Crore)
B5: 1 | C5: Land | D5: =3 -> 3
B6: =B5+1 -> 2 | C6: Approval Costs | D6: 36.4097825
B7: =B6+1 -> 3 | C7: Construction cost (C&S) | D7: 380.0535346
... 7 more rows

Sheet Assumptions
C2: Project Core Cost
B4: Sr. No. | C4: Particulars | D4: Cost (in Rs. Crore)
B5: 1 | C5: Land | D5: =3 -> 3
B6: =B5+1 -> 2 | C6: Approval Costs | D6: 36.4097825
B7: =B6+1 -> 3 | C7: Construction cost (C&S) | D7: 380.0535346
... 7 more rows

Sheet Rev Assumptions1
B3: Particulars | C3: UOM | D3: Value | E3: Hyperscale | F3: 0.4
B4: DC Size | E4: Enterprise | F4: 0.6
B5: Total IT Power | C5: MW | D5: 25
B6: PUE | D6: 1.62
B7: Total Power (IT+Cooling+Auxiliary) | C7: MW | D7: =D5*D6 -> 40.5 | I7: 0.9
... 8 more rows

Sheet Rev Assumptions
B3: Particulars | C3: UOM | D3: Value | E3: Hyperscale | F3: 0.4 | H3: 935.16 | I3: =H3/D7 -> 23.09037037
B4: DC Size | E4: Enterprise | F4: 0.6
B5: Total IT Power | C5: MW | D5: 25
B6: PUE | D6: 1.62
B7: Total Power (IT+Cooling+Auxiliary) | C7: MW | D7: =D5*D6 -> 40.5
... 6 more rows

Sheet Revenue1
D1: =D32 -> 2024-03-31 | E1: =E32 -> 2025-03-31 | F1: 2026-03-31 | G1: 2027-03-31 | H1: 2028-03-31 | I1: 2029-03-31 | J1: 2030-03-31 | K1: 2031-03-31 | L1: 2032-03-31 | M1: 2033-03-31 | N1: 2034-03-31 | O1: 2035-03-31 | P1: 2036-03-31 | Q1: 2037-03-31 | R1: 2038-03-31 | S1: 2039-03-31 | T1: 2040-03-31 | U1: 2041-03-31 | V1: 2042-03-31 | W1: 2043-03-31 | X1: 2044-03-31 | Y1: 2045-03-31
B2: Revenue Quarterly
B3: (in Rs. Crore)
B4: Qtr Ending | D4: ='[4]Capex Debt1'!F4 -> 2023-12-31 | E4: =EOMONTH(D4,3) -> 2024-03-31 | F4: 2024-06-30 | G4: 2024-09-30 | H4: 2024-12-31 | I4: 2025-03-31 | J4: 2025-06-30 | K4: 2025-09-30 | L4: 2025-12-31 | M4: 2026-03-31 | N4: 2026-06-30 | O4: 2026-09-30 | P4: 2026-12-31 | Q4: 2027-03-31 | R4: 2027-06-30 | S4: 2027-09-30 | T4: 2027-12-31 | U4: 2028-03-31 | V4: 2028-06-30 | W4: 2028-09-30 | X4: 2028-12-31 | Y4: 2029-03-31 | Z4: 2029-06-30 | AA4: 2029-09-30 | AB4: 2029-12-31 | AC4: 2030-03-31 | AD4: 2030-06-30 | AE4: 2030-09-30 | AF4: 2030-12-31 | AG4: 2031-03-31 | AH4: 2031-06-30 | AI4: 2031-09-30 | AJ4: 2031-12-31 | AK4: 2032-03-31 | AL4: 2032-06-30 | AM4: 2032-09-30 | AN4: 2032-12-31 | AO4: 2033-03-31 | AP4: 2033-06-30 | AQ4: 2033-09-30 | AR4: 2033-12-31 | AS4: 2034-03-31 | AT4: 2034-06-30 | AU4: 2034-09-30 | AV4: 2034-12-31 | AW4: 2035-03-31 | AX4: 2035-06-30 | AY4: 2035-09-30 | AZ4: 2035-12-31 | BA4: 2036-03-31 | BB4: 2036-06-30 | BC4: 2036-09-30 | BD4: 2036-12-31 | BE4: 2037-03-31 | BF4: 2037-06-30 | BG4: 2037-09-30 | BH4: 2037-12-31 | BI4: 2038-03-31 | BJ4: 2038-06-30 | BK4: 2038-09-30 | BL4: 2038-12-31 | BM4: 2039-03-31 | BN4: 2039-06-30 | BO4: 2039-09-30 | BP4: 2039-12-31 | BQ4: =EOMONTH(BP4,3) -> 2040-03-31 | BR4: 2040-06-30 | BS4: 2040-09-30 | BT4: 2040-12-31 | BU4: 2041-03-31 | BV4: 2041-06-30 | BW4: 2041-09-30 | BX4: 2041-12-31 | BY4: 2042-03-31 | BZ4: 2042-06-30 | CA4: 2042-09-30 | CB4: 2042-12-31 | CC4: 2043-03-31 | CD4: 2043-06-30 | CE4: 2043-09-30 | CF4: 2043-12-31 | CG4: 2044-03-31 | CH4: 2044-06-30 | CI4: 2044-09-30 | CJ4: 2044-12-31 | CK4: 2045-03-31
B5: FYE | D5: =DATE(IF(MONTH(D4)<4,YEAR(D4),YEAR(D4)+1),3,31) -> 2024-03-31 | E5: 2024-03-31 | F5: 2025-03-31 | G5: 2025-03-31 | H5: 2025-03-31 | I5: 2025-03-31 | J5: 2026-03-31 | K5: 2026-03-31 | L5: 2026-03-31 | M5: 2026-03-31 | N5: 2027-03-31 | O5: 2027-03-31 | P5: 2027-03-31 | Q5: 2027-03-31 | R5: 2028-03-31 | S5: 2028-03-31 | T5: 2028-03-31 | U5: 2028-03-31 | V5: 2029-03-31 | W5: 2029-03-31 | X5: 2029-03-31 | Y5: 2029-03-31 | Z5: 2030-03-31 | AA5: 2030-03-31 | AB5: 2030-03-31 | AC5: 2030-03-31 | AD5: 2031-03-31 | AE5: 2031-03-31 | AF5: 2031-03-31 | AG5: 2031-03-31 | AH5: 2032-03-31 | AI5: 2032-03-31 | AJ5: 2032-03-31 | AK5: 2032-03-31 | AL5: 2033-03-31 | AM5: 2033-03-31 | AN5: 2033-03-31 | AO5: 2033-03-31 | AP5: 2034-03-31 | AQ5: 2034-03-31 | AR5: 2034-03-31 | AS5: 2034-03-31 | AT5: 2035-03-31 | AU5: 2035-03-31 | AV5: 2035-03-31 | AW5: 2035-03-31 | AX5: 2036-03-31 | AY5: 2036-03-31 | AZ5: 2036-03-31 | BA5: 2036-03-31 | BB5: 2037-03-31 | BC5: 2037-03-31 | BD5: 2037-03-31 | BE5: 2037-03-31 | BF5: 2038-03-31 | BG5: 2038-03-31 | BH5: 2038-03-31 | BI5: 2038-03-31 | BJ5: 2039-03-31 | BK5: 2039-03-31 | BL5: 2039-03-31 | BM5: 2039-03-31 | BN5: 2040-03-31 | BO5: 2040-03-31 | BP5: =DATE(IF(MONTH(BP4)<4,YEAR(BP4),YEAR(BP4)+1),3,31) -> 2040-03-31 | BQ5: 2040-03-31 | BR5: 2041-03-31 | BS5: 2041-03-31 | BT5: 2041-03-31 | BU5: 2041-03-31 | BV5: 2042-03-31 | BW5: 2042-03-31 | BX5: 2042-03-31 | BY5: 2042-03-31 | BZ5: 2043-03-31 | CA5: 2043-03-31 | CB5: 2043-03-31 | CC5: 2043-03-31 | CD5: 2044-03-31 | CE5: 2044-03-31 | CF5: 2044-03-31 | CG5: 2044-03-31 | CH5: 2045-03-31 | CI5: 2045-03-31 | CJ5: 2045-03-31 | CK5: 2045-03-31
B6: New Lease | D6: =(SUMIF('[4]2c. Lease Schedule (INR)1'!$K$458:$JE$458,D4,'[4]2c. Lease Schedule (INR)1'!$K$459:$JE$459))/10^7 -> 0 | E6: =(SUMIF('[4]2c. Lease Schedule (INR)1'!$K$458:$JE$458,E4,'[4]2c. Lease Schedule (INR)1'!$K$459:$JE$459))/10^7 -> 0 | F6: =(SUMIF('[4]2c. Lease Schedule (INR)1'!$K$458:$JE$458,F4,'[4]2c. Lease Schedule (INR)1'!$K$459:$JE$459))/10^7 -> 0 | G6: =(SUMIF('[4]2c. Lease Schedule (INR)1'!$K$458:$JE$458,G4,'[4]2c. Lease Schedule (INR)1'!$K$459:$JE$459))/10^7 -> 0 | H6: =(SUMIF('[4]2c. Lease Schedule (INR)1'!$K$458:$JE$458,H4,'[4]2c. Lease Schedule (INR)1'!$K$459:$JE$459))/10^7 -> 0 | I6: =(SUMIF('[4]2c. Lease Schedule (INR)1'!$K$458:$JE$458,I4,'[4]2c. Lease Schedule (INR)1'!$K$459:$JE$459))/10^7 -> 0 | J6: =(SUMIF('[4]2c. Lease Schedule (INR)1'!$K$458:$JE$458,J4,'[4]2c. Lease Schedule (INR)1'!$K$459:$JE$459))/10^7 -> 0 | K6: =(SUMIF('[4]2c. Lease Schedule (INR)1'!$K$458:$JE$458,K4,'[4]2c. Lease Schedule (INR)1'!$K$459:$JE$459))/10^7 -> 0 | L6: =(SUMIF('[4]2c. Lease Schedule (INR)1'!$K$458:$JE$458,L4,'[4]2c. Lease Schedule (INR)1'!$K$459:$JE$459))/10^7 -> 0 | M6: =(SUMIF('[4]2c. Lease Schedule (INR)1'!$K$458:$JE$458,M4,'[4]2c. Lease Schedule (INR)1'!$K$459:$JE$459))/10^7 -> 0 | N6: =(SUMIF('[4]2c. Lease Schedule (INR)1'!$K$458:$JE$458,N4,'[4]2c. Lease Schedule (INR)1'!$K$459:$JE$459))/10^7 -> 0 | O6: =(SUMIF('[4]2c. Lease Schedule (INR)1'!$K$458:$JE$458,O4,'[4]2c. Lease Schedule (INR)1'!$K$459:$JE$459))/10^7 -> 0 | P6: =(SUMIF('[4]2c. Lease Schedule (INR)1'!$K$458:$JE$458,P4,'[4]2c. Lease Schedule (INR)1'!$K$459:$JE$459))/10^7 -> 0 | Q6: =(SUMIF('[4]2c. Lease Schedule (INR)1'!$K$458:$JE$458,Q4,'[4]2c. Lease Schedule (INR)1'!$K$459:$JE$459))/10^7 -> 0 | R6: =(SUMIF('[4]2c. Lease Schedule (INR)1'!$K$458:$JE$458,R4,'[4]2c. Lease Schedule (INR)1'!$K$459:$JE$459))/10^7 -> 3.590781226 | S6: =(SUMIF('[4]2c. Lease Schedule (INR)1'!$K$458:$JE$458,S4,'[4]2c. Lease Schedule (INR)1'!$K$459:$JE$459))/10^7 -> 8.976953065 | T6: =(SUMIF('[4]2c. Lease Schedule (INR)1'!$K$458:$JE$458,T4,'[4]2c. Lease Schedule (INR)1'!$K$459:$JE$459))/10^7 -> 14.3631249 | U6: =(SUMIF('[4]2c. Lease Schedule (INR)1'!$K$458:$JE$458,U4,'[4]2c. Lease Schedule (INR)1'!$K$459:$JE$459))/10^7 -> 19.89292799 | V6: =(SUMIF('[4]2c. Lease Schedule (INR)1'!$K$458:$JE$458,V4,'[4]2c. Lease Schedule (INR)1'!$K$459:$JE$459))/10^7 -> 26.39196366 | W6: =(SUMIF('[4]2c. Lease Schedule (INR)1'!$K$458:$JE$458,W4,'[4]2c. Lease Schedule (INR)1'!$K$459:$JE$459))/10^7 -> 33.3397078 | X6: =(SUMIF('[4]2c. Lease Schedule (INR)1'!$K$458:$JE$458,X4,'[4]2c. Lease Schedule (INR)1'!$K$459:$JE$459))/10^7 -> 40.28745194 | Y6: =(SUMIF('[4]2c. Lease Schedule (INR)1'!$K$458:$JE$458,Y4,'[4]2c. Lease Schedule (INR)1'!$K$459:$JE$459))/10^7 -> 47.66132438 | Z6: =(SUMIF('[4]2c. Lease Schedule (INR)1'!$K$458:$JE$458,Z4,'[4]2c. Lease Schedule (INR)1'!$K$459:$JE$459))/10^7 -> 55.24826098 | AA6: =(SUMIF('[4]2c. Lease Schedule (INR)1'!$K$458:$JE$458,AA4,'[4]2c. Lease Schedule (INR)1'!$K$459:$JE$459))/10^7 -> 62.83519758 | AB6: =(SUMIF('[4]2c. Lease Schedule (INR)1'!$K$458:$JE$458,AB4,'[4]2c. Lease Schedule (INR)1'!$K$459:$JE$459))/10^7 -> 65.36417645 | AC6: =(SUMIF('[4]2c. Lease Schedule (INR)1'!$K$458:$JE$458,AC4,'[4]2c. Lease Schedule (INR)1'!$K$459:$JE$459))/10^7 -> 65.36417645 | AD6: =(SUMIF('[4]2c. Lease Schedule (INR)1'!$K$458:$JE$458,AD4,'[4]2c. Lease Schedule (INR)1'!$K$459:$JE$459))/10^7 -> 63.11632264 | AE6: =(SUMIF('[4]2c. Lease Schedule (INR)1'!$K$458:$JE$458,AE4,'[4]2c. Lease Schedule (INR)1'!$K$459:$JE$459))/10^7 -> 59.74454193 | AF6: =(SUMIF('[4]2c. Lease Schedule (INR)1'!$K$458:$JE$458,AF4,'[4]2c. Lease Schedule (INR)1'!$K$459:$JE$459))/10^7 -> 56.37276122 | AG6: =(SUMIF('[4]2c. Lease Schedule (INR)1'!$K$458:$JE$458,AG4,'[4]2c. Lease Schedule (INR)1'!$K$459:$JE$459))/10^7 -> 52.91106636 | AH6: =(SUMIF('[4]2c. Lease Schedule (INR)1'!$K$458:$JE$458,AH4,'[4]2c. Lease Schedule (INR)1'!$K$459:$JE$459))/10^7 -> 48.84262522 | AI6: =(SUMIF('[4]2c. Lease Schedule (INR)1'!$K$458:$JE$458,AI4,'[4]2c. Lease Schedule (INR)1'!$K$459:$JE$459))/10^7 -> 44.49328948 | AJ6: =(SUMIF('[4]2c. Lease Schedule (INR)1'!$K$458:$JE$458,AJ4,'[4]2c. Lease Schedule (INR)1'!$K$459:$JE$459))/10^7 -> 40.14395374 | AK6: =(SUMIF('[4]2c. Lease Schedule (INR)1'!$K$458:$JE$458,AK4,'[4]2c. Lease Schedule (INR)1'!$K$459:$JE$459))/10^7 -> 35.52785875 | AL6: =(SUMIF('[4]2c. Lease Schedule (INR)1'!$K$458:$JE$458,AL4,'[4]2c. Lease Schedule (INR)1'!$K$459:$JE$459))/10^7 -> 29.4354567 | AM6: =(SUMIF('[4]2c. Lease Schedule (INR)1'!$K$458:$JE$458,AM4,'[4]2c. Lease Schedule (INR)1'!$K$459:$JE$459))/10^7 -> 22.67159095 | AN6: =(SUMIF('[4]2c. Lease Schedule (INR)1'!$K$458:$JE$458,AN4,'[4]2c. Lease Schedule (INR)1'!$K$459:$JE$459))/10^7 -> 19.07404161 | AO6: =(SUMIF('[4]2c. Lease Schedule (INR)1'!$K$458:$JE$458,AO4,'[4]2c. Lease Schedule (INR)1'!$K$459:$JE$459))/10^7 -> 17.00593338 | AP6: =(SUMIF('[4]2c. Lease Schedule (INR)1'!$K$458:$JE$458,AP4,'[4]2c. Lease Schedule (INR)1'!$K$459:$JE$459))/10^7 -> 14.57533886 | AQ6: =(SUMIF('[4]2c. Lease Schedule (INR)1'!$K$458:$JE$458,AQ4,'[4]2c. Lease Schedule (INR)1'!$K$459:$JE$459))/10^7 -> 11.97693046 | AR6: =(SUMIF('[4]2c. Lease Schedule (INR)1'!$K$458:$JE$458,AR4,'[4]2c. Lease Schedule (INR)1'!$K$459:$JE$459))/10^7 -> 9.378522056 | AS6: =(SUMIF('[4]2c. Lease Schedule (INR)1'!$K$458:$JE$458,AS4,'[4]2c. Lease Schedule (INR)1'!$K$459:$JE$459))/10^7 -> 6.620744606 | AT6: =(SUMIF('[4]2c. Lease Schedule (INR)1'!$K$458:$JE$458,AT4,'[4]2c. Lease Schedule (INR)1'!$K$459:$JE$459))/10^7 -> 3.783282632 | AU6: =(SUMIF('[4]2c. Lease Schedule (INR)1'!$K$458:$JE$458,AU4,'[4]2c. Lease Schedule (INR)1'!$K$459:$JE$459))/10^7 -> 0.945820658 | AV6: =(SUMIF('[4]2c. Lease Schedule (INR)1'!$K$458:$JE$458,AV4,'[4]2c. Lease Schedule (INR)1'!$K$459:$JE$459))/10^7 -> 0 | AW6: =(SUMIF('[4]2c. Lease Schedule (INR)1'!$K$458:$JE$458,AW4,'[4]2c. Lease Schedule (INR)1'!$K$459:$JE$459))/10^7 -> 0 | AX6: =(SUMIF('[4]2c. Lease Schedule (INR)1'!$K$458:$JE$458,AX4,'[4]2c. Lease Schedule (INR)1'!$K$459:$JE$459))/10^7 -> 0 | AY6: =(SUMIF('[4]2c. Lease Schedule (INR)1'!$K$458:$JE$458,AY4,'[4]2c. Lease Schedule (INR)1'!$K$459:$JE$459))/10^7 -> 0 | AZ6: =(SUMIF('[4]2c. Lease Schedule (INR)1'!$K$458:$JE$458,AZ4,'[4]2c. Lease Schedule (INR)1'!$K$459:$JE$459))/10^7 -> 0 | BA6: =(SUMIF('[4]2c. Lease Schedule (INR)1'!$K$458:$JE$458,BA4,'[4]2c. Lease Schedule (INR)1'!$K$459:$JE$459))/10^7 -> 0 | BB6: =(SUMIF('[4]2c. Lease Schedule (INR)1'!$K$458:$JE$458,BB4,'[4]2c. Lease Schedule (INR)1'!$K$459:$JE$459))/10^7 -> 0 | BC6: =(SUMIF('[4]2c. Lease Schedule (INR)1'!$K$458:$JE$458,BC4,'[4]2c. Lease Schedule (INR)1'!$K$459:$JE$459))/10^7 -> 0 | BD6: =(SUMIF('[4]2c. Lease Schedule (INR)1'!$K$458:$JE$458,BD4,'[4]2c. Lease Schedule (INR)1'!$K$459:$JE$459))/10^7 -> 0 | BE6: =(SUMIF('[4]2c. Lease Schedule (INR)1'!$K$458:$JE$458,BE4,'[4]2c. Lease Schedule (INR)1'!$K$459:$JE$459))/10^7 -> 0 | BF6: =(SUMIF('[4]2c. Lease Schedule (INR)1'!$K$458:$JE$458,BF4,'[4]2c. Lease Schedule (INR)1'!$K$459:$JE$459))/10^7 -> 0 | BG6: =(SUMIF('[4]2c. Lease Schedule (INR)1'!$K$458:$JE$458,BG4,'[4]2c. Lease Schedule (INR)1'!$K$459:$JE$459))/10^7 -> 0 | BH6: =(SUMIF('[4]2c. Lease Schedule (INR)1'!$K$458:$JE$458,BH4,'[4]2c. Lease Schedule (INR)1'!$K$459:$JE$459))/10^7 -> 0 | BI6: =(SUMIF('[4]2c. Lease Schedule (INR)1'!$K$458:$JE$458,BI4,'[4]2c. Lease Schedule (INR)1'!$K$459:$JE$459))/10^7 -> 0 | BJ6: =(SUMIF('[4]2c. Lease Schedule (INR)1'!$K$458:$JE$458,BJ4,'[4]2c. Lease Schedule (INR)1'!$K$459:$JE$459))/10^7 -> 0 | BK6: =(SUMIF('[4]2c. Lease Schedule (INR)1'!$K$458:$JE$458,BK4,'[4]2c. Lease Schedule (INR)1'!$K$459:$JE$459))/10^7 -> 0 | BL6: =(SUMIF('[4]2c. Lease Schedule (INR)1'!$K$458:$JE$458,BL4,'[4]2c. Lease Schedule (INR)1'!$K$459:$JE$459))/10^7 -> 0 | BM6: =(SUMIF('[4]2c. Lease Schedule (INR)1'!$K$458:$JE$458,BM4,'[4]2c. Lease Schedule (INR)1'!$K$459:$JE$459))/10^7 -> 0 | BN6: =(SUMIF('[4]2c. Lease Schedule (INR)1'!$K$458:$JE$458,BN4,'[4]2c. Lease Schedule (INR)1'!$K$459:$JE$459))/10^7 -> 0 | BO6: =(SUMIF('[4]2c. Lease Schedule (INR)1'!$K$458:$JE$458,BO4,'[4]2c. Lease Schedule (INR)1'!$K$459:$JE$459))/10^7 -> 0 | BP6: =(SUMIF('[4]2c. Lease Schedule (INR)1'!$K$458:$JE$458,BP4,'[4]2c. Lease Schedule (INR)1'!$K$459:$JE$459))/10^7 -> 0 | BQ6: =(SUMIF('[4]2c. Lease Schedule (INR)1'!$K$458:$JE$458,BQ4,'[4]2c. Lease Schedule (INR)1'!$K$459:$JE$459))/10^7 -> 0 | BR6: =(SUMIF('[4]2c. Lease Schedule (INR)1'!$K$458:$JE$458,BR4,'[4]2c. Lease Schedule (INR)1'!$K$459:$JE$459))/10^7 -> 0 | BS6: =(SUMIF('[4]2c. Lease Schedule (INR)1'!$K$458:$JE$458,BS4,'[4]2c. Lease Schedule (INR)1'!$K$459:$JE$459))/10^7 -> 0 | BT6: =(SUMIF('[4]2c. Lease Schedule (INR)1'!$K$458:$JE$458,BT4,'[4]2c. Lease Schedule (INR)1'!$K$459:$JE$459))/10^7 -> 0 | BU6: =(SUMIF('[4]2c. Lease Schedule (INR)1'!$K$458:$JE$458,BU4,'[4]2c. Lease Schedule (INR)1'!$K$459:$JE$459))/10^7 -> 0 | BV6: =(SUMIF('[4]2c. Lease Schedule (INR)1'!$K$458:$JE$458,BV4,'[4]2c. Lease Schedule (INR)1'!$K$459:$JE$459))/10^7 -> 0 | BW6: =(SUMIF('[4]2c. Lease Schedule (INR)1'!$K$458:$JE$458,BW4,'[4]2c. Lease Schedule (INR)1'!$K$459:$JE$459))/10^7 -> 0 | BX6: =(SUMIF('[4]2c. Lease Schedule (INR)1'!$K$458:$JE$458,BX4,'[4]2c. Lease Schedule (INR)1'!$K$459:$JE$459))/10^7 -> 0 | BY6: =(SUMIF('[4]2c. Lease Schedule (INR)1'!$K$458:$JE$458,BY4,'[4]2c. Lease Schedule (INR)1'!$K$459:$JE$459))/10^7 -> 0 | BZ6: =(SUMIF('[4]2c. Lease Schedule (INR)1'!$K$458:$JE$458,BZ4,'[4]2c. Lease Schedule (INR)1'!$K$459:$JE$459))/10^7 -> 0 | CA6: =(SUMIF('[4]2c. Lease Schedule (INR)1'!$K$458:$JE$458,CA4,'[4]2c. Lease Schedule (INR)1'!$K$459:$JE$459))/10^7 -> 0 | CB6: =(SUMIF('[4]2c. Lease Schedule (INR)1'!$K$458:$JE$458,CB4,'[4]2c. Lease Schedule (INR)1'!$K$459:$JE$459))/10^7 -> 0 | CC6: =(SUMIF('[4]2c. Lease Schedule (INR)1'!$K$458:$JE$458,CC4,'[4]2c. Lease Schedule (INR)1'!$K$459:$JE$459))/10^7 -> 0 | CD6: =(SUMIF('[4]2c. Lease Schedule (INR)1'!$K$458:$JE$458,CD4,'[4]2c. Lease Schedule (INR)1'!$K$459:$JE$459))/10^7 -> 0 | CE6: =(SUMIF('[4]2c. Lease Schedule (INR)1'!$K$458:$JE$458,CE4,'[4]2c. Lease Schedule (INR)1'!$K$459:$JE$459))/10^7 -> 0 | CF6: =(SUMIF('[4]2c. Lease Schedule (INR)1'!$K$458:$JE$458,CF4,'[4]2c. Lease Schedule (INR)1'!$K$459:$JE$459))/10^7 -> 0 | CG6: =(SUMIF('[4]2c. Lease Schedule (INR)1'!$K$458:$JE$458,CG4,'[4]2c. Lease Schedule (INR)1'!$K$459:$JE$459))/10^7 -> 0 | CH6: =(SUMIF('[4]2c. Lease Schedule (INR)1'!$K$458:$JE$458,CH4,'[4]2c. Lease Schedule (INR)1'!$K$459:$JE$459))/10^7 -> 0 | CI6: =(SUMIF('[4]2c. Lease Schedule (INR)1'!$K$458:$JE$458,CI4,'[4]2c. Lease Schedule (INR)1'!$K$459:$JE$459))/10^7 -> 0 | CJ6: =(SUMIF('[4]2c. Lease Schedule (INR)1'!$K$458:$JE$458,CJ4,'[4]2c. Lease Schedule (INR)1'!$K$459:$JE$459))/10^7 -> 0 | CK6: =(SUMIF('[4]2c. Lease Schedule (INR)1'!$K$458:$JE$458,CK4,'[4]2c. Lease Schedule (INR)1'!$K$459:$JE$459))/10^7 -> 0
B7: Rollover 1 | D7: =(SUMIF('[4]2c. Lease Schedule (INR)1'!$K$458:$JE$458,D4,'[4]2c. Lease Schedule (INR)1'!$K$460:$JE$460))/10^7 -> 0 | E7: =(SUMIF('[4]2c. Lease Schedule (INR)1'!$K$458:$JE$458,E4,'[4]2c. Lease Schedule (INR)1'!$K$460:$JE$460))/10^7 -> 0 | F7: =(SUMIF('[4]2c. Lease Schedule (INR)1'!$K$458:$JE$458,F4,'[4]2c. Lease Schedule (INR)1'!$K$460:$JE$460))/10^7 -> 0 | G7: =(SUMIF('[4]2c. Lease Schedule (INR)1'!$K$458:$JE$458,G4,'[4]2c. Lease Schedule (INR)1'!$K$460:$JE$460))/10^7 -> 0 | H7: =(SUMIF('[4]2c. Lease Schedule (INR)1'!$K$458:$JE$458,H4,'[4]2c. Lease Schedule (INR)1'!$K$460:$JE$460))/10^7 -> 0 | I7: =(SUMIF('[4]2c. Lease Schedule (INR)1'!$K$458:$JE$458,I4,'[4]2c. Lease Schedule (INR)1'!$K$460:$JE$460))/10^7 -> 0 | J7: =(SUMIF('[4]2c. Lease Schedule (INR)1'!$K$458:$JE$458,J4,'[4]2c. Lease Schedule (INR)1'!$K$460:$JE$460))/10^7 -> 0 | K7: =(SUMIF('[4]2c. Lease Schedule (INR)1'!$K$458:$JE$458,K4,'[4]2c. Lease Schedule (INR)1'!$K$460:$JE$460))/10^7 -> 0 | L7: =(SUMIF('[4]2c. Lease Schedule (INR)1'!$K$458:$JE$458,L4,'[4]2c. Lease Schedule (INR)1'!$K$460:$JE$460))/10^7 -> 0 | M7: =(SUMIF('[4]2c. Lease Schedule (INR)1'!$K$458:$JE$458,M4,'[4]2c. Lease Schedule (INR)1'!$K$460:$JE$460))/10^7 -> 0 | N7: =(SUMIF('[4]2c. Lease Schedule (INR)1'!$K$458:$JE$458,N4,'[4]2c. Lease Schedule (INR)1'!$K$460:$JE$460))/10^7 -> 0 | O7: =(SUMIF('[4]2c. Lease Schedule (INR)1'!$K$458:$JE$458,O4,'[4]2c. Lease Schedule (INR)1'!$K$460:$JE$460))/10^7 -> 0 | P7: =(SUMIF('[4]2c. Lease Schedule (INR)1'!$K$458:$JE$458,P4,'[4]2c. Lease Schedule (INR)1'!$K$460:$JE$460))/10^7 -> 0 | Q7: =(SUMIF('[4]2c. Lease Schedule (INR)1'!$K$458:$JE$458,Q4,'[4]2c. Lease Schedule (INR)1'!$K$460:$JE$460))/10^7 -> 0 | R7: =(SUMIF('[4]2c. Lease Schedule (INR)1'!$K$458:$JE$458,R4,'[4]2c. Lease Schedule (INR)1'!$K$460:$JE$460))/10^7 -> 0 | S7: =(SUMIF('[4]2c. Lease Schedule (INR)1'!$K$458:$JE$458,S4,'[4]2c. Lease Schedule (INR)1'!$K$460:$JE$460))/10^7 -> 0 | T7: =(SUMIF('[4]2c. Lease Schedule (INR)1'!$K$458:$JE$458,T4,'[4]2c. Lease Schedule (INR)1'!$K$460:$JE$460))/10^7 -> 0 | U7: =(SUMIF('[4]2c. Lease Schedule (INR)1'!$K$458:$JE$458,U4,'[4]2c. Lease Schedule (INR)1'!$K$460:$JE$460))/10^7 -> 0 | V7: =(SUMIF('[4]2c. Lease Schedule (INR)1'!$K$458:$JE$458,V4,'[4]2c. Lease Schedule (INR)1'!$K$460:$JE$460))/10^7 -> 0 | W7: =(SUMIF('[4]2c. Lease Schedule (INR)1'!$K$458:$JE$458,W4,'[4]2c. Lease Schedule (INR)1'!$K$460:$JE$460))/10^7 -> 0 | X7: =(SUMIF('[4]2c. Lease Schedule (INR)1'!$K$458:$JE$458,X4,'[4]2c. Lease Schedule (INR)1'!$K$460:$JE$460))/10^7 -> 0 | Y7: =(SUMIF('[4]2c. Lease Schedule (INR)1'!$K$458:$JE$458,Y4,'[4]2c. Lease Schedule (INR)1'!$K$460:$JE$460))/10^7 -> 0 | Z7: =(SUMIF('[4]2c. Lease Schedule (INR)1'!$K$458:$JE$458,Z4,'[4]2c. Lease Schedule (INR)1'!$K$460:$JE$460))/10^7 -> 0 | AA7: =(SUMIF('[4]2c. Lease Schedule (INR)1'!$K$458:$JE$458,AA4,'[4]2c. Lease Schedule (INR)1'!$K$460:$JE$460))/10^7 -> 0 | AB7: =(SUMIF('[4]2c. Lease Schedule (INR)1'!$K$458:$JE$458,AB4,'[4]2c. Lease Schedule (INR)1'!$K$460:$JE$460))/10^7 -> 0 | AC7: =(SUMIF('[4]2c. Lease Schedule (INR)1'!$K$458:$JE$458,AC4,'[4]2c. Lease Schedule (INR)1'!$K$460:$JE$460))/10^7 -> 0 | AD7: =(SUMIF('[4]2c. Lease Schedule (INR)1'!$K$458:$JE$458,AD4,'[4]2c. Lease Schedule (INR)1'!$K$460:$JE$460))/10^7 -> 2.742620447 | AE7: =(SUMIF('[4]2c. Lease Schedule (INR)1'!$K$458:$JE$458,AE4,'[4]2c. Lease Schedule (INR)1'!$K$460:$JE$460))/10^7 -> 6.856551119 | AF7: =(SUMIF('[4]2c. Lease Schedule (INR)1'!$K$458:$JE$458,AF4,'[4]2c. Lease Schedule (INR)1'!$K$460:$JE$460))/10^7 -> 10.97048179 | AG7: =(SUMIF('[4]2c. Lease Schedule (INR)1'!$K$458:$JE$458,AG4,'[4]2c. Lease Schedule (INR)1'!$K$460:$JE$460))/10^7 -> 15.19411728 | AH7: =(SUMIF('[4]2c. Lease Schedule (INR)1'!$K$458:$JE$458,AH4,'[4]2c. Lease Schedule (INR)1'!$K$460:$JE$460))/10^7 -> 20.15804768 | AI7: =(SUMIF('[4]2c. Lease Schedule (INR)1'!$K$458:$JE$458,AI4,'[4]2c. Lease Schedule (INR)1'!$K$460:$JE$460))/10^7 -> 25.46469934 | AJ7: =(SUMIF('[4]2c. Lease Schedule (INR)1'!$K$458:$JE$458,AJ4,'[4]2c. Lease Schedule (INR)1'!$K$460:$JE$460))/10^7 -> 30.771351 | AK7: =(SUMIF('[4]2c. Lease Schedule (INR)1'!$K$458:$JE$458,AK4,'[4]2c. Lease Schedule (INR)1'!$K$460:$JE$460))/10^7 -> 36.40347729 | AL7: =(SUMIF('[4]2c. Lease Schedule (INR)1'!$K$458:$JE$458,AL4,'[4]2c. Lease Schedule (INR)1'!$K$460:$JE$460))/10^7 -> 43.93366681 | AM7: =(SUMIF('[4]2c. Lease Schedule (INR)1'!$K$458:$JE$458,AM4,'[4]2c. Lease Schedule (INR)1'!$K$460:$JE$460))/10^7 -> 52.33151928 | AN7: =(SUMIF('[4]2c. Lease Schedule (INR)1'!$K$458:$JE$458,AN4,'[4]2c. Lease Schedule (INR)1'!$K$460:$JE$460))/10^7 -> 56.86612935 | AO7: =(SUMIF('[4]2c. Lease Schedule (INR)1'!$K$458:$JE$458,AO4,'[4]2c. Lease Schedule (INR)1'!$K$460:$JE$460))/10^7 -> 59.53853125 | AP7: =(SUMIF('[4]2c. Lease Schedule (INR)1'!$K$458:$JE$458,AP4,'[4]2c. Lease Schedule (INR)1'!$K$460:$JE$460))/10^7 -> 59.93671618 | AQ7: =(SUMIF('[4]2c. Lease Schedule (INR)1'!$K$458:$JE$458,AQ4,'[4]2c. Lease Schedule (INR)1'!$K$460:$JE$460))/10^7 -> 59.18043936 | AR7: =(SUMIF('[4]2c. Lease Schedule (INR)1'!$K$458:$JE$458,AR4,'[4]2c. Lease Schedule (INR)1'!$K$460:$JE$460))/10^7 -> 58.42416254 | AS7: =(SUMIF('[4]2c. Lease Schedule (INR)1'!$K$458:$JE$458,AS4,'[4]2c. Lease Schedule (INR)1'!$K$460:$JE$460))/10^7 -> 57.76411701 | AT7: =(SUMIF('[4]2c. Lease Schedule (INR)1'!$K$458:$JE$458,AT4,'[4]2c. Lease Schedule (INR)1'!$K$460:$JE$460))/10^7 -> 56.46674461 | AU7: =(SUMIF('[4]2c. Lease Schedule (INR)1'!$K$458:$JE$458,AU4,'[4]2c. Lease Schedule (INR)1'!$K$460:$JE$460))/10^7 -> 54.82665096 | AV7: =(SUMIF('[4]2c. Lease Schedule (INR)1'!$K$458:$JE$458,AV4,'[4]2c. Lease Schedule (INR)1'!$K$460:$JE$460))/10^7 -> 50.74218531 | AW7: =(SUMIF('[4]2c. Lease Schedule (INR)1'!$K$458:$JE$458,AW4,'[4]2c. Lease Schedule (INR)1'!$K$460:$JE$460))/10^7 -> 45.11005902 | AX7: =(SUMIF('[4]2c. Lease Schedule (INR)1'!$K$458:$JE$458,AX4,'[4]2c. Lease Schedule (INR)1'!$K$460:$JE$460))/10^7 -> 39.31519541 | AY7: =(SUMIF('[4]2c. Lease Schedule (INR)1'!$K$458:$JE$458,AY4,'[4]2c. Lease Schedule (INR)1'!$K$460:$JE$460))/10^7 -> 33.5203318 | AZ7: =(SUMIF('[4]2c. Lease Schedule (INR)1'!$K$458:$JE$458,AZ4,'[4]2c. Lease Schedule (INR)1'!$K$460:$JE$460))/10^7 -> 31.5887106 | BA7: =(SUMIF('[4]2c. Lease Schedule (INR)1'!$K$458:$JE$458,BA4,'[4]2c. Lease Schedule (INR)1'!$K$460:$JE$460))/10^7 -> 31.5887106 | BB7: =(SUMIF('[4]2c. Lease Schedule (INR)1'!$K$458:$JE$458,BB4,'[4]2c. Lease Schedule (INR)1'!$K$460:$JE$460))/10^7 -> 31.5887106 | BC7: =(SUMIF('[4]2c. Lease Schedule (INR)1'!$K$458:$JE$458,BC4,'[4]2c. Lease Schedule (INR)1'!$K$460:$JE$460))/10^7 -> 31.5887106 | BD7: =(SUMIF('[4]2c. Lease Schedule (INR)1'!$K$458:$JE$458,BD4,'[4]2c. Lease Schedule (INR)1'!$K$460:$JE$460))/10^7 -> 31.5887106 | BE7: =(SUMIF('[4]2c. Lease Schedule (INR)1'!$K$458:$JE$458,BE4,'[4]2c. Lease Schedule (INR)1'!$K$460:$JE$460))/10^7 -> 31.5887106 | BF7: =(SUMIF('[4]2c. Lease Schedule (INR)1'!$K$458:$JE$458,BF4,'[4]2c. Lease Schedule (INR)1'!$K$460:$JE$460))/10^7 -> 29.85338469 | BG7: =(SUMIF('[4]2c. Lease Schedule (INR)1'!$K$458:$JE$458,BG4,'[4]2c. Lease Schedule (INR)1'!$K$460:$JE$460))/10^7 -> 27.25039582 | BH7: =(SUMIF('[4]2c. Lease Schedule (INR)1'!$K$458:$JE$458,BH4,'[4]2c. Lease Schedule (INR)1'!$K$460:$JE$460))/10^7 -> 24.64740696 | BI7: =(SUMIF('[4]2c. Lease Schedule (INR)1'!$K$458:$JE$458,BI4,'[4]2c. Lease Schedule (INR)1'!$K$460:$JE$460))/10^7 -> 21.97500506 | BJ7: =(SUMIF('[4]2c. Lease Schedule (INR)1'!$K$458:$JE$458,BJ4,'[4]2c. Lease Schedule (INR)1'!$K$460:$JE$460))/10^7 -> 18.83419968 | BK7: =(SUMIF('[4]2c. Lease Schedule (INR)1'!$K$458:$JE$458,BK4,'[4]2c. Lease Schedule (INR)1'!$K$460:$JE$460))/10^7 -> 15.47654583 | BL7: =(SUMIF('[4]2c. Lease Schedule (INR)1'!$K$458:$JE$458,BL4,'[4]2c. Lease Schedule (INR)1'!$K$460:$JE$460))/10^7 -> 12.11889198 | BM7: =(SUMIF('[4]2c. Lease Schedule (INR)1'!$K$458:$JE$458,BM4,'[4]2c. Lease Schedule (INR)1'!$K$460:$JE$460))/10^7 -> 8.555302019 | BN7: =(SUMIF('[4]2c. Lease Schedule (INR)1'!$K$458:$JE$458,BN4,'[4]2c. Lease Schedule (INR)1'!$K$460:$JE$460))/10^7 -> 4.888744011 | BO7: =(SUMIF('[4]2c. Lease Schedule (INR)1'!$K$458:$JE$458,BO4,'[4]2c. Lease Schedule (INR)1'!$K$460:$JE$460))/10^7 -> 1.222186003 | BP7: =(SUMIF('[4]2c. Lease Schedule (INR)1'!$K$458:$JE$458,BP4,'[4]2c. Lease Schedule (INR)1'!$K$460:$JE$460))/10^7 -> 0 | BQ7: =(SUMIF('[4]2c. Lease Schedule (INR)1'!$K$458:$JE$458,BQ4,'[4]2c. Lease Schedule (INR)1'!$K$460:$JE$460))/10^7 -> 0 | BR7: =(SUMIF('[4]2c. Lease Schedule (INR)1'!$K$458:$JE$458,BR4,'[4]2c. Lease Schedule (INR)1'!$K$460:$JE$460))/10^7 -> 0 | BS7: =(SUMIF('[4]2c. Lease Schedule (INR)1'!$K$458:$JE$458,BS4,'[4]2c. Lease Schedule (INR)1'!$K$460:$JE$460))/10^7 -> 0 | BT7: =(SUMIF('[4]2c. Lease Schedule (INR)1'!$K$458:$JE$458,BT4,'[4]2c. Lease Schedule (INR)1'!$K$460:$JE$460))/10^7 -> 0 | BU7: =(SUMIF('[4]2c. Lease Schedule (INR)1'!$K$458:$JE$458,BU4,'[4]2c. Lease Schedule (INR)1'!$K$460:$JE$460))/10^7 -> 0 | BV7: =(SUMIF('[4]2c. Lease Schedule (INR)1'!$K$458:$JE$458,BV4,'[4]2c. Lease Schedule (INR)1'!$K$460:$JE$460))/10^7 -> 0 | BW7: =(SUMIF('[4]2c. Lease Schedule (INR)1'!$K$458:$JE$458,BW4,'[4]2c. Lease Schedule (INR)1'!$K$460:$JE$460))/10^7 -> 0 | BX7: =(SUMIF('[4]2c. Lease Schedule (INR)1'!$K$458:$JE$458,BX4,'[4]2c. Lease Schedule (INR)1'!$K$460:$JE$460))/10^7 -> 0 | BY7: =(SUMIF('[4]2c. Lease Schedule (INR)1'!$K$458:$JE$458,BY4,'[4]2c. Lease Schedule (INR)1'!$K$460:$JE$460))/10^7 -> 0 | BZ7: =(SUMIF('[4]2c. Lease Schedule (INR)1'!$K$458:$JE$458,BZ4,'[4]2c. Lease Schedule (INR)1'!$K$460:$JE$460))/10^7 -> 0 | CA7: =(SUMIF('[4]2c. Lease Schedule (INR)1'!$K$458:$JE$458,CA4,'[4]2c. Lease Schedule (INR)1'!$K$460:$JE$460))/10^7 -> 0 | CB7: =(SUMIF('[4]2c. Lease Schedule (INR)1'!$K$458:$JE$458,CB4,'[4]2c. Lease Schedule (INR)1'!$K$460:$JE$460))/10^7 -> 0 | CC7: =(SUMIF('[4]2c. Lease Schedule (INR)1'!$K$458:$JE$458,CC4,'[4]2c. Lease Schedule (INR)1'!$K$460:$JE$460))/10^7 -> 0 | CD7: =(SUMIF('[4]2c. Lease Schedule (INR)1'!$K$458:$JE$458,CD4,'[4]2c. Lease Schedule (INR)1'!$K$460:$JE$460))/10^7 -> 0 | CE7: =(SUMIF('[4]2c. Lease Schedule (INR)1'!$K$458:$JE$458,CE4,'[4]2c. Lease Schedule (INR)1'!$K$460:$JE$460))/10^7 -> 0 | CF7: =(SUMIF('[4]2c. Lease Schedule (INR)1'!$K$458:$JE$458,CF4,'[4]2c. Lease Schedule (INR)1'!$K$460:$JE$460))/10^7 -> 0 | CG7: =(SUMIF('[4]2c. Lease Schedule (INR)1'!$K$458:$JE$458,CG4,'[4]2c. Lease Schedule (INR)1'!$K$460:$JE$460))/10^7 -> 0 | CH7: =(SUMIF('[4]2c. Lease Schedule (INR)1'!$K$458:$JE$458,CH4,'[4]2c. Lease Schedule (INR)1'!$K$460:$JE$460))/10^7 -> 0 | CI7: =(SUMIF('[4]2c. Lease Schedule (INR)1'!$K$458:$JE$458,CI4,'[4]2c. Lease Schedule (INR)1'!$K$460:$JE$460))/10^7 -> 0 | CJ7: =(SUMIF('[4]2c. Lease Schedule (INR)1'!$K$458:$JE$458,CJ4,'[4]2c. Lease Schedule (INR)1'!$K$460:$JE$460))/10^7 -> 0 | CK7: =(SUMIF('[4]2c. Lease Schedule (INR)1'!$K$458:$JE$458,CK4,'[4]2c. Lease Schedule (INR)1'!$K$460:$JE$460))/10^7 -> 0
... 8 more rows

Sheet Revenue
B2: Revenue Quarterly
B3: (in Rs. Crore)
B4: Qtr Ending | D4: ='Capex Debt'!F4 -> 2023-12-31 | E4: =EOMONTH(D4,3) -> 2024-03-31 | F4: 2024-06-30 | G4: 2024-09-30 | H4: 2024-12-31 | I4: 2025-03-31 | J4: 2025-06-30 | K4: 2025-09-30 | L4: 2025-12-31 | M4: 2026-03-31 | N4: 2026-06-30 | O4: 2026-09-30 | P4: 2026-12-31 | Q4: 2027-03-31 | R4: 2027-06-30 | S4: 2027-09-30 | T4: 2027-12-31 | U4: 2028-03-31 | V4: 2028-06-30 | W4: 2028-09-30 | X4: 2028-12-31 | Y4: 2029-03-31 | Z4: 2029-06-30 | AA4: 2029-09-30 | AB4: 2029-12-31 | AC4: 2030-03-31 | AD4: 2030-06-30 | AE4: 2030-09-30 | AF4: 2030-12-31 | AG4: 2031-03-31 | AH4: 2031-06-30 | AI4: 2031-09-30 | AJ4: 2031-12-31 | AK4: =EOMONTH(AJ4,3) -> 2032-03-31 | AL4: 2032-06-30 | AM4: 2032-09-30 | AN4: 2032-12-31 | AO4: 2033-03-31 | AP4: 2033-06-30 | AQ4: 2033-09-30 | AR4: 2033-12-31 | AS4: 2034-03-31 | AT4: 2034-06-30 | AU4: 2034-09-30 | AV4: 2034-12-31 | AW4: 2035-03-31 | AX4: 2035-06-30 | AY4: 2035-09-30 | AZ4: 2035-12-31 | BA4: 2036-03-31 | BB4: 2036-06-30 | BC4: 2036-09-30 | BD4: 2036-12-31 | BE4: 2037-03-31 | BF4: 2037-06-30 | BG4: 2037-09-30 | BH4: 2037-12-31 | BI4: 2038-03-31 | BJ4: 2038-06-30 | BK4: 2038-09-30 | BL4: 2038-12-31 | BM4: 2039-03-31 | BN4: 2039-06-30 | BO4: 2039-09-30 | BP4: 2039-12-31 | BQ4: =EOMONTH(BP4,3) -> 2040-03-31 | BR4: 2040-06-30 | BS4: 2040-09-30 | BT4: 2040-12-31 | BU4: 2041-03-31 | BV4: 2041-06-30 | BW4: 2041-09-30 | BX4: 2041-12-31 | BY4: 2042-03-31 | BZ4: 2042-06-30 | CA4: 2042-09-30 | CB4: 2042-12-31 | CC4: 2043-03-31 | CD4: 2043-06-30 | CE4: 2043-09-30 | CF4: 2043-12-31 | CG4: 2044-03-31 | CH4: 2044-06-30 | CI4: 2044-09-30 | CJ4: 2044-12-31 | CK4: 2045-03-31
B5: FYE | D5: =DATE(IF(MONTH(D4)<4,YEAR(D4),YEAR(D4)+1),3,31) -> 2024-03-31 | E5: 2024-03-31 | F5: 2025-03-31 | G5: 2025-03-31 | H5: 2025-03-31 | I5: 2025-03-31 | J5: 2026-03-31 | K5: 2026-03-31 | L5: 2026-03-31 | M5: 2026-03-31 | N5: 2027-03-31 | O5: 2027-03-31 | P5: 2027-03-31 | Q5: 2027-03-31 | R5: 2028-03-31 | S5: 2028-03-31 | T5: 2028-03-31 | U5: 2028-03-31 | V5: 2029-03-31 | W5: 2029-03-31 | X5: 2029-03-31 | Y5: 2029-03-31 | Z5: 2030-03-31 | AA5: 2030-03-31 | AB5: 2030-03-31 | AC5: 2030-03-31 | AD5: 2031-03-31 | AE5: 2031-03-31 | AF5: 2031-03-31 | AG5: 2031-03-31 | AH5: 2032-03-31 | AI5: 2032-03-31 | AJ5: =DATE(IF(MONTH(AJ4)<4,YEAR(AJ4),YEAR(AJ4)+1),3,31) -> 2032-03-31 | AK5: 2032-03-31 | AL5: 2033-03-31 | AM5: 2033-03-31 | AN5: 2033-03-31 | AO5: 2033-03-31 | AP5: 2034-03-31 | AQ5: 2034-03-31 | AR5: 2034-03-31 | AS5: 2034-03-31 | AT5: 2035-03-31 | AU5: 2035-03-31 | AV5: 2035-03-31 | AW5: 2035-03-31 | AX5: 2036-03-31 | AY5: 2036-03-31 | AZ5: 2036-03-31 | BA5: 2036-03-31 | BB5: 2037-03-31 | BC5: 2037-03-31 | BD5: 2037-03-31 | BE5: 2037-03-31 | BF5: 2038-03-31 | BG5: 2038-03-31 | BH5: 2038-03-31 | BI5: 2038-03-31 | BJ5: 2039-03-31 | BK5: 2039-03-31 | BL5: 2039-03-31 | BM5: 2039-03-31 | BN5: 2040-03-31 | BO5: 2040-03-31 | BP5: =DATE(IF(MONTH(BP4)<4,YEAR(BP4),YEAR(BP4)+1),3,31) -> 2040-03-31 | BQ5: 2040-03-31 | BR5: 2041-03-31 | BS5: 2041-03-31 | BT5: 2041-03-31 | BU5: 2041-03-31 | BV5: 2042-03-31 | BW5: 2042-03-31 | BX5: 2042-03-31 | BY5: 2042-03-31 | BZ5: 2043-03-31 | CA5: 2043-03-31 | CB5: 2043-03-31 | CC5: 2043-03-31 | CD5: 2044-03-31 | CE5: 2044-03-31 | CF5: 2044-03-31 | CG5: 2044-03-31 | CH5: 2045-03-31 | CI5: 2045-03-31 | CJ5: 2045-03-31 | CK5: 2045-03-31
B6: New Lease | D6: =(SUMIF('2c. Lease Schedule (INR)'!$K$457:$JE$457,D4,'2c. Lease Schedule (INR)'!$K$458:$JE$458))/10^7 -> 0 | E6: =(SUMIF('2c. Lease Schedule (INR)'!$K$457:$JE$457,E4,'2c. Lease Schedule (INR)'!$K$458:$JE$458))/10^7 -> 0 | F6: =(SUMIF('2c. Lease Schedule (INR)'!$K$457:$JE$457,F4,'2c. Lease Schedule (INR)'!$K$458:$JE$458))/10^7 -> 0 | G6: =(SUMIF('2c. Lease Schedule (INR)'!$K$457:$JE$457,G4,'2c. Lease Schedule (INR)'!$K$458:$JE$458))/10^7 -> 0 | H6: =(SUMIF('2c. Lease Schedule (INR)'!$K$457:$JE$457,H4,'2c. Lease Schedule (INR)'!$K$458:$JE$458))/10^7 -> 0 | I6: =(SUMIF('2c. Lease Schedule (INR)'!$K$457:$JE$457,I4,'2c. Lease Schedule (INR)'!$K$458:$JE$458))/10^7 -> 0 | J6: =(SUMIF('2c. Lease Schedule (INR)'!$K$457:$JE$457,J4,'2c. Lease Schedule (INR)'!$K$458:$JE$458))/10^7 -> 0 | K6: =(SUMIF('2c. Lease Schedule (INR)'!$K$457:$JE$457,K4,'2c. Lease Schedule (INR)'!$K$458:$JE$458))/10^7 -> 0 | L6: =(SUMIF('2c. Lease Schedule (INR)'!$K$457:$JE$457,L4,'2c. Lease Schedule (INR)'!$K$458:$JE$458))/10^7 -> 0 | M6: =(SUMIF('2c. Lease Schedule (INR)'!$K$457:$JE$457,M4,'2c. Lease Schedule (INR)'!$K$458:$JE$458))/10^7 -> 0 | N6: =(SUMIF('2c. Lease Schedule (INR)'!$K$457:$JE$457,N4,'2c. Lease Schedule (INR)'!$K$458:$JE$458))/10^7 -> 0 | O6: =(SUMIF('2c. Lease Schedule (INR)'!$K$457:$JE$457,O4,'2c. Lease Schedule (INR)'!$K$458:$JE$458))/10^7 -> 0 | P6: =(SUMIF('2c. Lease Schedule (INR)'!$K$457:$JE$457,P4,'2c. Lease Schedule (INR)'!$K$458:$JE$458))/10^7 -> 0 | Q6: =(SUMIF('2c. Lease Schedule (INR)'!$K$457:$JE$457,Q4,'2c. Lease Schedule (INR)'!$K$458:$JE$458))/10^7 -> 0 | R6: =(SUMIF('2c. Lease Schedule (INR)'!$K$457:$JE$457,R4,'2c. Lease Schedule (INR)'!$K$458:$JE$458))/10^7 -> 3.327944929 | S6: =(SUMIF('2c. Lease Schedule (INR)'!$K$457:$JE$457,S4,'2c. Lease Schedule (INR)'!$K$458:$JE$458))/10^7 -> 8.319862322 | T6: =(SUMIF('2c. Lease Schedule (INR)'!$K$457:$JE$457,T4,'2c. Lease Schedule (INR)'!$K$458:$JE$458))/10^7 -> 13.31177971 | U6: =(SUMIF('2c. Lease Schedule (INR)'!$K$457:$JE$457,U4,'2c. Lease Schedule (INR)'!$K$458:$JE$458))/10^7 -> 18.45345463 | V6: =(SUMIF('2c. Lease Schedule (INR)'!$K$457:$JE$457,V4,'2c. Lease Schedule (INR)'!$K$458:$JE$458))/10^7 -> 24.50573525 | W6: =(SUMIF('2c. Lease Schedule (INR)'!$K$457:$JE$457,W4,'2c. Lease Schedule (INR)'!$K$458:$JE$458))/10^7 -> 30.97587934 | X6: =(SUMIF('2c. Lease Schedule (INR)'!$K$457:$JE$457,X4,'2c. Lease Schedule (INR)'!$K$458:$JE$458))/10^7 -> 37.44602344 | Y6: =(SUMIF('2c. Lease Schedule (INR)'!$K$457:$JE$457,Y4,'2c. Lease Schedule (INR)'!$K$458:$JE$458))/10^7 -> 44.33564854 | Z6: =(SUMIF('2c. Lease Schedule (INR)'!$K$457:$JE$457,Z4,'2c. Lease Schedule (INR)'!$K$458:$JE$458))/10^7 -> 51.43501415 | AA6: =(SUMIF('2c. Lease Schedule (INR)'!$K$457:$JE$457,AA4,'2c. Lease Schedule (INR)'!$K$458:$JE$458))/10^7 -> 58.53437975 | AB6: =(SUMIF('2c. Lease Schedule (INR)'!$K$457:$JE$457,AB4,'2c. Lease Schedule (INR)'!$K$458:$JE$458))/10^7 -> 60.90083496 | AC6: =(SUMIF('2c. Lease Schedule (INR)'!$K$457:$JE$457,AC4,'2c. Lease Schedule (INR)'!$K$458:$JE$458))/10^7 -> 60.90083496 | AD6: =(SUMIF('2c. Lease Schedule (INR)'!$K$457:$JE$457,AD4,'2c. Lease Schedule (INR)'!$K$458:$JE$458))/10^7 -> 58.89104963 | AE6: =(SUMIF('2c. Lease Schedule (INR)'!$K$457:$JE$457,AE4,'2c. Lease Schedule (INR)'!$K$458:$JE$458))/10^7 -> 55.87637165 | AF6: =(SUMIF('2c. Lease Schedule (INR)'!$K$457:$JE$457,AF4,'2c. Lease Schedule (INR)'!$K$458:$JE$458))/10^7 -> 52.86169367 | AG6: =(SUMIF('2c. Lease Schedule (INR)'!$K$457:$JE$457,AG4,'2c. Lease Schedule (INR)'!$K$458:$JE$458))/10^7 -> 49.75657534 | AH6: =(SUMIF('2c. Lease Schedule (INR)'!$K$457:$JE$457,AH4,'2c. Lease Schedule (INR)'!$K$458:$JE$458))/10^7 -> 46.10153146 | AI6: =(SUMIF('2c. Lease Schedule (INR)'!$K$457:$JE$457,AI4,'2c. Lease Schedule (INR)'!$K$458:$JE$458))/10^7 -> 42.19413488 | AJ6: =(SUMIF('2c. Lease Schedule (INR)'!$K$457:$JE$457,AJ4,'2c. Lease Schedule (INR)'!$K$458:$JE$458))/10^7 -> 38.2867383 | AK6: =(SUMIF('2c. Lease Schedule (INR)'!$K$457:$JE$457,AK4,'2c. Lease Schedule (INR)'!$K$458:$JE$458))/10^7 -> 34.12601217 | AL6: =(SUMIF('2c. Lease Schedule (INR)'!$K$457:$JE$457,AL4,'2c. Lease Schedule (INR)'!$K$458:$JE$458))/10^7 -> 28.52046167 | AM6: =(SUMIF('2c. Lease Schedule (INR)'!$K$457:$JE$457,AM4,'2c. Lease Schedule (INR)'!$K$458:$JE$458))/10^7 -> 22.25583136 | AN6: =(SUMIF('2c. Lease Schedule (INR)'!$K$457:$JE$457,AN4,'2c. Lease Schedule (INR)'!$K$458:$JE$458))/10^7 -> 18.84946165 | AO6: =(SUMIF('2c. Lease Schedule (INR)'!$K$457:$JE$457,AO4,'2c. Lease Schedule (INR)'!$K$458:$JE$458))/10^7 -> 16.81290506 | AP6: =(SUMIF('2c. Lease Schedule (INR)'!$K$457:$JE$457,AP4,'2c. Lease Schedule (INR)'!$K$458:$JE$458))/10^7 -> 14.41566832 | AQ6: =(SUMIF('2c. Lease Schedule (INR)'!$K$457:$JE$457,AQ4,'2c. Lease Schedule (INR)'!$K$458:$JE$458))/10^7 -> 11.85292081 | AR6: =(SUMIF('2c. Lease Schedule (INR)'!$K$457:$JE$457,AR4,'2c. Lease Schedule (INR)'!$K$458:$JE$458))/10^7 -> 9.290173297 | AS6: =(SUMIF('2c. Lease Schedule (INR)'!$K$457:$JE$457,AS4,'2c. Lease Schedule (INR)'!$K$458:$JE$458))/10^7 -> 6.56127432 | AT6: =(SUMIF('2c. Lease Schedule (INR)'!$K$457:$JE$457,AT4,'2c. Lease Schedule (INR)'!$K$458:$JE$458))/10^7 -> 3.749299611 | AU6: =(SUMIF('2c. Lease Schedule (INR)'!$K$457:$JE$457,AU4,'2c. Lease Schedule (INR)'!$K$458:$JE$458))/10^7 -> 0.9373249029 | AV6: =(SUMIF('2c. Lease Schedule (INR)'!$K$457:$JE$457,AV4,'2c. Lease Schedule (INR)'!$K$458:$JE$458))/10^7 -> 0 | AW6: =(SUMIF('2c. Lease Schedule (INR)'!$K$457:$JE$457,AW4,'2c. Lease Schedule (INR)'!$K$458:$JE$458))/10^7 -> 0 | AX6: =(SUMIF('2c. Lease Schedule (INR)'!$K$457:$JE$457,AX4,'2c. Lease Schedule (INR)'!$K$458:$JE$458))/10^7 -> 0 | AY6: =(SUMIF('2c. Lease Schedule (INR)'!$K$457:$JE$457,AY4,'2c. Lease Schedule (INR)'!$K$458:$JE$458))/10^7 -> 0 | AZ6: =(SUMIF('2c. Lease Schedule (INR)'!$K$457:$JE$457,AZ4,'2c. Lease Schedule (INR)'!$K$458:$JE$458))/10^7 -> 0 | BA6: =(SUMIF('2c. Lease Schedule (INR)'!$K$457:$JE$457,BA4,'2c. Lease Schedule (INR)'!$K$458:$JE$458))/10^7 -> 0 | BB6: =(SUMIF('2c. Lease Schedule (INR)'!$K$457:$JE$457,BB4,'2c. Lease Schedule (INR)'!$K$458:$JE$458))/10^7 -> 0 | BC6: =(SUMIF('2c. Lease Schedule (INR)'!$K$457:$JE$457,BC4,'2c. Lease Schedule (INR)'!$K$458:$JE$458))/10^7 -> 0 | BD6: =(SUMIF('2c. Lease Schedule (INR)'!$K$457:$JE$457,BD4,'2c. Lease Schedule (INR)'!$K$458:$JE$458))/10^7 -> 0 | BE6: =(SUMIF('2c. Lease Schedule (INR)'!$K$457:$JE$457,BE4,'2c. Lease Schedule (INR)'!$K$458:$JE$458))/10^7 -> 0 | BF6: =(SUMIF('2c. Lease Schedule (INR)'!$K$457:$JE$457,BF4,'2c. Lease Schedule (INR)'!$K$458:$JE$458))/10^7 -> 0 | BG6: =(SUMIF('2c. Lease Schedule (INR)'!$K$457:$JE$457,BG4,'2c. Lease Schedule (INR)'!$K$458:$JE$458))/10^7 -> 0 | BH6: =(SUMIF('2c. Lease Schedule (INR)'!$K$457:$JE$457,BH4,'2c. Lease Schedule (INR)'!$K$458:$JE$458))/10^7 -> 0 | BI6: =(SUMIF('2c. Lease Schedule (INR)'!$K$457:$JE$457,BI4,'2c. Lease Schedule (INR)'!$K$458:$JE$458))/10^7 -> 0 | BJ6: =(SUMIF('2c. Lease Schedule (INR)'!$K$457:$JE$457,BJ4,'2c. Lease Schedule (INR)'!$K$458:$JE$458))/10^7 -> 0 | BK6: =(SUMIF('2c. Lease Schedule (INR)'!$K$457:$JE$457,BK4,'2c. Lease Schedule (INR)'!$K$458:$JE$458))/10^7 -> 0 | BL6: =(SUMIF('2c. Lease Schedule (INR)'!$K$457:$JE$457,BL4,'2c. Lease Schedule (INR)'!$K$458:$JE$458))/10^7 -> 0 | BM6: =(SUMIF('2c. Lease Schedule (INR)'!$K$457:$JE$457,BM4,'2c. Lease Schedule (INR)'!$K$458:$JE$458))/10^7 -> 0 | BN6: =(SUMIF('2c. Lease Schedule (INR)'!$K$457:$JE$457,BN4,'2c. Lease Schedule (INR)'!$K$458:$JE$458))/10^7 -> 0 | BO6: =(SUMIF('2c. Lease Schedule (INR)'!$K$457:$JE$457,BO4,'2c. Lease Schedule (INR)'!$K$458:$JE$458))/10^7 -> 0 | BP6: =(SUMIF('2c. Lease Schedule (INR)'!$K$457:$JE$457,BP4,'2c. Lease Schedule (INR)'!$K$458:$JE$458))/10^7 -> 0 | BQ6: =(SUMIF('2c. Lease Schedule (INR)'!$K$457:$JE$457,BQ4,'2c. Lease Schedule (INR)'!$K$458:$JE$458))/10^7 -> 0 | BR6: =(SUMIF('2c. Lease Schedule (INR)'!$K$457:$JE$457,BR4,'2c. Lease Schedule (INR)'!$K$458:$JE$458))/10^7 -> 0 | BS6: =(SUMIF('2c. Lease Schedule (INR)'!$K$457:$JE$457,BS4,'2c. Lease Schedule (INR)'!$K$458:$JE$458))/10^7 -> 0 | BT6: =(SUMIF('2c. Lease Schedule (INR)'!$K$457:$JE$457,BT4,'2c. Lease Schedule (INR)'!$K$458:$JE$458))/10^7 -> 0 | BU6: =(SUMIF('2c. Lease Schedule (INR)'!$K$457:$JE$457,BU4,'2c. Lease Schedule (INR)'!$K$458:$JE$458))/10^7 -> 0 | BV6: =(SUMIF('2c. Lease Schedule (INR)'!$K$457:$JE$457,BV4,'2c. Lease Schedule (INR)'!$K$458:$JE$458))/10^7 -> 0 | BW6: =(SUMIF('2c. Lease Schedule (INR)'!$K$457:$JE$457,BW4,'2c. Lease Schedule (INR)'!$K$458:$JE$458))/10^7 -> 0 | BX6: =(SUMIF('2c. Lease Schedule (INR)'!$K$457:$JE$457,BX4,'2c. Lease Schedule (INR)'!$K$458:$JE$458))/10^7 -> 0 | BY6: =(SUMIF('2c. Lease Schedule (INR)'!$K$457:$JE$457,BY4,'2c. Lease Schedule (INR)'!$K$458:$JE$458))/10^7 -> 0 | BZ6: =(SUMIF('2c. Lease Schedule (INR)'!$K$457:$JE$457,BZ4,'2c. Lease Schedule (INR)'!$K$458:$JE$458))/10^7 -> 0 | CA6: =(SUMIF('2c. Lease Schedule (INR)'!$K$457:$JE$457,CA4,'2c. Lease Schedule (INR)'!$K$458:$JE$458))/10^7 -> 0 | CB6: =(SUMIF('2c. Lease Schedule (INR)'!$K$457:$JE$457,CB4,'2c. Lease Schedule (INR)'!$K$458:$JE$458))/10^7 -> 0 | CC6: =(SUMIF('2c. Lease Schedule (INR)'!$K$457:$JE$457,CC4,'2c. Lease Schedule (INR)'!$K$458:$JE$458))/10^7 -> 0 | CD6: =(SUMIF('2c. Lease Schedule (INR)'!$K$457:$JE$457,CD4,'2c. Lease Schedule (INR)'!$K$458:$JE$458))/10^7 -> 0 | CE6: =(SUMIF('2c. Lease Schedule (INR)'!$K$457:$JE$457,CE4,'2c. Lease Schedule (INR)'!$K$458:$JE$458))/10^7 -> 0 | CF6: =(SUMIF('2c. Lease Schedule (INR)'!$K$457:$JE$457,CF4,'2c. Lease Schedule (INR)'!$K$458:$JE$458))/10^7 -> 0 | CG6: =(SUMIF('2c. Lease Schedule (INR)'!$K$457:$JE$457,CG4,'2c. Lease Schedule (INR)'!$K$458:$JE$458))/10^7 -> 0 | CH6: =(SUMIF('2c. Lease Schedule (INR)'!$K$457:$JE$457,CH4,'2c. Lease Schedule (INR)'!$K$458:$JE$458))/10^7 -> 0 | CI6: =(SUMIF('2c. Lease Schedule (INR)'!$K$457:$JE$457,CI4,'2c. Lease Schedule (INR)'!$K$458:$JE$458))/10^7 -> 0 | CJ6: =(SUMIF('2c. Lease Schedule (INR)'!$K$457:$JE$457,CJ4,'2c. Lease Schedule (INR)'!$K$458:$JE$458))/10^7 -> 0 | CK6: =(SUMIF('2c. Lease Schedule (INR)'!$K$457:$JE$457,CK4,'2c. Lease Schedule (INR)'!$K$458:$JE$458))/10^7 -> 0
B7: Rollover 1 | D7: =(SUMIF('2c. Lease Schedule (INR)'!$K$457:$JE$457,D4,'2c. Lease Schedule (INR)'!$K$459:$JE$459))/10^7 -> 0 | E7: =(SUMIF('2c. Lease Schedule (INR)'!$K$457:$JE$457,E4,'2c. Lease Schedule (INR)'!$K$459:$JE$459))/10^7 -> 0 | F7: =(SUMIF('2c. Lease Schedule (INR)'!$K$457:$JE$457,F4,'2c. Lease Schedule (INR)'!$K$459:$JE$459))/10^7 -> 0 | G7: =(SUMIF('2c. Lease Schedule (INR)'!$K$457:$JE$457,G4,'2c. Lease Schedule (INR)'!$K$459:$JE$459))/10^7 -> 0 | H7: =(SUMIF('2c. Lease Schedule (INR)'!$K$457:$JE$457,H4,'2c. Lease Schedule (INR)'!$K$459:$JE$459))/10^7 -> 0 | I7: =(SUMIF('2c. Lease Schedule (INR)'!$K$457:$JE$457,I4,'2c. Lease Schedule (INR)'!$K$459:$JE$459))/10^7 -> 0 | J7: =(SUMIF('2c. Lease Schedule (INR)'!$K$457:$JE$457,J4,'2c. Lease Schedule (INR)'!$K$459:$JE$459))/10^7 -> 0 | K7: =(SUMIF('2c. Lease Schedule (INR)'!$K$457:$JE$457,K4,'2c. Lease Schedule (INR)'!$K$459:$JE$459))/10^7 -> 0 | L7: =(SUMIF('2c. Lease Schedule (INR)'!$K$457:$JE$457,L4,'2c. Lease Schedule (INR)'!$K$459:$JE$459))/10^7 -> 0 | M7: =(SUMIF('2c. Lease Schedule (INR)'!$K$457:$JE$457,M4,'2c. Lease Schedule (INR)'!$K$459:$JE$459))/10^7 -> 0 | N7: =(SUMIF('2c. Lease Schedule (INR)'!$K$457:$JE$457,N4,'2c. Lease Schedule (INR)'!$K$459:$JE$459))/10^7 -> 0 | O7: =(SUMIF('2c. Lease Schedule (INR)'!$K$457:$JE$457,O4,'2c. Lease Schedule (INR)'!$K$459:$JE$459))/10^7 -> 0 | P7: =(SUMIF('2c. Lease Schedule (INR)'!$K$457:$JE$457,P4,'2c. Lease Schedule (INR)'!$K$459:$JE$459))/10^7 -> 0 | Q7: =(SUMIF('2c. Lease Schedule (INR)'!$K$457:$JE$457,Q4,'2c. Lease Schedule (INR)'!$K$459:$JE$459))/10^7 -> 0 | R7: =(SUMIF('2c. Lease Schedule (INR)'!$K$457:$JE$457,R4,'2c. Lease Schedule (INR)'!$K$459:$JE$459))/10^7 -> 0 | S7: =(SUMIF('2c. Lease Schedule (INR)'!$K$457:$JE$457,S4,'2c. Lease Schedule (INR)'!$K$459:$JE$459))/10^7 -> 0 | T7: =(SUMIF('2c. Lease Schedule (INR)'!$K$457:$JE$457,T4,'2c. Lease Schedule (INR)'!$K$459:$JE$459))/10^7 -> 0 | U7: =(SUMIF('2c. Lease Schedule (INR)'!$K$457:$JE$457,U4,'2c. Lease Schedule (INR)'!$K$459:$JE$459))/10^7 -> 0 | V7: =(SUMIF('2c. Lease Schedule (INR)'!$K$457:$JE$457,V4,'2c. Lease Schedule (INR)'!$K$459:$JE$459))/10^7 -> 0 | W7: =(SUMIF('2c. Lease Schedule (INR)'!$K$457:$JE$457,W4,'2c. Lease Schedule (INR)'!$K$459:$JE$459))/10^7 -> 0 | X7: =(SUMIF('2c. Lease Schedule (INR)'!$K$457:$JE$457,X4,'2c. Lease Schedule (INR)'!$K$459:$JE$459))/10^7 -> 0 | Y7: =(SUMIF('2c. Lease Schedule (INR)'!$K$457:$JE$457,Y4,'2c. Lease Schedule (INR)'!$K$459:$JE$459))/10^7 -> 0 | Z7: =(SUMIF('2c. Lease Schedule (INR)'!$K$457:$JE$457,Z4,'2c. Lease Schedule (INR)'!$K$459:$JE$459))/10^7 -> 0 | AA7: =(SUMIF('2c. Lease Schedule (INR)'!$K$457:$JE$457,AA4,'2c. Lease Schedule (INR)'!$K$459:$JE$459))/10^7 -> 0 | AB7: =(SUMIF('2c. Lease Schedule (INR)'!$K$457:$JE$457,AB4,'2c. Lease Schedule (INR)'!$K$459:$JE$459))/10^7 -> 0 | AC7: =(SUMIF('2c. Lease Schedule (INR)'!$K$457:$JE$457,AC4,'2c. Lease Schedule (INR)'!$K$459:$JE$459))/10^7 -> 0 | AD7: =(SUMIF('2c. Lease Schedule (INR)'!$K$457:$JE$457,AD4,'2c. Lease Schedule (INR)'!$K$459:$JE$459))/10^7 -> 2.555601259 | AE7: =(SUMIF('2c. Lease Schedule (INR)'!$K$457:$JE$457,AE4,'2c. Lease Schedule (INR)'!$K$459:$JE$459))/10^7 -> 6.389003148 | AF7: =(SUMIF('2c. Lease Schedule (INR)'!$K$457:$JE$457,AF4,'2c. Lease Schedule (INR)'!$K$459:$JE$459))/10^7 -> 10.22240504 | AG7: =(SUMIF('2c. Lease Schedule (INR)'!$K$457:$JE$457,AG4,'2c. Lease Schedule (INR)'!$K$459:$JE$459))/10^7 -> 14.17080898 | AH7: =(SUMIF('2c. Lease Schedule (INR)'!$K$457:$JE$457,AH4,'2c. Lease Schedule (INR)'!$K$459:$JE$459))/10^7 -> 18.81848685 | AI7: =(SUMIF('2c. Lease Schedule (INR)'!$K$457:$JE$457,AI4,'2c. Lease Schedule (INR)'!$K$459:$JE$459))/10^7 -> 23.78705116 | AJ7: =(SUMIF('2c. Lease Schedule (INR)'!$K$457:$JE$457,AJ4,'2c. Lease Schedule (INR)'!$K$459:$JE$459))/10^7 -> 28.75561546 | AK7: =(SUMIF('2c. Lease Schedule (INR)'!$K$457:$JE$457,AK4,'2c. Lease Schedule (INR)'!$K$459:$JE$459))/10^7 -> 34.04630836 | AL7: =(SUMIF('2c. Lease Schedule (INR)'!$K$457:$JE$457,AL4,'2c. Lease Schedule (INR)'!$K$459:$JE$459))/10^7 -> 41.24112259 | AM7: =(SUMIF('2c. Lease Schedule (INR)'!$K$457:$JE$457,AM4,'2c. Lease Schedule (INR)'!$K$459:$JE$459))/10^7 -> 49.30746534 | AN7: =(SUMIF('2c. Lease Schedule (INR)'!$K$457:$JE$457,AN4,'2c. Lease Schedule (INR)'!$K$459:$JE$459))/10^7 -> 53.73930331 | AO7: =(SUMIF('2c. Lease Schedule (INR)'!$K$457:$JE$457,AO4,'2c. Lease Schedule (INR)'!$K$459:$JE$459))/10^7 -> 56.43232644 | AP7: =(SUMIF('2c. Lease Schedule (INR)'!$K$457:$JE$457,AP4,'2c. Lease Schedule (INR)'!$K$459:$JE$459))/10^7 -> 57.04669061 | AQ7: =(SUMIF('2c. Lease Schedule (INR)'!$K$457:$JE$457,AQ4,'2c. Lease Schedule (INR)'!$K$459:$JE$459))/10^7 -> 56.6021159 | AR7: =(SUMIF('2c. Lease Schedule (INR)'!$K$457:$JE$457,AR4,'2c. Lease Schedule (INR)'!$K$459:$JE$459))/10^7 -> 56.1575412 | AS7: =(SUMIF('2c. Lease Schedule (INR)'!$K$457:$JE$457,AS4,'2c. Lease Schedule (INR)'!$K$459:$JE$459))/10^7 -> 55.8176734 | AT7: =(SUMIF('2c. Lease Schedule (INR)'!$K$457:$JE$457,AT4,'2c. Lease Schedule (INR)'!$K$459:$JE$459))/10^7 -> 54.88838616 | AU7: =(SUMIF('2c. Lease Schedule (INR)'!$K$457:$JE$457,AU4,'2c. Lease Schedule (INR)'!$K$459:$JE$459))/10^7 -> 53.63821248 | AV7: =(SUMIF('2c. Lease Schedule (INR)'!$K$457:$JE$457,AV4,'2c. Lease Schedule (INR)'!$K$459:$JE$459))/10^7 -> 49.90911171 | AW7: =(SUMIF('2c. Lease Schedule (INR)'!$K$457:$JE$457,AW4,'2c. Lease Schedule (INR)'!$K$459:$JE$459))/10^7 -> 44.61841882 | AX7: =(SUMIF('2c. Lease Schedule (INR)'!$K$457:$JE$457,AX4,'2c. Lease Schedule (INR)'!$K$459:$JE$459))/10^7 -> 39.16666163 | AY7: =(SUMIF('2c. Lease Schedule (INR)'!$K$457:$JE$457,AY4,'2c. Lease Schedule (INR)'!$K$459:$JE$459))/10^7 -> 33.71490444 | AZ7: =(SUMIF('2c. Lease Schedule (INR)'!$K$457:$JE$457,AZ4,'2c. Lease Schedule (INR)'!$K$459:$JE$459))/10^7 -> 31.89765204 | BA7: =(SUMIF('2c. Lease Schedule (INR)'!$K$457:$JE$457,BA4,'2c. Lease Schedule (INR)'!$K$459:$JE$459))/10^7 -> 31.89765204 | BB7: =(SUMIF('2c. Lease Schedule (INR)'!$K$457:$JE$457,BB4,'2c. Lease Schedule (INR)'!$K$459:$JE$459))/10^7 -> 31.89765204 | BC7: =(SUMIF('2c. Lease Schedule (INR)'!$K$457:$JE$457,BC4,'2c. Lease Schedule (INR)'!$K$459:$JE$459))/10^7 -> 31.89765204 | BD7: =(SUMIF('2c. Lease Schedule (INR)'!$K$457:$JE$457,BD4,'2c. Lease Schedule (INR)'!$K$459:$JE$459))/10^7 -> 31.89765204 | BE7: =(SUMIF('2c. Lease Schedule (INR)'!$K$457:$JE$457,BE4,'2c. Lease Schedule (INR)'!$K$459:$JE$459))/10^7 -> 31.89765204 | BF7: =(SUMIF('2c. Lease Schedule (INR)'!$K$457:$JE$457,BF4,'2c. Lease Schedule (INR)'!$K$459:$JE$459))/10^7 -> 30.154595 | BG7: =(SUMIF('2c. Lease Schedule (INR)'!$K$457:$JE$457,BG4,'2c. Lease Schedule (INR)'!$K$459:$JE$459))/10^7 -> 27.54000943 | BH7: =(SUMIF('2c. Lease Schedule (INR)'!$K$457:$JE$457,BH4,'2c. Lease Schedule (INR)'!$K$459:$JE$459))/10^7 -> 24.92542387 | BI7: =(SUMIF('2c. Lease Schedule (INR)'!$K$457:$JE$457,BI4,'2c. Lease Schedule (INR)'!$K$459:$JE$459))/10^7 -> 22.23240074 | BJ7: =(SUMIF('2c. Lease Schedule (INR)'!$K$457:$JE$457,BJ4,'2c. Lease Schedule (INR)'!$K$459:$JE$459))/10^7 -> 19.06243531 | BK7: =(SUMIF('2c. Lease Schedule (INR)'!$K$457:$JE$457,BK4,'2c. Lease Schedule (INR)'!$K$459:$JE$459))/10^7 -> 15.67360812 | BL7: =(SUMIF('2c. Lease Schedule (INR)'!$K$457:$JE$457,BL4,'2c. Lease Schedule (INR)'!$K$459:$JE$459))/10^7 -> 12.28478094 | BM7: =(SUMIF('2c. Lease Schedule (INR)'!$K$457:$JE$457,BM4,'2c. Lease Schedule (INR)'!$K$459:$JE$459))/10^7 -> 8.676244796 | BN7: =(SUMIF('2c. Lease Schedule (INR)'!$K$457:$JE$457,BN4,'2c. Lease Schedule (INR)'!$K$459:$JE$459))/10^7 -> 4.957854169 | BO7: =(SUMIF('2c. Lease Schedule (INR)'!$K$457:$JE$457,BO4,'2c. Lease Schedule (INR)'!$K$459:$JE$459))/10^7 -> 1.239463542 | BP7: =(SUMIF('2c. Lease Schedule (INR)'!$K$457:$JE$457,BP4,'2c. Lease Schedule (INR)'!$K$459:$JE$459))/10^7 -> 0 | BQ7: =(SUMIF('2c. Lease Schedule (INR)'!$K$457:$JE$457,BQ4,'2c. Lease Schedule (INR)'!$K$459:$JE$459))/10^7 -> 0 | BR7: =(SUMIF('2c. Lease Schedule (INR)'!$K$457:$JE$457,BR4,'2c. Lease Schedule (INR)'!$K$459:$JE$459))/10^7 -> 0 | BS7: =(SUMIF('2c. Lease Schedule (INR)'!$K$457:$JE$457,BS4,'2c. Lease Schedule (INR)'!$K$459:$JE$459))/10^7 -> 0 | BT7: =(SUMIF('2c. Lease Schedule (INR)'!$K$457:$JE$457,BT4,'2c. Lease Schedule (INR)'!$K$459:$JE$459))/10^7 -> 0 | BU7: =(SUMIF('2c. Lease Schedule (INR)'!$K$457:$JE$457,BU4,'2c. Lease Schedule (INR)'!$K$459:$JE$459))/10^7 -> 0 | BV7: =(SUMIF('2c. Lease Schedule (INR)'!$K$457:$JE$457,BV4,'2c. Lease Schedule (INR)'!$K$459:$JE$459))/10^7 -> 0 | BW7: =(SUMIF('2c. Lease Schedule (INR)'!$K$457:$JE$457,BW4,'2c. Lease Schedule (INR)'!$K$459:$JE$459))/10^7 -> 0 | BX7: =(SUMIF('2c. Lease Schedule (INR)'!$K$457:$JE$457,BX4,'2c. Lease Schedule (INR)'!$K$459:$JE$459))/10^7 -> 0 | BY7: =(SUMIF('2c. Lease Schedule (INR)'!$K$457:$JE$457,BY4,'2c. Lease Schedule (INR)'!$K$459:$JE$459))/10^7 -> 0 | BZ7: =(SUMIF('2c. Lease Schedule (INR)'!$K$457:$JE$457,BZ4,'2c. Lease Schedule (INR)'!$K$459:$JE$459))/10^7 -> 0 | CA7: =(SUMIF('2c. Lease Schedule (INR)'!$K$457:$JE$457,CA4,'2c. Lease Schedule (INR)'!$K$459:$JE$459))/10^7 -> 0 | CB7: =(SUMIF('2c. Lease Schedule (INR)'!$K$457:$JE$457,CB4,'2c. Lease Schedule (INR)'!$K$459:$JE$459))/10^7 -> 0 | CC7: =(SUMIF('2c. Lease Schedule (INR)'!$K$457:$JE$457,CC4,'2c. Lease Schedule (INR)'!$K$459:$JE$459))/10^7 -> 0 | CD7: =(SUMIF('2c. Lease Schedule (INR)'!$K$457:$JE$457,CD4,'2c. Lease Schedule (INR)'!$K$459:$JE$459))/10^7 -> 0 | CE7: =(SUMIF('2c. Lease Schedule (INR)'!$K$457:$JE$457,CE4,'2c. Lease Schedule (INR)'!$K$459:$JE$459))/10^7 -> 0 | CF7: =(SUMIF('2c. Lease Schedule (INR)'!$K$457:$JE$457,CF4,'2c. Lease Schedule (INR)'!$K$459:$JE$459))/10^7 -> 0 | CG7: =(SUMIF('2c. Lease Schedule (INR)'!$K$457:$JE$457,CG4,'2c. Lease Schedule (INR)'!$K$459:$JE$459))/10^7 -> 0 | CH7: =(SUMIF('2c. Lease Schedule (INR)'!$K$457:$JE$457,CH4,'2c. Lease Schedule (INR)'!$K$459:$JE$459))/10^7 -> 0 | CI7: =(SUMIF('2c. Lease Schedule (INR)'!$K$457:$JE$457,CI4,'2c. Lease Schedule (INR)'!$K$459:$JE$459))/10^7 -> 0 | CJ7: =(SUMIF('2c. Lease Schedule (INR)'!$K$457:$JE$457,CJ4,'2c. Lease Schedule (INR)'!$K$459:$JE$459))/10^7 -> 0 | CK7: =(SUMIF('2c. Lease Schedule (INR)'!$K$457:$JE$457,CK4,'2c. Lease Schedule (INR)'!$K$459:$JE$459))/10^7 -> 0
... 8 more rows

Sheet Capex Debt1
C2: Capex Phasing
E3: 1315.215335 | F3: =SUM(F14:F16)/$E$3 -> 0.05000649617 | G3: =SUM(G14:G16)/$E$3 -> 0.04501613838 | H3: =SUM(H14:H16)/$E$3 -> 0.05079547389 | I3: 0.06197116019 | J3: 0.09789067678 | K3: 0.09922344787 | L3: 0.07000890685 | M3: 0.06083449737 | N3: 0.0613110069 | O3: 0.08135736545 | P3: 0.01692551738 | Q3: 0.02538827607 | R3: 0.02538827607 | S3: 0.02538827607 | T3: 0.02538827607 | U3: 0.03385103475 | V3: 0.03385103475 | W3: 0.03385103475 | X3: 0.03385103475 | Y3: 0.03385103475 | Z3: 0.03385103475
C4: Quarter Ending | F4: =[4]Timelines1!C6 -> 2023-12-31 | G4: =EOMONTH(F4,3) -> 2024-03-31 | H4: =EOMONTH(G4,3) -> 2024-06-30 | I4: =EOMONTH(H4,3) -> 2024-09-30 | J4: 2024-12-31 | K4: 2025-03-31 | L4: 2025-06-30 | M4: 2025-09-30 | N4: 2025-12-31 | O4: 2026-03-31 | P4: 2026-06-30 | Q4: 2026-09-30 | R4: 2026-12-31 | S4: 2027-03-31 | T4: 2027-06-30 | U4: 2027-09-30 | V4: 2027-12-31 | W4: 2028-03-31 | X4: 2028-06-30 | Y4: 2028-09-30 | Z4: 2028-12-31 | AA4: 2029-03-31 | AB4: 2029-06-30 | AC4: 2029-09-30 | AD4: 2029-12-31 | AE4: 2030-03-31 | AF4: 2030-06-30 | AG4: 2030-09-30 | AH4: 2030-12-31 | AI4: 2031-03-31 | AJ4: 2031-06-30 | AK4: 2031-09-30 | AL4: 2031-12-31 | AM4: 2032-03-31 | AN4: 2032-06-30 | AO4: 2032-09-30 | AP4: 2032-12-31 | AQ4: 2033-03-31 | AR4: 2033-06-30 | AS4: 2033-09-30 | AT4: 2033-12-31 | AU4: 2034-03-31 | AV4: 2034-06-30 | AW4: 2034-09-30 | AX4: 2034-12-31 | AY4: 2035-03-31 | AZ4: 2035-06-30 | BA4: 2035-09-30 | BB4: 2035-12-31 | BC4: 2036-03-31 | BD4: 2036-06-30 | BE4: 2036-09-30 | BF4: 2036-12-31 | BG4: 2037-03-31 | BH4: 2037-06-30 | BI4: 2037-09-30 | BJ4: 2037-12-31 | BK4: 2038-03-31 | BL4: 2038-06-30 | BM4: 2038-09-30 | BN4: 2038-12-31 | BO4: 2039-03-31 | BP4: 2039-06-30 | BQ4: 2039-09-30 | BR4: 2039-12-31 | BS4: 2040-03-31 | BT4: 2040-06-30 | BU4: =EOMONTH(BT4,3) -> 2040-09-30 | BV4: 2040-12-31 | BW4: 2041-03-31 | BX4: 2041-06-30 | BY4: 2041-09-30 | BZ4: 2041-12-31 | CA4: 2042-03-31 | CB4: 2042-06-30 | CC4: 2042-09-30 | CD4: 2042-12-31 | CE4: 2043-03-31 | CF4: 2043-06-30 | CG4: 2043-09-30 | CH4: 2043-12-31 | CI4: 2044-03-31 | CJ4: 2044-06-30 | CK4: 2044-09-30 | CL4: 2044-12-31 | CM4: 2045-03-31
C5: Financial Year Ending | F5: =DATE(IF(MONTH(F4)<4,YEAR(F4),YEAR(F4)+1),3,31) -> 2024-03-31 | G5: =DATE(IF(MONTH(G4)<4,YEAR(G4),YEAR(G4)+1),3,31) -> 2024-03-31 | H5: =DATE(IF(MONTH(H4)<4,YEAR(H4),YEAR(H4)+1),3,31) -> 2025-03-31 | I5: 2025-03-31 | J5: 2025-03-31 | K5: 2025-03-31 | L5: 2026-03-31 | M5: 2026-03-31 | N5: 2026-03-31 | O5: 2026-03-31 | P5: 2027-03-31 | Q5: 2027-03-31 | R5: 2027-03-31 | S5: 2027-03-31 | T5: 2028-03-31 | U5: 2028-03-31 | V5: 2028-03-31 | W5: 2028-03-31 | X5: 2029-03-31 | Y5: 2029-03-31 | Z5: 2029-03-31 | AA5: 2029-03-31 | AB5: 2030-03-31 | AC5: 2030-03-31 | AD5: 2030-03-31 | AE5: 2030-03-31 | AF5: 2031-03-31 | AG5: 2031-03-31 | AH5: 2031-03-31 | AI5: 2031-03-31 | AJ5: 2032-03-31 | AK5: 2032-03-31 | AL5: 2032-03-31 | AM5: 2032-03-31 | AN5: 2033-03-31 | AO5: 2033-03-31 | AP5: 2033-03-31 | AQ5: 2033-03-31 | AR5: 2034-03-31 | AS5: 2034-03-31 | AT5: 2034-03-31 | AU5: 2034-03-31 | AV5: 2035-03-31 | AW5: 2035-03-31 | AX5: 2035-03-31 | AY5: 2035-03-31 | AZ5: 2036-03-31 | BA5: 2036-03-31 | BB5: 2036-03-31 | BC5: 2036-03-31 | BD5: 2037-03-31 | BE5: 2037-03-31 | BF5: 2037-03-31 | BG5: 2037-03-31 | BH5: 2038-03-31 | BI5: 2038-03-31 | BJ5: 2038-03-31 | BK5: 2038-03-31 | BL5: 2039-03-31 | BM5: 2039-03-31 | BN5: 2039-03-31 | BO5: 2039-03-31 | BP5: 2040-03-31 | BQ5: 2040-03-31 | BR5: 2040-03-31 | BS5: 2040-03-31 | BT5: =DATE(IF(MONTH(BT4)<4,YEAR(BT4),YEAR(BT4)+1),3,31) -> 2041-03-31 | BU5: 2041-03-31 | BV5: 2041-03-31 | BW5: 2041-03-31 | BX5: 2042-03-31 | BY5: 2042-03-31 | BZ5: 2042-03-31 | CA5: 2042-03-31 | CB5: 2043-03-31 | CC5: 2043-03-31 | CD5: 2043-03-31 | CE5: 2043-03-31 | CF5: 2044-03-31 | CG5: 2044-03-31 | CH5: 2044-03-31 | CI5: 2044-03-31 | CJ5: 2045-03-31 | CK5: 2045-03-31 | CL5: 2045-03-31 | CM5: 2045-03-31
C6: Year Counter | G6: =YEAR(G5)-YEAR([4]Timelines1!$C$12) -> 1 | H6: =YEAR(H5)-YEAR([4]Timelines1!$C$12) -> 2 | I6: =YEAR(I5)-YEAR([4]Timelines1!$C$12) -> 2 | J6: =YEAR(J5)-YEAR([4]Timelines1!$C$12) -> 2 | K6: =YEAR(K5)-YEAR([4]Timelines1!$C$12) -> 2 | L6: =YEAR(L5)-YEAR([4]Timelines1!$C$12) -> 3 | M6: =YEAR(M5)-YEAR([4]Timelines1!$C$12) -> 3 | N6: =YEAR(N5)-YEAR([4]Timelines1!$C$12) -> 3 | O6: =YEAR(O5)-YEAR([4]Timelines1!$C$12) -> 3 | P6: =YEAR(P5)-YEAR([4]Timelines1!$C$12) -> 4 | Q6: =YEAR(Q5)-YEAR([4]Timelines1!$C$12) -> 4 | R6: =YEAR(R5)-YEAR([4]Timelines1!$C$12) -> 4 | S6: =YEAR(S5)-YEAR([4]Timelines1!$C$12) -> 4 | T6: =YEAR(T5)-YEAR([4]Timelines1!$C$12) -> 5 | U6: =YEAR(U5)-YEAR([4]Timelines1!$C$12) -> 5 | V6: =YEAR(V5)-YEAR([4]Timelines1!$C$12) -> 5 | W6: =YEAR(W5)-YEAR([4]Timelines1!$C$12) -> 5 | X6: =YEAR(X5)-YEAR([4]Timelines1!$C$12) -> 6 | Y6: =YEAR(Y5)-YEAR([4]Timelines1!$C$12) -> 6 | Z6: =YEAR(Z5)-YEAR([4]Timelines1!$C$12) -> 6 | AA6: =YEAR(AA5)-YEAR([4]Timelines1!$C$12) -> 6 | AB6: =YEAR(AB5)-YEAR([4]Timelines1!$C$12) -> 7 | AC6: =YEAR(AC5)-YEAR([4]Timelines1!$C$12) -> 7 | AD6: =YEAR(AD5)-YEAR([4]Timelines1!$C$12) -> 7 | AE6: =YEAR(AE5)-YEAR([4]Timelines1!$C$12) -> 7 | AF6: =YEAR(AF5)-YEAR([4]Timelines1!$C$12) -> 8 | AG6: =YEAR(AG5)-YEAR([4]Timelines1!$C$12) -> 8 | AH6: =YEAR(AH5)-YEAR([4]Timelines1!$C$12) -> 8 | AI6: =YEAR(AI5)-YEAR([4]Timelines1!$C$12) -> 8 | AJ6: =YEAR(AJ5)-YEAR([4]Timelines1!$C$12) -> 9 | AK6: =YEAR(AK5)-YEAR([4]Timelines1!$C$12) -> 9 | AL6: =YEAR(AL5)-YEAR([4]Timelines1!$C$12) -> 9 | AM6: =YEAR(AM5)-YEAR([4]Timelines1!$C$12) -> 9 | AN6: =YEAR(AN5)-YEAR([4]Timelines1!$C$12) -> 10 | AO6: =YEAR(AO5)-YEAR([4]Timelines1!$C$12) -> 10 | AP6: =YEAR(AP5)-YEAR([4]Timelines1!$C$12) -> 10 | AQ6: =YEAR(AQ5)-YEAR([4]Timelines1!$C$12) -> 10 | AR6: =YEAR(AR5)-YEAR([4]Timelines1!$C$12) -> 11 | AS6: =YEAR(AS5)-YEAR([4]Timelines1!$C$12) -> 11 | AT6: =YEAR(AT5)-YEAR([4]Timelines1!$C$12) -> 11 | AU6: =YEAR(AU5)-YEAR([4]Timelines1!$C$12) -> 11 | AV6: =YEAR(AV5)-YEAR([4]Timelines1!$C$12) -> 12 | AW6: =YEAR(AW5)-YEAR([4]Timelines1!$C$12) -> 12 | AX6: =YEAR(AX5)-YEAR([4]Timelines1!$C$12) -> 12 | AY6: =YEAR(AY5)-YEAR([4]Timelines1!$C$12) -> 12 | AZ6: =YEAR(AZ5)-YEAR([4]Timelines1!$C$12) -> 13 | BA6: =YEAR(BA5)-YEAR([4]Timelines1!$C$12) -> 13 | BB6: =YEAR(BB5)-YEAR([4]Timelines1!$C$12) -> 13 | BC6: =YEAR(BC5)-YEAR([4]Timelines1!$C$12) -> 13 | BD6: =YEAR(BD5)-YEAR([4]Timelines1!$C$12) -> 14 | BE6: =YEAR(BE5)-YEAR([4]Timelines1!$C$12) -> 14 | BF6: =YEAR(BF5)-YEAR([4]Timelines1!$C$12) -> 14 | BG6: =YEAR(BG5)-YEAR([4]Timelines1!$C$12) -> 14 | BH6: =YEAR(BH5)-YEAR([4]Timelines1!$C$12) -> 15 | BI6: =YEAR(BI5)-YEAR([4]Timelines1!$C$12) -> 15 | BJ6: =YEAR(BJ5)-YEAR([4]Timelines1!$C$12) -> 15 | BK6: =YEAR(BK5)-YEAR([4]Timelines1!$C$12) -> 15 | BL6: =YEAR(BL5)-YEAR([4]Timelines1!$C$12) -> 16 | BM6: =YEAR(BM5)-YEAR([4]Timelines1!$C$12) -> 16 | BN6: =YEAR(BN5)-YEAR([4]Timelines1!$C$12) -> 16 | BO6: =YEAR(BO5)-YEAR([4]Timelines1!$C$12) -> 16 | BP6: =YEAR(BP5)-YEAR([4]Timelines1!$C$12) -> 17 | BQ6: =YEAR(BQ5)-YEAR([4]Timelines1!$C$12) -> 17 | BR6: =YEAR(BR5)-YEAR([4]Timelines1!$C$12) -> 17 | BS6: =YEAR(BS5)-YEAR([4]Timelines1!$C$12) -> 17 | BT6: =YEAR(BT5)-YEAR([4]Timelines1!$C$12) -> 18 | BU6: =YEAR(BU5)-YEAR([4]Timelines1!$C$12) -> 18 | BV6: =YEAR(BV5)-YEAR([4]Timelines1!$C$12) -> 18 | BW6: =YEAR(BW5)-YEAR([4]Timelines1!$C$12) -> 18 | BX6: =YEAR(BX5)-YEAR([4]Timelines1!$C$12) -> 19 | BY6: =YEAR(BY5)-YEAR([4]Timelines1!$C$12) -> 19 | BZ6: =YEAR(BZ5)-YEAR([4]Timelines1!$C$12) -> 19 | CA6: =YEAR(CA5)-YEAR([4]Timelines1!$C$12) -> 19 | CB6: =YEAR(CB5)-YEAR([4]Timelines1!$C$12) -> 20 | CC6: =YEAR(CC5)-YEAR([4]Timelines1!$C$12) -> 20 | CD6: =YEAR(CD5)-YEAR([4]Timelines1!$C$12) -> 20 | CE6: =YEAR(CE5)-YEAR([4]Timelines1!$C$12) -> 20 | CF6: =YEAR(CF5)-YEAR([4]Timelines1!$C$12) -> 21 | CG6: =YEAR(CG5)-YEAR([4]Timelines1!$C$12) -> 21 | CH6: =YEAR(CH5)-YEAR([4]Timelines1!$C$12) -> 21 | CI6: =YEAR(CI5)-YEAR([4]Timelines1!$C$12) -> 21 | CJ6: =YEAR(CJ5)-YEAR([4]Timelines1!$C$12) -> 22 | CK6: =YEAR(CK5)-YEAR([4]Timelines1!$C$12) -> 22 | CL6: =YEAR(CL5)-YEAR([4]Timelines1!$C$12) -> 22 | CM6: =YEAR(CM5)-YEAR([4]Timelines1!$C$12) -> 22
C7: Construction Year Counter | G7: =IF(G$5<=[4]Timelines1!$C$32,YEAR(G$5)-YEAR([4]Timelines1!$C$12),"") -> 1 | H7: =IF(H$5<=[4]Timelines1!$C$32,YEAR(H$5)-YEAR([4]Timelines1!$C$12),"") -> 2 | I7: =IF(I$5<=[4]Timelines1!$C$32,YEAR(I$5)-YEAR([4]Timelines1!$C$12),"") -> 2 | J7: =IF(J$5<=[4]Timelines1!$C$32,YEAR(J$5)-YEAR([4]Timelines1!$C$12),"") -> 2 | K7: =IF(K$5<=[4]Timelines1!$C$32,YEAR(K$5)-YEAR([4]Timelines1!$C$12),"") -> 2 | L7: =IF(L$5<=[4]Timelines1!$C$32,YEAR(L$5)-YEAR([4]Timelines1!$C$12),"") -> 3 | M7: =IF(M$5<=[4]Timelines1!$C$32,YEAR(M$5)-YEAR([4]Timelines1!$C$12),"") -> 3 | N7: =IF(N$5<=[4]Timelines1!$C$32,YEAR(N$5)-YEAR([4]Timelines1!$C$12),"") -> 3 | O7: =IF(O$5<=[4]Timelines1!$C$32,YEAR(O$5)-YEAR([4]Timelines1!$C$12),"") -> 3 | P7: =IF(P$5<=[4]Timelines1!$C$32,YEAR(P$5)-YEAR([4]Timelines1!$C$12),"") -> 4 | Q7: =IF(Q$5<=[4]Timelines1!$C$32,YEAR(Q$5)-YEAR([4]Timelines1!$C$12),"") -> 4 | R7: =IF(R$5<=[4]Timelines1!$C$32,YEAR(R$5)-YEAR([4]Timelines1!$C$12),"") -> 4 | S7: =IF(S$5<=[4]Timelines1!$C$32,YEAR(S$5)-YEAR([4]Timelines1!$C$12),"") -> 4 | T7: =IF(T$5<=[4]Timelines1!$C$32,YEAR(T$5)-YEAR([4]Timelines1!$C$12),"") -> 5 | U7: =IF(U$5<=[4]Timelines1!$C$32,YEAR(U$5)-YEAR([4]Timelines1!$C$12),"") -> 5 | V7: =IF(V$5<=[4]Timelines1!$C$32,YEAR(V$5)-YEAR([4]Timelines1!$C$12),"") -> 5 | W7: =IF(W$5<=[4]Timelines1!$C$32,YEAR(W$5)-YEAR([4]Timelines1!$C$12),"") -> 5 | X7: =IF(X$5<=[4]Timelines1!$C$32,YEAR(X$5)-YEAR([4]Timelines1!$C$12),"") -> 6 | Y7: =IF(Y$5<=[4]Timelines1!$C$32,YEAR(Y$5)-YEAR([4]Timelines1!$C$12),"") -> 6 | Z7: =IF(Z$5<=[4]Timelines1!$C$32,YEAR(Z$5)-YEAR([4]Timelines1!$C$12),"") -> 6 | AA7: =IF(AA$5<=[4]Timelines1!$C$32,YEAR(AA$5)-YEAR([4]Timelines1!$C$12),"") -> 6 | AB7: =IF(AB$5<=[4]Timelines1!$C$32,YEAR(AB$5)-YEAR([4]Timelines1!$C$12),"") ->  | AC7: =IF(AC$5<=[4]Timelines1!$C$32,YEAR(AC$5)-YEAR([4]Timelines1!$C$12),"") ->  | AD7: =IF(AD$5<=[4]Timelines1!$C$32,YEAR(AD$5)-YEAR([4]Timelines1!$C$12),"") ->  | AE7: =IF(AE$5<=[4]Timelines1!$C$32,YEAR(AE$5)-YEAR([4]Timelines1!$C$12),"") ->  | AF7: =IF(AF$5<=[4]Timelines1!$C$32,YEAR(AF$5)-YEAR([4]Timelines1!$C$12),"") ->  | AG7: =IF(AG$5<=[4]Timelines1!$C$32,YEAR(AG$5)-YEAR([4]Timelines1!$C$12),"") ->  | AH7: =IF(AH$5<=[4]Timelines1!$C$32,YEAR(AH$5)-YEAR([4]Timelines1!$C$12),"") ->  | AI7: =IF(AI$5<=[4]Timelines1!$C$32,YEAR(AI$5)-YEAR([4]Timelines1!$C$12),"") ->  | AJ7: =IF(AJ$5<=[4]Timelines1!$C$32,YEAR(AJ$5)-YEAR([4]Timelines1!$C$12),"") ->  | AK7: =IF(AK$5<=[4]Timelines1!$C$32,YEAR(AK$5)-YEAR([4]Timelines1!$C$12),"") ->  | AL7: =IF(AL$5<=[4]Timelines1!$C$32,YEAR(AL$5)-YEAR([4]Timelines1!$C$12),"") ->  | AM7: =IF(AM$5<=[4]Timelines1!$C$32,YEAR(AM$5)-YEAR([4]Timelines1!$C$12),"") ->  | AN7: =IF(AN$5<=[4]Timelines1!$C$32,YEAR(AN$5)-YEAR([4]Timelines1!$C$12),"") ->  | AO7: =IF(AO$5<=[4]Timelines1!$C$32,YEAR(AO$5)-YEAR([4]Timelines1!$C$12),"") ->  | AP7: =IF(AP$5<=[4]Timelines1!$C$32,YEAR(AP$5)-YEAR([4]Timelines1!$C$12),"") ->  | AQ7: =IF(AQ$5<=[4]Timelines1!$C$32,YEAR(AQ$5)-YEAR([4]Timelines1!$C$12),"") ->  | AR7: =IF(AR$5<=[4]Timelines1!$C$32,YEAR(AR$5)-YEAR([4]Timelines1!$C$12),"") ->  | AS7: =IF(AS$5<=[4]Timelines1!$C$32,YEAR(AS$5)-YEAR([4]Timelines1!$C$12),"") ->  | AT7: =IF(AT$5<=[4]Timelines1!$C$32,YEAR(AT$5)-YEAR([4]Timelines1!$C$12),"") ->  | AU7: =IF(AU$5<=[4]Timelines1!$C$32,YEAR(AU$5)-YEAR([4]Timelines1!$C$12),"") ->  | AV7: =IF(AV$5<=[4]Timelines1!$C$32,YEAR(AV$5)-YEAR([4]Timelines1!$C$12),"") ->  | AW7: =IF(AW$5<=[4]Timelines1!$C$32,YEAR(AW$5)-YEAR([4]Timelines1!$C$12),"") ->  | AX7: =IF(AX$5<=[4]Timelines1!$C$32,YEAR(AX$5)-YEAR([4]Timelines1!$C$12),"") ->  | AY7: =IF(AY$5<=[4]Timelines1!$C$32,YEAR(AY$5)-YEAR([4]Timelines1!$C$12),"") ->  | AZ7: =IF(AZ$5<=[4]Timelines1!$C$32,YEAR(AZ$5)-YEAR([4]Timelines1!$C$12),"") ->  | BA7: =IF(BA$5<=[4]Timelines1!$C$32,YEAR(BA$5)-YEAR([4]Timelines1!$C$12),"") ->  | BB7: =IF(BB$5<=[4]Timelines1!$C$32,YEAR(BB$5)-YEAR([4]Timelines1!$C$12),"") ->  | BC7: =IF(BC$5<=[4]Timelines1!$C$32,YEAR(BC$5)-YEAR([4]Timelines1!$C$12),"") ->  | BD7: =IF(BD$5<=[4]Timelines1!$C$32,YEAR(BD$5)-YEAR([4]Timelines1!$C$12),"") ->  | BE7: =IF(BE$5<=[4]Timelines1!$C$32,YEAR(BE$5)-YEAR([4]Timelines1!$C$12),"") ->  | BF7: =IF(BF$5<=[4]Timelines1!$C$32,YEAR(BF$5)-YEAR([4]Timelines1!$C$12),"") ->  | BG7: =IF(BG$5<=[4]Timelines1!$C$32,YEAR(BG$5)-YEAR([4]Timelines1!$C$12),"") ->  | BH7: =IF(BH$5<=[4]Timelines1!$C$32,YEAR(BH$5)-YEAR([4]Timelines1!$C$12),"") ->  | BI7: =IF(BI$5<=[4]Timelines1!$C$32,YEAR(BI$5)-YEAR([4]Timelines1!$C$12),"") ->  | BJ7: =IF(BJ$5<=[4]Timelines1!$C$32,YEAR(BJ$5)-YEAR([4]Timelines1!$C$12),"") ->  | BK7: =IF(BK$5<=[4]Timelines1!$C$32,YEAR(BK$5)-YEAR([4]Timelines1!$C$12),"") ->  | BL7: =IF(BL$5<=[4]Timelines1!$C$32,YEAR(BL$5)-YEAR([4]Timelines1!$C$12),"") ->  | BM7: =IF(BM$5<=[4]Timelines1!$C$32,YEAR(BM$5)-YEAR([4]Timelines1!$C$12),"") ->  | BN7: =IF(BN$5<=[4]Timelines1!$C$32,YEAR(BN$5)-YEAR([4]Timelines1!$C$12),"") ->  | BO7: =IF(BO$5<=[4]Timelines1!$C$32,YEAR(BO$5)-YEAR([4]Timelines1!$C$12),"") ->  | BP7: =IF(BP$5<=[4]Timelines1!$C$32,YEAR(BP$5)-YEAR([4]Timelines1!$C$12),"") ->  | BQ7: =IF(BQ$5<=[4]Timelines1!$C$32,YEAR(BQ$5)-YEAR([4]Timelines1!$C$12),"") ->  | BR7: =IF(BR$5<=[4]Timelines1!$C$32,YEAR(BR$5)-YEAR([4]Timelines1!$C$12),"") ->  | BS7: =IF(BS$5<=[4]Timelines1!$C$32,YEAR(BS$5)-YEAR([4]Timelines1!$C$12),"") ->  | BT7: =IF(BT$5<=[4]Timelines1!$C$32,YEAR(BT$5)-YEAR([4]Timelines1!$C$12),"") ->  | BU7: =IF(BU$5<=[4]Timelines1!$C$32,YEAR(BU$5)-YEAR([4]Timelines1!$C$12),"") ->  | BV7: =IF(BV$5<=[4]Timelines1!$C$32,YEAR(BV$5)-YEAR([4]Timelines1!$C$12),"") ->  | BW7: =IF(BW$5<=[4]Timelines1!$C$32,YEAR(BW$5)-YEAR([4]Timelines1!$C$12),"") ->  | BX7: =IF(BX$5<=[4]Timelines1!$C$32,YEAR(BX$5)-YEAR([4]Timelines1!$C$12),"") ->  | BY7: =IF(BY$5<=[4]Timelines1!$C$32,YEAR(BY$5)-YEAR([4]Timelines1!$C$12),"") ->  | BZ7: =IF(BZ$5<=[4]Timelines1!$C$32,YEAR(BZ$5)-YEAR([4]Timelines1!$C$12),"") ->  | CA7: =IF(CA$5<=[4]Timelines1!$C$32,YEAR(CA$5)-YEAR([4]Timelines1!$C$12),"") ->  | CB7: =IF(CB$5<=[4]Timelines1!$C$32,YEAR(CB$5)-YEAR([4]Timelines1!$C$12),"") ->  | CC7: =IF(CC$5<=[4]Timelines1!$C$32,YEAR(CC$5)-YEAR([4]Timelines1!$C$12),"") ->  | CD7: =IF(CD$5<=[4]Timelines1!$C$32,YEAR(CD$5)-YEAR([4]Timelines1!$C$12),"") ->  | CE7: =IF(CE$5<=[4]Timelines1!$C$32,YEAR(CE$5)-YEAR([4]Timelines1!$C$12),"") ->  | CF7: =IF(CF$5<=[4]Timelines1!$C$32,YEAR(CF$5)-YEAR([4]Timelines1!$C$12),"") ->  | CG7: =IF(CG$5<=[4]Timelines1!$C$32,YEAR(CG$5)-YEAR([4]Timelines1!$C$12),"") ->  | CH7: =IF(CH$5<=[4]Timelines1!$C$32,YEAR(CH$5)-YEAR([4]Timelines1!$C$12),"") ->  | CI7: =IF(CI$5<=[4]Timelines1!$C$32,YEAR(CI$5)-YEAR([4]Timelines1!$C$12),"") ->  | CJ7: =IF(CJ$5<=[4]Timelines1!$C$32,YEAR(CJ$5)-YEAR([4]Timelines1!$C$12),"") ->  | CK7: =IF(CK$5<=[4]Timelines1!$C$32,YEAR(CK$5)-YEAR([4]Timelines1!$C$12),"") ->  | CL7: =IF(CL$5<=[4]Timelines1!$C$32,YEAR(CL$5)-YEAR([4]Timelines1!$C$12),"") ->  | CM7: =IF(CM$5<=[4]Timelines1!$C$32,YEAR(CM$5)-YEAR([4]Timelines1!$C$12),"") -> 
... 8 more rows

Sheet Capex Debt
C2: Capex Phasing
C4: Quarter Ending | F4: =Timelines!C6 -> 2023-12-31 | G4: =EOMONTH(F4,3) -> 2024-03-31 | H4: =EOMONTH(G4,3) -> 2024-06-30 | I4: =EOMONTH(H4,3) -> 2024-09-30 | J4: 2024-12-31 | K4: 2025-03-31 | L4: 2025-06-30 | M4: 2025-09-30 | N4: 2025-12-31 | O4: 2026-03-31 | P4: 2026-06-30 | Q4: 2026-09-30 | R4: 2026-12-31 | S4: 2027-03-31 | T4: 2027-06-30 | U4: =EOMONTH(T4,3) -> 2027-09-30 | V4: 2027-12-31 | W4: 2028-03-31 | X4: 2028-06-30 | Y4: 2028-09-30 | Z4: =EOMONTH(Y4,3) -> 2028-12-31 | AA4: 2029-03-31 | AB4: =EOMONTH(AA4,3) -> 2029-06-30 | AC4: =EOMONTH(AB4,3) -> 2029-09-30 | AD4: =EOMONTH(AC4,3) -> 2029-12-31 | AE4: =EOMONTH(AD4,3) -> 2030-03-31 | AF4: =EOMONTH(AE4,3) -> 2030-06-30 | AG4: =EOMONTH(AF4,3) -> 2030-09-30 | AH4: =EOMONTH(AG4,3) -> 2030-12-31 | AI4: =EOMONTH(AH4,3) -> 2031-03-31 | AJ4: =EOMONTH(AI4,3) -> 2031-06-30 | AK4: =EOMONTH(AJ4,3) -> 2031-09-30 | AL4: =EOMONTH(AK4,3) -> 2031-12-31 | AM4: =EOMONTH(AL4,3) -> 2032-03-31 | AN4: =EOMONTH(AM4,3) -> 2032-06-30 | AO4: =EOMONTH(AN4,3) -> 2032-09-30 | AP4: =EOMONTH(AO4,3) -> 2032-12-31 | AQ4: =EOMONTH(AP4,3) -> 2033-03-31 | AR4: =EOMONTH(AQ4,3) -> 2033-06-30 | AS4: =EOMONTH(AR4,3) -> 2033-09-30 | AT4: =EOMONTH(AS4,3) -> 2033-12-31 | AU4: =EOMONTH(AT4,3) -> 2034-03-31 | AV4: =EOMONTH(AU4,3) -> 2034-06-30 | AW4: =EOMONTH(AV4,3) -> 2034-09-30 | AX4: =EOMONTH(AW4,3) -> 2034-12-31 | AY4: =EOMONTH(AX4,3) -> 2035-03-31 | AZ4: =EOMONTH(AY4,3) -> 2035-06-30 | BA4: =EOMONTH(AZ4,3) -> 2035-09-30 | BB4: =EOMONTH(BA4,3) -> 2035-12-31 | BC4: =EOMONTH(BB4,3) -> 2036-03-31 | BD4: =EOMONTH(BC4,3) -> 2036-06-30 | BE4: =EOMONTH(BD4,3) -> 2036-09-30 | BF4: =EOMONTH(BE4,3) -> 2036-12-31 | BG4: =EOMONTH(BF4,3) -> 2037-03-31 | BH4: =EOMONTH(BG4,3) -> 2037-06-30 | BI4: =EOMONTH(BH4,3) -> 2037-09-30 | BJ4: =EOMONTH(BI4,3) -> 2037-12-31 | BK4: =EOMONTH(BJ4,3) -> 2038-03-31 | BL4: =EOMONTH(BK4,3) -> 2038-06-30 | BM4: =EOMONTH(BL4,3) -> 2038-09-30 | BN4: =EOMONTH(BM4,3) -> 2038-12-31 | BO4: =EOMONTH(BN4,3) -> 2039-03-31 | BP4: =EOMONTH(BO4,3) -> 2039-06-30 | BQ4: =EOMONTH(BP4,3) -> 2039-09-30 | BR4: =EOMONTH(BQ4,3) -> 2039-12-31 | BS4: =EOMONTH(BR4,3) -> 2040-03-31 | BT4: =EOMONTH(BS4,3) -> 2040-06-30 | BU4: =EOMONTH(BT4,3) -> 2040-09-30 | BV4: =EOMONTH(BU4,3) -> 2040-12-31 | BW4: =EOMONTH(BV4,3) -> 2041-03-31 | BX4: =EOMONTH(BW4,3) -> 2041-06-30 | BY4: =EOMONTH(BX4,3) -> 2041-09-30 | BZ4: =EOMONTH(BY4,3) -> 2041-12-31 | CA4: =EOMONTH(BZ4,3) -> 2042-03-31 | CB4: =EOMONTH(CA4,3) -> 2042-06-30 | CC4: =EOMONTH(CB4,3) -> 2042-09-30 | CD4: =EOMONTH(CC4,3) -> 2042-12-31 | CE4: =EOMONTH(CD4,3) -> 2043-03-31 | CF4: =EOMONTH(CE4,3) -> 2043-06-30 | CG4: =EOMONTH(CF4,3) -> 2043-09-30 | CH4: =EOMONTH(CG4,3) -> 2043-12-31 | CI4: =EOMONTH(CH4,3) -> 2044-03-31 | CJ4: =EOMONTH(CI4,3) -> 2044-06-30 | CK4: =EOMONTH(CJ4,3) -> 2044-09-30 | CL4: =EOMONTH(CK4,3) -> 2044-12-31 | CM4: =EOMONTH(CL4,3) -> 2045-03-31
C5: Financial Year Ending | F5: =DATE(IF(MONTH(F4)<4,YEAR(F4),YEAR(F4)+1),3,31) -> 2024-03-31 | G5: =DATE(IF(MONTH(G4)<4,YEAR(G4),YEAR(G4)+1),3,31) -> 2024-03-31 | H5: =DATE(IF(MONTH(H4)<4,YEAR(H4),YEAR(H4)+1),3,31) -> 2025-03-31 | I5: 2025-03-31 | J5: 2025-03-31 | K5: 2025-03-31 | L5: 2026-03-31 | M5: 2026-03-31 | N5: 2026-03-31 | O5: 2026-03-31 | P5: 2027-03-31 | Q5: 2027-03-31 | R5: 2027-03-31 | S5: 2027-03-31 | T5: 2028-03-31 | U5: 2028-03-31 | V5: 2028-03-31 | W5: 2028-03-31 | X5: 2029-03-31 | Y5: 2029-03-31 | Z5: 2029-03-31 | AA5: 2029-03-31 | AB5: =DATE(IF(MONTH(AB4)<4,YEAR(AB4),YEAR(AB4)+1),3,31) -> 2030-03-31 | AC5: 2030-03-31 | AD5: 2030-03-31 | AE5: 2030-03-31 | AF5: 2031-03-31 | AG5: 2031-03-31 | AH5: 2031-03-31 | AI5: 2031-03-31 | AJ5: 2032-03-31 | AK5: 2032-03-31 | AL5: 2032-03-31 | AM5: 2032-03-31 | AN5: 2033-03-31 | AO5: 2033-03-31 | AP5: 2033-03-31 | AQ5: 2033-03-31 | AR5: 2034-03-31 | AS5: 2034-03-31 | AT5: 2034-03-31 | AU5: 2034-03-31 | AV5: =DATE(IF(MONTH(AV4)<4,YEAR(AV4),YEAR(AV4)+1),3,31) -> 2035-03-31 | AW5: 2035-03-31 | AX5: 2035-03-31 | AY5: 2035-03-31 | AZ5: 2036-03-31 | BA5: 2036-03-31 | BB5: 2036-03-31 | BC5: 2036-03-31 | BD5: 2037-03-31 | BE5: 2037-03-31 | BF5: 2037-03-31 | BG5: 2037-03-31 | BH5: =DATE(IF(MONTH(BH4)<4,YEAR(BH4),YEAR(BH4)+1),3,31) -> 2038-03-31 | BI5: 2038-03-31 | BJ5: 2038-03-31 | BK5: 2038-03-31 | BL5: 2039-03-31 | BM5: 2039-03-31 | BN5: 2039-03-31 | BO5: 2039-03-31 | BP5: 2040-03-31 | BQ5: 2040-03-31 | BR5: 2040-03-31 | BS5: 2040-03-31 | BT5: 2041-03-31 | BU5: 2041-03-31 | BV5: 2041-03-31 | BW5: 2041-03-31 | BX5: 2042-03-31 | BY5: 2042-03-31 | BZ5: 2042-03-31 | CA5: =DATE(IF(MONTH(CA4)<4,YEAR(CA4),YEAR(CA4)+1),3,31) -> 2042-03-31 | CB5: 2043-03-31 | CC5: 2043-03-31 | CD5: 2043-03-31 | CE5: 2043-03-31 | CF5: =DATE(IF(MONTH(CF4)<4,YEAR(CF4),YEAR(CF4)+1),3,31) -> 2044-03-31 | CG5: 2044-03-31 | CH5: 2044-03-31 | CI5: 2044-03-31 | CJ5: 2045-03-31 | CK5: 2045-03-31 | CL5: 2045-03-31 | CM5: 2045-03-31
C6: Year Counter | G6: =YEAR(G5)-YEAR(Timelines!$C$12) -> 1 | H6: =YEAR(H5)-YEAR(Timelines!$C$12) -> 2 | I6: =YEAR(I5)-YEAR(Timelines!$C$12) -> 2 | J6: =YEAR(J5)-YEAR(Timelines!$C$12) -> 2 | K6: =YEAR(K5)-YEAR(Timelines!$C$12) -> 2 | L6: =YEAR(L5)-YEAR(Timelines!$C$12) -> 3 | M6: =YEAR(M5)-YEAR(Timelines!$C$12) -> 3 | N6: =YEAR(N5)-YEAR(Timelines!$C$12) -> 3 | O6: =YEAR(O5)-YEAR(Timelines!$C$12) -> 3 | P6: =YEAR(P5)-YEAR(Timelines!$C$12) -> 4 | Q6: =YEAR(Q5)-YEAR(Timelines!$C$12) -> 4 | R6: =YEAR(R5)-YEAR(Timelines!$C$12) -> 4 | S6: =YEAR(S5)-YEAR(Timelines!$C$12) -> 4 | T6: =YEAR(T5)-YEAR(Timelines!$C$12) -> 5 | U6: =YEAR(U5)-YEAR(Timelines!$C$12) -> 5 | V6: =YEAR(V5)-YEAR(Timelines!$C$12) -> 5 | W6: =YEAR(W5)-YEAR(Timelines!$C$12) -> 5 | X6: =YEAR(X5)-YEAR(Timelines!$C$12) -> 6 | Y6: =YEAR(Y5)-YEAR(Timelines!$C$12) -> 6 | Z6: =YEAR(Z5)-YEAR(Timelines!$C$12) -> 6 | AA6: =YEAR(AA5)-YEAR(Timelines!$C$12) -> 6 | AB6: =YEAR(AB5)-YEAR(Timelines!$C$12) -> 7 | AC6: =YEAR(AC5)-YEAR(Timelines!$C$12) -> 7 | AD6: =YEAR(AD5)-YEAR(Timelines!$C$12) -> 7 | AE6: =YEAR(AE5)-YEAR(Timelines!$C$12) -> 7 | AF6: =YEAR(AF5)-YEAR(Timelines!$C$12) -> 8 | AG6: =YEAR(AG5)-YEAR(Timelines!$C$12) -> 8 | AH6: =YEAR(AH5)-YEAR(Timelines!$C$12) -> 8 | AI6: =YEAR(AI5)-YEAR(Timelines!$C$12) -> 8 | AJ6: =YEAR(AJ5)-YEAR(Timelines!$C$12) -> 9 | AK6: =YEAR(AK5)-YEAR(Timelines!$C$12) -> 9 | AL6: =YEAR(AL5)-YEAR(Timelines!$C$12) -> 9 | AM6: =YEAR(AM5)-YEAR(Timelines!$C$12) -> 9 | AN6: =YEAR(AN5)-YEAR(Timelines!$C$12) -> 10 | AO6: =YEAR(AO5)-YEAR(Timelines!$C$12) -> 10 | AP6: =YEAR(AP5)-YEAR(Timelines!$C$12) -> 10 | AQ6: =YEAR(AQ5)-YEAR(Timelines!$C$12) -> 10 | AR6: =YEAR(AR5)-YEAR(Timelines!$C$12) -> 11 | AS6: =YEAR(AS5)-YEAR(Timelines!$C$12) -> 11 | AT6: =YEAR(AT5)-YEAR(Timelines!$C$12) -> 11 | AU6: =YEAR(AU5)-YEAR(Timelines!$C$12) -> 11 | AV6: =YEAR(AV5)-YEAR(Timelines!$C$12) -> 12 | AW6: =YEAR(AW5)-YEAR(Timelines!$C$12) -> 12 | AX6: =YEAR(AX5)-YEAR(Timelines!$C$12) -> 12 | AY6: =YEAR(AY5)-YEAR(Timelines!$C$12) -> 12 | AZ6: =YEAR(AZ5)-YEAR(Timelines!$C$12) -> 13 | BA6: =YEAR(BA5)-YEAR(Timelines!$C$12) -> 13 | BB6: =YEAR(BB5)-YEAR(Timelines!$C$12) -> 13 | BC6: =YEAR(BC5)-YEAR(Timelines!$C$12) -> 13 | BD6: =YEAR(BD5)-YEAR(Timelines!$C$12) -> 14 | BE6: =YEAR(BE5)-YEAR(Timelines!$C$12) -> 14 | BF6: =YEAR(BF5)-YEAR(Timelines!$C$12) -> 14 | BG6: =YEAR(BG5)-YEAR(Timelines!$C$12) -> 14 | BH6: =YEAR(BH5)-YEAR(Timelines!$C$12) -> 15 | BI6: =YEAR(BI5)-YEAR(Timelines!$C$12) -> 15 | BJ6: =YEAR(BJ5)-YEAR(Timelines!$C$12) -> 15 | BK6: =YEAR(BK5)-YEAR(Timelines!$C$12) -> 15 | BL6: =YEAR(BL5)-YEAR(Timelines!$C$12) -> 16 | BM6: =YEAR(BM5)-YEAR(Timelines!$C$12) -> 16 | BN6: =YEAR(BN5)-YEAR(Timelines!$C$12) -> 16 | BO6: =YEAR(BO5)-YEAR(Timelines!$C$12) -> 16 | BP6: =YEAR(BP5)-YEAR(Timelines!$C$12) -> 17 | BQ6: =YEAR(BQ5)-YEAR(Timelines!$C$12) -> 17 | BR6: =YEAR(BR5)-YEAR(Timelines!$C$12) -> 17 | BS6: =YEAR(BS5)-YEAR(Timelines!$C$12) -> 17 | BT6: =YEAR(BT5)-YEAR(Timelines!$C$12) -> 18 | BU6: =YEAR(BU5)-YEAR(Timelines!$C$12) -> 18 | BV6: =YEAR(BV5)-YEAR(Timelines!$C$12) -> 18 | BW6: =YEAR(BW5)-YEAR(Timelines!$C$12) -> 18 | BX6: =YEAR(BX5)-YEAR(Timelines!$C$12) -> 19 | BY6: =YEAR(BY5)-YEAR(Timelines!$C$12) -> 19 | BZ6: =YEAR(BZ5)-YEAR(Timelines!$C$12) -> 19 | CA6: =YEAR(CA5)-YEAR(Timelines!$C$12) -> 19 | CB6: =YEAR(CB5)-YEAR(Timelines!$C$12) -> 20 | CC6: =YEAR(CC5)-YEAR(Timelines!$C$12) -> 20 | CD6: =YEAR(CD5)-YEAR(Timelines!$C$12) -> 20 | CE6: =YEAR(CE5)-YEAR(Timelines!$C$12) -> 20 | CF6: =YEAR(CF5)-YEAR(Timelines!$C$12) -> 21 | CG6: =YEAR(CG5)-YEAR(Timelines!$C$12) -> 21 | CH6: =YEAR(CH5)-YEAR(Timelines!$C$12) -> 21 | CI6: =YEAR(CI5)-YEAR(Timelines!$C$12) -> 21 | CJ6: =YEAR(CJ5)-YEAR(Timelines!$C$12) -> 22 | CK6: =YEAR(CK5)-YEAR(Timelines!$C$12) -> 22 | CL6: =YEAR(CL5)-YEAR(Timelines!$C$12) -> 22 | CM6: =YEAR(CM5)-YEAR(Timelines!$C$12) -> 22
C7: Construction Year Counter | G7: =IF(G$5<=Timelines!$C$32,YEAR(G$5)-YEAR(Timelines!$C$12),"") -> 1 | H7: =IF(H$5<=Timelines!$C$32,YEAR(H$5)-YEAR(Timelines!$C$12),"") -> 2 | I7: =IF(I$5<=Timelines!$C$32,YEAR(I$5)-YEAR(Timelines!$C$12),"") -> 2 | J7: =IF(J$5<=Timelines!$C$32,YEAR(J$5)-YEAR(Timelines!$C$12),"") -> 2 | K7: =IF(K$5<=Timelines!$C$32,YEAR(K$5)-YEAR(Timelines!$C$12),"") -> 2 | L7: =IF(L$5<=Timelines!$C$32,YEAR(L$5)-YEAR(Timelines!$C$12),"") -> 3 | M7: =IF(M$5<=Timelines!$C$32,YEAR(M$5)-YEAR(Timelines!$C$12),"") -> 3 | N7: =IF(N$5<=Timelines!$C$32,YEAR(N$5)-YEAR(Timelines!$C$12),"") -> 3 | O7: =IF(O$5<=Timelines!$C$32,YEAR(O$5)-YEAR(Timelines!$C$12),"") -> 3 | P7: =IF(P$5<=Timelines!$C$32,YEAR(P$5)-YEAR(Timelines!$C$12),"") -> 4 | Q7: =IF(Q$5<=Timelines!$C$32,YEAR(Q$5)-YEAR(Timelines!$C$12),"") -> 4 | R7: =IF(R$5<=Timelines!$C$32,YEAR(R$5)-YEAR(Timelines!$C$12),"") -> 4 | S7: =IF(S$5<=Timelines!$C$32,YEAR(S$5)-YEAR(Timelines!$C$12),"") -> 4 | T7: =IF(T$5<=Timelines!$C$32,YEAR(T$5)-YEAR(Timelines!$C$12),"") -> 5 | U7: =IF(U$5<=Timelines!$C$32,YEAR(U$5)-YEAR(Timelines!$C$12),"") -> 5 | V7: =IF(V$5<=Timelines!$C$32,YEAR(V$5)-YEAR(Timelines!$C$12),"") -> 5 | W7: =IF(W$5<=Timelines!$C$32,YEAR(W$5)-YEAR(Timelines!$C$12),"") -> 5 | X7: =IF(X$5<=Timelines!$C$32,YEAR(X$5)-YEAR(Timelines!$C$12),"") -> 6 | Y7: =IF(Y$5<=Timelines!$C$32,YEAR(Y$5)-YEAR(Timelines!$C$12),"") -> 6 | Z7: =IF(Z$5<=Timelines!$C$32,YEAR(Z$5)-YEAR(Timelines!$C$12),"") -> 6 | AA7: =IF(AA$5<=Timelines!$C$32,YEAR(AA$5)-YEAR(Timelines!$C$12),"") -> 6 | AB7: =IF(AB$5<=Timelines!$C$32,YEAR(AB$5)-YEAR(Timelines!$C$12),"") ->  | AC7: =IF(AC$5<=Timelines!$C$32,YEAR(AC$5)-YEAR(Timelines!$C$12),"") ->  | AD7: =IF(AD$5<=Timelines!$C$32,YEAR(AD$5)-YEAR(Timelines!$C$12),"") ->  | AE7: =IF(AE$5<=Timelines!$C$32,YEAR(AE$5)-YEAR(Timelines!$C$12),"") ->  | AF7: =IF(AF$5<=Timelines!$C$32,YEAR(AF$5)-YEAR(Timelines!$C$12),"") ->  | AG7: =IF(AG$5<=Timelines!$C$32,YEAR(AG$5)-YEAR(Timelines!$C$12),"") ->  | AH7: =IF(AH$5<=Timelines!$C$32,YEAR(AH$5)-YEAR(Timelines!$C$12),"") ->  | AI7: =IF(AI$5<=Timelines!$C$32,YEAR(AI$5)-YEAR(Timelines!$C$12),"") ->  | AJ7: =IF(AJ$5<=Timelines!$C$32,YEAR(AJ$5)-YEAR(Timelines!$C$12),"") ->  | AK7: =IF(AK$5<=Timelines!$C$32,YEAR(AK$5)-YEAR(Timelines!$C$12),"") ->  | AL7: =IF(AL$5<=Timelines!$C$32,YEAR(AL$5)-YEAR(Timelines!$C$12),"") ->  | AM7: =IF(AM$5<=Timelines!$C$32,YEAR(AM$5)-YEAR(Timelines!$C$12),"") ->  | AN7: =IF(AN$5<=Timelines!$C$32,YEAR(AN$5)-YEAR(Timelines!$C$12),"") ->  | AO7: =IF(AO$5<=Timelines!$C$32,YEAR(AO$5)-YEAR(Timelines!$C$12),"") ->  | AP7: =IF(AP$5<=Timelines!$C$32,YEAR(AP$5)-YEAR(Timelines!$C$12),"") ->  | AQ7: =IF(AQ$5<=Timelines!$C$32,YEAR(AQ$5)-YEAR(Timelines!$C$12),"") ->  | AR7: =IF(AR$5<=Timelines!$C$32,YEAR(AR$5)-YEAR(Timelines!$C$12),"") ->  | AS7: =IF(AS$5<=Timelines!$C$32,YEAR(AS$5)-YEAR(Timelines!$C$12),"") ->  | AT7: =IF(AT$5<=Timelines!$C$32,YEAR(AT$5)-YEAR(Timelines!$C$12),"") ->  | AU7: =IF(AU$5<=Timelines!$C$32,YEAR(AU$5)-YEAR(Timelines!$C$12),"") ->  | AV7: =IF(AV$5<=Timelines!$C$32,YEAR(AV$5)-YEAR(Timelines!$C$12),"") ->  | AW7: =IF(AW$5<=Timelines!$C$32,YEAR(AW$5)-YEAR(Timelines!$C$12),"") ->  | AX7: =IF(AX$5<=Timelines!$C$32,YEAR(AX$5)-YEAR(Timelines!$C$12),"") ->  | AY7: =IF(AY$5<=Timelines!$C$32,YEAR(AY$5)-YEAR(Timelines!$C$12),"") ->  | AZ7: =IF(AZ$5<=Timelines!$C$32,YEAR(AZ$5)-YEAR(Timelines!$C$12),"") ->  | BA7: =IF(BA$5<=Timelines!$C$32,YEAR(BA$5)-YEAR(Timelines!$C$12),"") ->  | BB7: =IF(BB$5<=Timelines!$C$32,YEAR(BB$5)-YEAR(Timelines!$C$12),"") ->  | BC7: =IF(BC$5<=Timelines!$C$32,YEAR(BC$5)-YEAR(Timelines!$C$12),"") ->  | BD7: =IF(BD$5<=Timelines!$C$32,YEAR(BD$5)-YEAR(Timelines!$C$12),"") ->  | BE7: =IF(BE$5<=Timelines!$C$32,YEAR(BE$5)-YEAR(Timelines!$C$12),"") ->  | BF7: =IF(BF$5<=Timelines!$C$32,YEAR(BF$5)-YEAR(Timelines!$C$12),"") ->  | BG7: =IF(BG$5<=Timelines!$C$32,YEAR(BG$5)-YEAR(Timelines!$C$12),"") ->  | BH7: =IF(BH$5<=Timelines!$C$32,YEAR(BH$5)-YEAR(Timelines!$C$12),"") ->  | BI7: =IF(BI$5<=Timelines!$C$32,YEAR(BI$5)-YEAR(Timelines!$C$12),"") ->  | BJ7: =IF(BJ$5<=Timelines!$C$32,YEAR(BJ$5)-YEAR(Timelines!$C$12),"") ->  | BK7: =IF(BK$5<=Timelines!$C$32,YEAR(BK$5)-YEAR(Timelines!$C$12),"") ->  | BL7: =IF(BL$5<=Timelines!$C$32,YEAR(BL$5)-YEAR(Timelines!$C$12),"") ->  | BM7: =IF(BM$5<=Timelines!$C$32,YEAR(BM$5)-YEAR(Timelines!$C$12),"") ->  | BN7: =IF(BN$5<=Timelines!$C$32,YEAR(BN$5)-YEAR(Timelines!$C$12),"") ->  | BO7: =IF(BO$5<=Timelines!$C$32,YEAR(BO$5)-YEAR(Timelines!$C$12),"") ->  | BP7: =IF(BP$5<=Timelines!$C$32,YEAR(BP$5)-YEAR(Timelines!$C$12),"") ->  | BQ7: =IF(BQ$5<=Timelines!$C$32,YEAR(BQ$5)-YEAR(Timelines!$C$12),"") ->  | BR7: =IF(BR$5<=Timelines!$C$32,YEAR(BR$5)-YEAR(Timelines!$C$12),"") ->  | BS7: =IF(BS$5<=Timelines!$C$32,YEAR(BS$5)-YEAR(Timelines!$C$12),"") ->  | BT7: =IF(BT$5<=Timelines!$C$32,YEAR(BT$5)-YEAR(Timelines!$C$12),"") ->  | BU7: =IF(BU$5<=Timelines!$C$32,YEAR(BU$5)-YEAR(Timelines!$C$12),"") ->  | BV7: =IF(BV$5<=Timelines!$C$32,YEAR(BV$5)-YEAR(Timelines!$C$12),"") ->  | BW7: =IF(BW$5<=Timelines!$C$32,YEAR(BW$5)-YEAR(Timelines!$C$12),"") ->  | BX7: =IF(BX$5<=Timelines!$C$32,YEAR(BX$5)-YEAR(Timelines!$C$12),"") ->  | BY7: =IF(BY$5<=Timelines!$C$32,YEAR(BY$5)-YEAR(Timelines!$C$12),"") ->  | BZ7: =IF(BZ$5<=Timelines!$C$32,YEAR(BZ$5)-YEAR(Timelines!$C$12),"") ->  | CA7: =IF(CA$5<=Timelines!$C$32,YEAR(CA$5)-YEAR(Timelines!$C$12),"") ->  | CB7: =IF(CB$5<=Timelines!$C$32,YEAR(CB$5)-YEAR(Timelines!$C$12),"") ->  | CC7: =IF(CC$5<=Timelines!$C$32,YEAR(CC$5)-YEAR(Timelines!$C$12),"") ->  | CD7: =IF(CD$5<=Timelines!$C$32,YEAR(CD$5)-YEAR(Timelines!$C$12),"") ->  | CE7: =IF(CE$5<=Timelines!$C$32,YEAR(CE$5)-YEAR(Timelines!$C$12),"") ->  | CF7: =IF(CF$5<=Timelines!$C$32,YEAR(CF$5)-YEAR(Timelines!$C$12),"") ->  | CG7: =IF(CG$5<=Timelines!$C$32,YEAR(CG$5)-YEAR(Timelines!$C$12),"") ->  | CH7: =IF(CH$5<=Timelines!$C$32,YEAR(CH$5)-YEAR(Timelines!$C$12),"") ->  | CI7: =IF(CI$5<=Timelines!$C$32,YEAR(CI$5)-YEAR(Timelines!$C$12),"") ->  | CJ7: =IF(CJ$5<=Timelines!$C$32,YEAR(CJ$5)-YEAR(Timelines!$C$12),"") ->  | CK7: =IF(CK$5<=Timelines!$C$32,YEAR(CK$5)-YEAR(Timelines!$C$12),"") ->  | CL7: =IF(CL$5<=Timelines!$C$32,YEAR(CL$5)-YEAR(Timelines!$C$12),"") ->  | CM7: =IF(CM$5<=Timelines!$C$32,YEAR(CM$5)-YEAR(Timelines!$C$12),"") -> 
... 8 more rows

Sheet Opex1
C1: Rs. Crore
C2: FYE | E2: =[4]Timelines1!C13 -> 2024-03-31 | F2: =EOMONTH(E2,12) -> 2025-03-31 | G2: =EOMONTH(F2,12) -> 2026-03-31 | H2: 2027-03-31 | I2: 2028-03-31 | J2: 2029-03-31 | K2: 2030-03-31 | L2: 2031-03-31 | M2: 2032-03-31 | N2: 2033-03-31 | O2: 2034-03-31 | P2: 2035-03-31 | Q2: 2036-03-31 | R2: 2037-03-31 | S2: 2038-03-31 | T2: 2039-03-31 | U2: 2040-03-31 | V2: 2041-03-31 | W2: 2042-03-31 | X2: 2043-03-31 | Y2: 2044-03-31 | Z2: 2045-03-31
C3: Operation Year Counter | E3: =IF(E2>='[4]Rev Assumptions1'!$H$19,1,0) -> 0 | F3: =IF(F2>='[4]Rev Assumptions1'!$H$19,1,0) -> 0 | G3: =IF(G2>='[4]Rev Assumptions1'!$H$19,1,0) -> 0 | H3: =IF(H2>='[4]Rev Assumptions1'!$H$19,1,0) -> 0 | I3: =IF(I2>='[4]Rev Assumptions1'!$H$19,1,0) -> 1 | J3: =IF(J2>='[4]Rev Assumptions1'!$H$19,1,0) -> 1 | K3: =IF(K2>='[4]Rev Assumptions1'!$H$19,1,0) -> 1 | L3: =IF(L2>='[4]Rev Assumptions1'!$H$19,1,0) -> 1 | M3: =IF(M2>='[4]Rev Assumptions1'!$H$19,1,0) -> 1 | N3: =IF(N2>='[4]Rev Assumptions1'!$H$19,1,0) -> 1 | O3: =IF(O2>='[4]Rev Assumptions1'!$H$19,1,0) -> 1 | P3: =IF(P2>='[4]Rev Assumptions1'!$H$19,1,0) -> 1 | Q3: =IF(Q2>='[4]Rev Assumptions1'!$H$19,1,0) -> 1 | R3: =IF(R2>='[4]Rev Assumptions1'!$H$19,1,0) -> 1 | S3: =IF(S2>='[4]Rev Assumptions1'!$H$19,1,0) -> 1 | T3: =IF(T2>='[4]Rev Assumptions1'!$H$19,1,0) -> 1 | U3: =IF(U2>='[4]Rev Assumptions1'!$H$19,1,0) -> 1 | V3: =IF(V2>='[4]Rev Assumptions1'!$H$19,1,0) -> 1 | W3: =IF(W2>='[4]Rev Assumptions1'!$H$19,1,0) -> 1 | X3: =IF(X2>='[4]Rev Assumptions1'!$H$19,1,0) -> 1 | Y3: =IF(Y2>='[4]Rev Assumptions1'!$H$19,1,0) -> 1 | Z3: =IF(Z2>='[4]Rev Assumptions1'!$H$19,1,0) -> 1
C4: Number of months of operation | E4: =IF(E3=0,0,IF(E3=1,'[4]Rev Assumptions1'!$I$19,12)) -> 0 | F4: =IF(F3=0,0,IF(F3=1,'[4]Rev Assumptions1'!$I$19,12)) -> 0 | G4: =IF(G3=0,0,IF(G3=1,'[4]Rev Assumptions1'!$I$19,12)) -> 0 | H4: =IF(H3=0,0,IF(H3=1,'[4]Rev Assumptions1'!$I$19,12)) -> 0 | I4: =IF(I3=0,0,IF(I3=1,'[4]Rev Assumptions1'!$I$19,12)) -> 12 | J4: =IF(J3=0,0,IF(J3=1,'[4]Rev Assumptions1'!$I$19,12)) -> 12 | K4: =IF(K3=0,0,IF(K3=1,'[4]Rev Assumptions1'!$I$19,12)) -> 12 | L4: =IF(L3=0,0,IF(L3=1,'[4]Rev Assumptions1'!$I$19,12)) -> 12 | M4: =IF(M3=0,0,IF(M3=1,'[4]Rev Assumptions1'!$I$19,12)) -> 12 | N4: =IF(N3=0,0,IF(N3=1,'[4]Rev Assumptions1'!$I$19,12)) -> 12 | O4: =IF(O3=0,0,IF(O3=1,'[4]Rev Assumptions1'!$I$19,12)) -> 12 | P4: =IF(P3=0,0,IF(P3=1,'[4]Rev Assumptions1'!$I$19,12)) -> 12 | Q4: =IF(Q3=0,0,IF(Q3=1,'[4]Rev Assumptions1'!$I$19,12)) -> 12 | R4: =IF(R3=0,0,IF(R3=1,'[4]Rev Assumptions1'!$I$19,12)) -> 12 | S4: =IF(S3=0,0,IF(S3=1,'[4]Rev Assumptions1'!$I$19,12)) -> 12 | T4: =IF(T3=0,0,IF(T3=1,'[4]Rev Assumptions1'!$I$19,12)) -> 12 | U4: =IF(U3=0,0,IF(U3=1,'[4]Rev Assumptions1'!$I$19,12)) -> 12 | V4: =IF(V3=0,0,IF(V3=1,'[4]Rev Assumptions1'!$I$19,12)) -> 12 | W4: =IF(W3=0,0,IF(W3=1,'[4]Rev Assumptions1'!$I$19,12)) -> 12 | X4: =IF(X3=0,0,IF(X3=1,'[4]Rev Assumptions1'!$I$19,12)) -> 12 | Y4: =IF(Y3=0,0,IF(Y3=1,'[4]Rev Assumptions1'!$I$19,12)) -> 12 | Z4: =IF(Z3=0,0,IF(Z3=1,'[4]Rev Assumptions1'!$I$19,12)) -> 12
C6: Yearly
A7: =L7/('[4]P&L1'!$M$4+'[4]P&L1'!$M$8) -> 0.003387050647 | C7: Property Tax | E7: =SUMIF($E$21:$CL$21,E$2,$E25:$CL25) -> 0 | F7: 0 | G7: 0 | H7: 0 | I7: 0.8087512876 | J7: 0.8491888519 | K7: 0.8916482945 | L7: 0.9362307093 | M7: 0.9830422447 | N7: 1.032194357 | O7: 1.083804075 | P7: 1.137994279 | Q7: 1.194893992 | R7: 1.254638692 | S7: 1.317370627 | T7: 1.383239158 | U7: 1.452401116 | V7: 1.525021172 | W7: 1.60127223 | X7: 1.681335842 | Y7: 1.765402634 | Z7: 1.853672766
... 6 more rows

Sheet Opex
C1: Rs. Crore
C2: FYE | E2: =Timelines!C13 -> 2024-03-31 | F2: =EOMONTH(E2,12) -> 2025-03-31 | G2: =EOMONTH(F2,12) -> 2026-03-31 | H2: 2027-03-31 | I2: 2028-03-31 | J2: 2029-03-31 | K2: 2030-03-31 | L2: 2031-03-31 | M2: 2032-03-31 | N2: 2033-03-31 | O2: 2034-03-31 | P2: 2035-03-31 | Q2: 2036-03-31 | R2: 2037-03-31 | S2: 2038-03-31 | T2: 2039-03-31 | U2: 2040-03-31 | V2: 2041-03-31 | W2: 2042-03-31 | X2: 2043-03-31 | Y2: 2044-03-31 | Z2: 2045-03-31
C3: Operation Year Counter | E3: =IF(E2>='Rev Assumptions'!$H$19,1,0) -> 0 | F3: =IF(F2>='Rev Assumptions'!$H$19,1,0) -> 0 | G3: =IF(G2>='Rev Assumptions'!$H$19,1,0) -> 0 | H3: =IF(H2>='Rev Assumptions'!$H$19,1,0) -> 0 | I3: =IF(I2>='Rev Assumptions'!$H$19,1,0) -> 1 | J3: =IF(J2>='Rev Assumptions'!$H$19,1,0) -> 1 | K3: =IF(K2>='Rev Assumptions'!$H$19,1,0) -> 1 | L3: =IF(L2>='Rev Assumptions'!$H$19,1,0) -> 1 | M3: =IF(M2>='Rev Assumptions'!$H$19,1,0) -> 1 | N3: =IF(N2>='Rev Assumptions'!$H$19,1,0) -> 1 | O3: =IF(O2>='Rev Assumptions'!$H$19,1,0) -> 1 | P3: =IF(P2>='Rev Assumptions'!$H$19,1,0) -> 1 | Q3: =IF(Q2>='Rev Assumptions'!$H$19,1,0) -> 1 | R3: =IF(R2>='Rev Assumptions'!$H$19,1,0) -> 1 | S3: =IF(S2>='Rev Assumptions'!$H$19,1,0) -> 1 | T3: =IF(T2>='Rev Assumptions'!$H$19,1,0) -> 1 | U3: =IF(U2>='Rev Assumptions'!$H$19,1,0) -> 1 | V3: =IF(V2>='Rev Assumptions'!$H$19,1,0) -> 1 | W3: =IF(W2>='Rev Assumptions'!$H$19,1,0) -> 1 | X3: =IF(X2>='Rev Assumptions'!$H$19,1,0) -> 1 | Y3: =IF(Y2>='Rev Assumptions'!$H$19,1,0) -> 1 | Z3: =IF(Z2>='Rev Assumptions'!$H$19,1,0) -> 1
C4: Number of months of operation | E4: =IF(E3=0,0,IF(E3=1,'Rev Assumptions'!$I$19,12)) -> 0 | F4: =IF(F3=0,0,IF(F3=1,'Rev Assumptions'!$I$19,12)) -> 0 | G4: =IF(G3=0,0,IF(G3=1,'Rev Assumptions'!$I$19,12)) -> 0 | H4: =IF(H3=0,0,IF(H3=1,'Rev Assumptions'!$I$19,12)) -> 0 | I4: =IF(I3=0,0,IF(I3=1,'Rev Assumptions'!$I$19,12)) -> 12 | J4: =IF(J3=0,0,IF(J3=1,'Rev Assumptions'!$I$19,12)) -> 12 | K4: =IF(K3=0,0,IF(K3=1,'Rev Assumptions'!$I$19,12)) -> 12 | L4: =IF(L3=0,0,IF(L3=1,'Rev Assumptions'!$I$19,12)) -> 12 | M4: =IF(M3=0,0,IF(M3=1,'Rev Assumptions'!$I$19,12)) -> 12 | N4: =IF(N3=0,0,IF(N3=1,'Rev Assumptions'!$I$19,12)) -> 12 | O4: =IF(O3=0,0,IF(O3=1,'Rev Assumptions'!$I$19,12)) -> 12 | P4: =IF(P3=0,0,IF(P3=1,'Rev Assumptions'!$I$19,12)) -> 12 | Q4: =IF(Q3=0,0,IF(Q3=1,'Rev Assumptions'!$I$19,12)) -> 12 | R4: =IF(R3=0,0,IF(R3=1,'Rev Assumptions'!$I$19,12)) -> 12 | S4: =IF(S3=0,0,IF(S3=1,'Rev Assumptions'!$I$19,12)) -> 12 | T4: =IF(T3=0,0,IF(T3=1,'Rev Assumptions'!$I$19,12)) -> 12 | U4: =IF(U3=0,0,IF(U3=1,'Rev Assumptions'!$I$19,12)) -> 12 | V4: =IF(V3=0,0,IF(V3=1,'Rev Assumptions'!$I$19,12)) -> 12 | W4: =IF(W3=0,0,IF(W3=1,'Rev Assumptions'!$I$19,12)) -> 12 | X4: =IF(X3=0,0,IF(X3=1,'Rev Assumptions'!$I$19,12)) -> 12 | Y4: =IF(Y3=0,0,IF(Y3=1,'Rev Assumptions'!$I$19,12)) -> 12 | Z4: =IF(Z3=0,0,IF(Z3=1,'Rev Assumptions'!$I$19,12)) -> 12
C6: Yearly
A7: =L7/('P&L'!$M$4+'P&L'!$M$10) -> 0.003606812868 | C7: Property Tax | E7: =SUMIF($E$21:$CL$21,E$2,$E25:$CL25) -> 0 | F7: 0 | G7: =SUMIF($E$21:$CL$21,G$2,$E25:$CL25) -> 0 | H7: 0 | I7: 0.7977146545 | J7: 0.8336118139 | K7: 0.8711243455 | L7: 0.9103249411 | M7: 0.9512895634 | N7: 0.9940975938 | O7: 1.038831986 | P7: 1.085579425 | Q7: 1.134430499 | R7: 1.185479871 | S7: 1.238826466 | T7: 1.294573657 | U7: 1.352829471 | V7: 1.413706797 | W7: 1.477323603 | X7: 1.543803165 | Y7: 1.613274308 | Z7: 1.685871652
... 6 more rows

Sheet Analysis1
B3: Quarter Ending | C3: ='[4]Capex Debt1'!T4 -> 2027-06-30 | D3: ='[4]Capex Debt1'!U4 -> 2027-09-30 | E3: ='[4]Capex Debt1'!V4 -> 2027-12-31 | F3: ='[4]Capex Debt1'!W4 -> 2028-03-31 | G3: ='[4]Capex Debt1'!X4 -> 2028-06-30 | H3: ='[4]Capex Debt1'!Y4 -> 2028-09-30 | I3: ='[4]Capex Debt1'!Z4 -> 2028-12-31 | J3: ='[4]Capex Debt1'!AA4 -> 2029-03-31 | K3: ='[4]Capex Debt1'!AB4 -> 2029-06-30 | L3: ='[4]Capex Debt1'!AC4 -> 2029-09-30 | M3: ='[4]Capex Debt1'!AD4 -> 2029-12-31
B4: Financial Year Ending | C4: ='[4]Capex Debt1'!T5 -> 2028-03-31 | D4: ='[4]Capex Debt1'!U5 -> 2028-03-31 | E4: ='[4]Capex Debt1'!V5 -> 2028-03-31 | F4: ='[4]Capex Debt1'!W5 -> 2028-03-31 | G4: ='[4]Capex Debt1'!X5 -> 2029-03-31 | H4: ='[4]Capex Debt1'!Y5 -> 2029-03-31 | I4: ='[4]Capex Debt1'!Z5 -> 2029-03-31 | J4: ='[4]Capex Debt1'!AA5 -> 2029-03-31 | K4: ='[4]Capex Debt1'!AB5 -> 2030-03-31 | L4: ='[4]Capex Debt1'!AC5 -> 2030-03-31 | M4: ='[4]Capex Debt1'!AD5 -> 2030-03-31
D5: Phase 1 | H5: Phase 1+Phase 2 | L5: Phase 1+Phase 2+Phase 3
B6: Lease Revenue | C6: =[4]Revenue1!R9 -> 3.590781226 | D6: =[4]Revenue1!S9 -> 8.976953065 | E6: =[4]Revenue1!T9 -> 14.3631249 | F6: =[4]Revenue1!U9 -> 19.89292799 | G6: =[4]Revenue1!V9 -> 26.39196366 | H6: =[4]Revenue1!W9 -> 33.3397078 | I6: =[4]Revenue1!X9 -> 40.28745194 | J6: =[4]Revenue1!Y9 -> 47.66132438 | K6: =[4]Revenue1!Z9 -> 55.24826098 | L6: =[4]Revenue1!AA9 -> 62.83519758 | M6: =[4]Revenue1!AB9 -> 65.36417645
B7: Other Income | C7: =SUMIF('[4]2d. Other Income (INR)1'!$AX$454:$CD$454,C3,'[4]2d. Other Income (INR)1'!$AX$455:$CD$455)/10^7 -> 0.1123926904 | D7: =SUMIF('[4]2d. Other Income (INR)1'!$AX$454:$CD$454,D3,'[4]2d. Other Income (INR)1'!$AX$455:$CD$455)/10^7 -> 0.2809817259 | E7: =SUMIF('[4]2d. Other Income (INR)1'!$AX$454:$CD$454,E3,'[4]2d. Other Income (INR)1'!$AX$455:$CD$455)/10^7 -> 0.4495707614 | F7: =SUMIF('[4]2d. Other Income (INR)1'!$AX$454:$CD$454,F3,'[4]2d. Other Income (INR)1'!$AX$455:$CD$455)/10^7 -> 0.6226555046 | G7: =SUMIF('[4]2d. Other Income (INR)1'!$AX$454:$CD$454,G3,'[4]2d. Other Income (INR)1'!$AX$455:$CD$455)/10^7 -> 0.8260775615 | H7: =SUMIF('[4]2d. Other Income (INR)1'!$AX$454:$CD$454,H3,'[4]2d. Other Income (INR)1'!$AX$455:$CD$455)/10^7 -> 1.043544348 | I7: =SUMIF('[4]2d. Other Income (INR)1'!$AX$454:$CD$454,I3,'[4]2d. Other Income (INR)1'!$AX$455:$CD$455)/10^7 -> 1.261011135 | J7: =SUMIF('[4]2d. Other Income (INR)1'!$AX$454:$CD$454,J3,'[4]2d. Other Income (INR)1'!$AX$455:$CD$455)/10^7 -> 1.491815885 | K7: =SUMIF('[4]2d. Other Income (INR)1'!$AX$454:$CD$454,K3,'[4]2d. Other Income (INR)1'!$AX$455:$CD$455)/10^7 -> 1.729289617 | L7: =SUMIF('[4]2d. Other Income (INR)1'!$AX$454:$CD$454,L3,'[4]2d. Other Income (INR)1'!$AX$455:$CD$455)/10^7 -> 1.966763348 | M7: =SUMIF('[4]2d. Other Income (INR)1'!$AX$454:$CD$454,M3,'[4]2d. Other Income (INR)1'!$AX$455:$CD$455)/10^7 -> 2.045921258
... 7 more rows

Sheet Analysis
B3: Quarter Ending | C3: ='Capex Debt'!T4 -> 2027-06-30 | D3: ='Capex Debt'!U4 -> 2027-09-30 | E3: ='Capex Debt'!V4 -> 2027-12-31 | F3: ='Capex Debt'!W4 -> 2028-03-31 | G3: ='Capex Debt'!X4 -> 2028-06-30 | H3: ='Capex Debt'!Y4 -> 2028-09-30 | I3: ='Capex Debt'!Z4 -> 2028-12-31 | J3: ='Capex Debt'!AA4 -> 2029-03-31 | K3: ='Capex Debt'!AB4 -> 2029-06-30 | L3: ='Capex Debt'!AC4 -> 2029-09-30 | M3: ='Capex Debt'!AD4 -> 2029-12-31
B4: Financial Year Ending | C4: ='Capex Debt'!T5 -> 2028-03-31 | D4: ='Capex Debt'!U5 -> 2028-03-31 | E4: ='Capex Debt'!V5 -> 2028-03-31 | F4: ='Capex Debt'!W5 -> 2028-03-31 | G4: ='Capex Debt'!X5 -> 2029-03-31 | H4: ='Capex Debt'!Y5 -> 2029-03-31 | I4: ='Capex Debt'!Z5 -> 2029-03-31 | J4: ='Capex Debt'!AA5 -> 2029-03-31 | K4: ='Capex Debt'!AB5 -> 2030-03-31 | L4: ='Capex Debt'!AC5 -> 2030-03-31 | M4: ='Capex Debt'!AD5 -> 2030-03-31
D5: Phase 1 | H5: Phase 1+Phase 2 | L5: Phase 1+Phase 2+Phase 3
B6: Lease Revenue | C6: =Revenue!R9 -> 3.327944929 | D6: =Revenue!S9 -> 8.319862322 | E6: =Revenue!T9 -> 13.31177971 | F6: =Revenue!U9 -> 18.45345463 | G6: =Revenue!V9 -> 24.50573525 | H6: =Revenue!W9 -> 30.97587934 | I6: =Revenue!X9 -> 37.44602344 | J6: =Revenue!Y9 -> 44.33564854 | K6: =Revenue!Z9 -> 51.43501415 | L6: =Revenue!AA9 -> 58.53437975 | M6: =Revenue!AB9 -> 60.90083496
B7: Other Income | C7: =SUMIF('2d. Other Income (INR)'!$AX$454:$CD$454,C3,'2d. Other Income (INR)'!$AX$455:$CD$455)/10^7 -> 0 | D7: =SUMIF('2d. Other Income (INR)'!$AX$454:$CD$454,D3,'2d. Other Income (INR)'!$AX$455:$CD$455)/10^7 -> 0 | E7: =SUMIF('2d. Other Income (INR)'!$AX$454:$CD$454,E3,'2d. Other Income (INR)'!$AX$455:$CD$455)/10^7 -> 0 | F7: =SUMIF('2d. Other Income (INR)'!$AX$454:$CD$454,F3,'2d. Other Income (INR)'!$AX$455:$CD$455)/10^7 -> 0 | G7: =SUMIF('2d. Other Income (INR)'!$AX$454:$CD$454,G3,'2d. Other Income (INR)'!$AX$455:$CD$455)/10^7 -> 0 | H7: =SUMIF('2d. Other Income (INR)'!$AX$454:$CD$454,H3,'2d. Other Income (INR)'!$AX$455:$CD$455)/10^7 -> 0 | I7: =SUMIF('2d. Other Income (INR)'!$AX$454:$CD$454,I3,'2d. Other Income (INR)'!$AX$455:$CD$455)/10^7 -> 0 | J7: =SUMIF('2d. Other Income (INR)'!$AX$454:$CD$454,J3,'2d. Other Income (INR)'!$AX$455:$CD$455)/10^7 -> 0 | K7: =SUMIF('2d. Other Income (INR)'!$AX$454:$CD$454,K3,'2d. Other Income (INR)'!$AX$455:$CD$455)/10^7 -> 0 | L7: =SUMIF('2d. Other Income (INR)'!$AX$454:$CD$454,L3,'2d. Other Income (INR)'!$AX$455:$CD$455)/10^7 -> 0 | M7: =SUMIF('2d. Other Income (INR)'!$AX$454:$CD$454,M3,'2d. Other Income (INR)'!$AX$455:$CD$455)/10^7 -> 0
... 7 more rows

Sheet CF1
C2: FY Ending | E2: ='[4]P&L1'!F2 -> 2024-03-31 | F2: ='[4]P&L1'!G2 -> 2025-03-31 | G2: ='[4]P&L1'!H2 -> 2026-03-31 | H2: ='[4]P&L1'!I2 -> 2027-03-31 | I2: ='[4]P&L1'!J2 -> 2028-03-31 | J2: ='[4]P&L1'!K2 -> 2029-03-31 | K2: ='[4]P&L1'!L2 -> 2030-03-31 | L2: ='[4]P&L1'!M2 -> 2031-03-31 | M2: ='[4]P&L1'!N2 -> 2032-03-31 | N2: ='[4]P&L1'!O2 -> 2033-03-31 | O2: ='[4]P&L1'!P2 -> 2034-03-31 | P2: ='[4]P&L1'!Q2 -> 2035-03-31 | Q2: ='[4]P&L1'!R2 -> 2036-03-31 | R2: ='[4]P&L1'!S2 -> 2037-03-31 | S2: ='[4]P&L1'!T2 -> 2038-03-31 | T2: ='[4]P&L1'!U2 -> 2039-03-31 | U2: ='[4]P&L1'!V2 -> 2040-03-31 | V2: ='[4]P&L1'!W2 -> 2041-03-31 | W2: ='[4]P&L1'!X2 -> 2042-03-31 | X2: ='[4]P&L1'!Y2 -> 2043-03-31 | Y2: ='[4]P&L1'!Z2 -> 2044-03-31 | Z2: ='[4]P&L1'!AA2 -> 2045-03-31
C3: (Rs. Crore)
C4: Cash Inflow
B5: =SUM(E5:J5) -> 396.2291611 | C5: Equity | E5: ='[4]Capex Debt1'!F149 -> 101.912879 | F5: ='[4]Capex Debt1'!G149 -> 37.46398305 | G5: ='[4]Capex Debt1'!H149 -> 97.14257094 | H5: ='[4]Capex Debt1'!I149 -> 47.17893043 | I5: ='[4]Capex Debt1'!J149 -> 61.42209456 | J5: ='[4]Capex Debt1'!K149 -> 51.1087031 | K5: ='[4]Capex Debt1'!L149 -> 0 | L5: ='[4]Capex Debt1'!M149 -> 0 | M5: ='[4]Capex Debt1'!N149 -> 0 | N5: ='[4]Capex Debt1'!O149 -> 0 | O5: ='[4]Capex Debt1'!P149 -> 0 | P5: ='[4]Capex Debt1'!Q149 -> 0 | Q5: ='[4]Capex Debt1'!R149 -> 0 | R5: ='[4]Capex Debt1'!S149 -> 0 | S5: ='[4]Capex Debt1'!T149 -> 0 | T5: ='[4]Capex Debt1'!U149 -> 0 | U5: ='[4]Capex Debt1'!V149 -> 0 | V5: ='[4]Capex Debt1'!W149 -> 0 | W5: ='[4]Capex Debt1'!X149 -> 0 | X5: ='[4]Capex Debt1'!Y149 -> 0 | Y5: ='[4]Capex Debt1'!Z149 -> 0 | Z5: ='[4]Capex Debt1'!AA149 -> 0
B6: =SUM(E6:J6) -> 1404.81248 | C6: Debt | E6: =SUM(E7:E7) -> 77.12038564 | F6: =SUM(F7:F7) -> 417.0339435 | G6: 344.4145697 | H6: 167.2707533 | I6: 217.7692443 | J6: 181.2035837 | K6: 0 | L6: 0 | M6: 0 | N6: 0 | O6: 0 | P6: 0 | Q6: 0 | R6: 0 | S6: 0 | T6: 0 | U6: 0 | V6: 0 | W6: 0 | X6: 0 | Y6: 0 | Z6: 0
C7: RTL | E7: ='[4]Capex Debt1'!F150 -> 77.12038564 | F7: ='[4]Capex Debt1'!G150 -> 417.0339435 | G7: ='[4]Capex Debt1'!H150 -> 344.4145697 | H7: ='[4]Capex Debt1'!I150 -> 167.2707533 | I7: ='[4]Capex Debt1'!J150 -> 217.7692443 | J7: ='[4]Capex Debt1'!K150 -> 181.2035837 | K7: ='[4]Capex Debt1'!L150 -> 0 | L7: ='[4]Capex Debt1'!M150 -> 0 | M7: ='[4]Capex Debt1'!N150 -> 0 | N7: ='[4]Capex Debt1'!O150 -> 0 | O7: ='[4]Capex Debt1'!P150 -> 0 | P7: ='[4]Capex Debt1'!Q150 -> 0 | Q7: ='[4]Capex Debt1'!R150 -> 0 | R7: ='[4]Capex Debt1'!S150 -> 0 | S7: ='[4]Capex Debt1'!T150 -> 0 | T7: ='[4]Capex Debt1'!U150 -> 0 | U7: ='[4]Capex Debt1'!V150 -> 0 | V7: ='[4]Capex Debt1'!W150 -> 0 | W7: ='[4]Capex Debt1'!X150 -> 0 | X7: ='[4]Capex Debt1'!Y150 -> 0 | Y7: ='[4]Capex Debt1'!Z150 -> 0 | Z7: ='[4]Capex Debt1'!AA150 -> 0
... 5 more rows

Sheet CF
C2: FY Ending | E2: ='P&L'!F2 -> 2024-03-31 | F2: ='P&L'!G2 -> 2025-03-31 | G2: ='P&L'!H2 -> 2026-03-31 | H2: ='P&L'!I2 -> 2027-03-31 | I2: ='P&L'!J2 -> 2028-03-31 | J2: ='P&L'!K2 -> 2029-03-31 | K2: ='P&L'!L2 -> 2030-03-31 | L2: ='P&L'!M2 -> 2031-03-31 | M2: ='P&L'!N2 -> 2032-03-31 | N2: ='P&L'!O2 -> 2033-03-31 | O2: ='P&L'!P2 -> 2034-03-31 | P2: ='P&L'!Q2 -> 2035-03-31 | Q2: ='P&L'!R2 -> 2036-03-31 | R2: ='P&L'!S2 -> 2037-03-31 | S2: ='P&L'!T2 -> 2038-03-31 | T2: ='P&L'!U2 -> 2039-03-31 | U2: ='P&L'!V2 -> 2040-03-31 | V2: ='P&L'!W2 -> 2041-03-31 | W2: ='P&L'!X2 -> 2042-03-31 | X2: ='P&L'!Y2 -> 2043-03-31 | Y2: ='P&L'!Z2 -> 2044-03-31 | Z2: ='P&L'!AA2 -> 2045-03-31
C3: (Rs. Crore)
C4: Cash Inflow
B5: =SUM(E5:J5) -> 396.2288432 | C5: Equity | E5: ='Capex Debt'!F145 -> 101.912879 | F5: ='Capex Debt'!G145 -> 37.46389589 | G5: ='Capex Debt'!H145 -> 97.14250272 | H5: ='Capex Debt'!I145 -> 47.17886718 | I5: ='Capex Debt'!J145 -> 61.42203597 | J5: ='Capex Debt'!K145 -> 51.10866243 | K5: ='Capex Debt'!L145 -> 0 | L5: ='Capex Debt'!M145 -> 0 | M5: ='Capex Debt'!N145 -> 0 | N5: ='Capex Debt'!O145 -> 0 | O5: ='Capex Debt'!P145 -> 0 | P5: ='Capex Debt'!Q145 -> 0 | Q5: ='Capex Debt'!R145 -> 0 | R5: ='Capex Debt'!S145 -> 0 | S5: ='Capex Debt'!T145 -> 0 | T5: ='Capex Debt'!U145 -> 0 | U5: ='Capex Debt'!V145 -> 0 | V5: ='Capex Debt'!W145 -> 0 | W5: ='Capex Debt'!X145 -> 0 | X5: ='Capex Debt'!Y145 -> 0 | Y5: ='Capex Debt'!Z145 -> 0 | Z5: ='Capex Debt'!AA145 -> 0
B6: =SUM(E6:J6) -> 1404.811353 | C6: Debt | E6: =SUM(E7:E7) -> 77.12038495 | F6: =SUM(F7:F7) -> 417.0336351 | G6: 344.4143278 | H6: 167.2705291 | I6: 217.7690366 | J6: 181.2034395 | K6: 0 | L6: 0 | M6: 0 | N6: 0 | O6: 0 | P6: 0 | Q6: 0 | R6: 0 | S6: 0 | T6: 0 | U6: 0 | V6: 0 | W6: 0 | X6: 0 | Y6: 0 | Z6: 0
C7: RTL | E7: ='Capex Debt'!F146 -> 77.12038495 | F7: ='Capex Debt'!G146 -> 417.0336351 | G7: ='Capex Debt'!H146 -> 344.4143278 | H7: ='Capex Debt'!I146 -> 167.2705291 | I7: ='Capex Debt'!J146 -> 217.7690366 | J7: ='Capex Debt'!K146 -> 181.2034395 | K7: ='Capex Debt'!L146 -> 0 | L7: ='Capex Debt'!M146 -> 0 | M7: ='Capex Debt'!N146 -> 0 | N7: ='Capex Debt'!O146 -> 0 | O7: ='Capex Debt'!P146 -> 0 | P7: ='Capex Debt'!Q146 -> 0 | Q7: ='Capex Debt'!R146 -> 0 | R7: ='Capex Debt'!S146 -> 0 | S7: ='Capex Debt'!T146 -> 0 | T7: ='Capex Debt'!U146 -> 0 | U7: ='Capex Debt'!V146 -> 0 | V7: ='Capex Debt'!W146 -> 0 | W7: ='Capex Debt'!X146 -> 0 | X7: ='Capex Debt'!Y146 -> 0 | Y7: ='Capex Debt'!Z146 -> 0 | Z7: ='Capex Debt'!AA146 -> 0
... 5 more rows

Sheet P&L1
C2: FY Ending | F2: =[4]Timelines1!C13 -> 2024-03-31 | G2: =EDATE(F2,12) -> 2025-03-31 | H2: =EDATE(G2,12) -> 2026-03-31 | I2: 2027-03-31 | J2: 2028-03-31 | K2: 2029-03-31 | L2: 2030-03-31 | M2: 2031-03-31 | N2: 2032-03-31 | O2: 2033-03-31 | P2: =EDATE(O2,12) -> 2034-03-31 | Q2: 2035-03-31 | R2: 2036-03-31 | S2: 2037-03-31 | T2: 2038-03-31 | U2: 2039-03-31 | V2: 2040-03-31 | W2: 2041-03-31 | X2: 2042-03-31 | Y2: 2043-03-31 | Z2: 2044-03-31 | AA2: 2045-03-31
C3: (Rs. Crore)
C4: Total Gross Revenue | D4: INR Crore | F4: =[4]Revenue1!D17*(1-[4]Summary2!$L$6) -> 0 | G4: =[4]Revenue1!E17*(1-[4]Summary2!$L$6) -> 0 | H4: =[4]Revenue1!F17*(1-[4]Summary2!$L$6) -> 0 | I4: =[4]Revenue1!G17*(1-[4]Summary2!$L$6) -> 0 | J4: =[4]Revenue1!H17*(1-[4]Summary2!$L$6) -> 46.82378719 | K4: =[4]Revenue1!I17*(1-[4]Summary2!$L$6) -> 147.6804478 | L4: =[4]Revenue1!J17*(1-[4]Summary2!$L$6) -> 248.8118115 | M4: =[4]Revenue1!K17*(1-[4]Summary2!$L$6) -> 267.9084628 | N4: =[4]Revenue1!L17*(1-[4]Summary2!$L$6) -> 281.8053025 | O4: =[4]Revenue1!M17*(1-[4]Summary2!$L$6) -> 300.8568693 | P4: =[4]Revenue1!N17*(1-[4]Summary2!$L$6) -> 316.9370089 | Q4: =[4]Revenue1!O17*(1-[4]Summary2!$L$6) -> 335.1316993 | R4: =[4]Revenue1!P17*(1-[4]Summary2!$L$6) -> 343.6760953 | S4: =R4*(1+'[4]Rev Assumptions1'!$D$58) -> 353.9863781 | T4: =S4*(1+'[4]Rev Assumptions1'!$D$58) -> 364.6059695 | U4: =T4*(1+'[4]Rev Assumptions1'!$D$58) -> 375.5441486 | V4: =U4*(1+'[4]Rev Assumptions1'!$D$58) -> 386.810473 | W4: =V4*(1+'[4]Rev Assumptions1'!$D$58) -> 398.4147872 | X4: =W4*(1+'[4]Rev Assumptions1'!$D$58) -> 410.3672308 | Y4: =X4*(1+'[4]Rev Assumptions1'!$D$58) -> 422.6782478 | Z4: =Y4*(1+'[4]Rev Assumptions1'!$D$58) -> 435.3585952 | AA4: =Z4*(1+'[4]Rev Assumptions1'!$D$58) -> 448.419353
C5: TDS | F5: =F4*'[4]Rev Assumptions1'!$D$45 -> 0 | G5: =G4*'[4]Rev Assumptions1'!$D$45 -> 0 | H5: =H4*'[4]Rev Assumptions1'!$D$45 -> 0 | I5: =I4*'[4]Rev Assumptions1'!$D$45 -> 0 | J5: =J4*'[4]Rev Assumptions1'!$D$45 -> 0 | K5: =K4*'[4]Rev Assumptions1'!$D$45 -> 0 | L5: =L4*'[4]Rev Assumptions1'!$D$45 -> 0 | M5: =M4*'[4]Rev Assumptions1'!$D$45 -> 0 | N5: =N4*'[4]Rev Assumptions1'!$D$45 -> 0 | O5: =O4*'[4]Rev Assumptions1'!$D$45 -> 0 | P5: =P4*'[4]Rev Assumptions1'!$D$45 -> 0 | Q5: =Q4*'[4]Rev Assumptions1'!$D$45 -> 0 | R5: =R4*'[4]Rev Assumptions1'!$D$45 -> 0 | S5: =S4*'[4]Rev Assumptions1'!$D$45 -> 0 | T5: =T4*'[4]Rev Assumptions1'!$D$45 -> 0 | U5: =U4*'[4]Rev Assumptions1'!$D$45 -> 0 | V5: =V4*'[4]Rev Assumptions1'!$D$45 -> 0 | W5: =W4*'[4]Rev Assumptions1'!$D$45 -> 0 | X5: =X4*'[4]Rev Assumptions1'!$D$45 -> 0 | Y5: =Y4*'[4]Rev Assumptions1'!$D$45 -> 0 | Z5: =Z4*'[4]Rev Assumptions1'!$D$45 -> 0 | AA5: =AA4*'[4]Rev Assumptions1'!$D$45 -> 0
C6: Total Net Revenue | F6: =F4 -> 0 | G6: =G4 -> 0 | H6: 0 | I6: 0 | J6: 46.82378719 | K6: 147.6804478 | L6: 248.8118115 | M6: 267.9084628 | N6: 281.8053025 | O6: 300.8568693 | P6: 316.9370089 | Q6: 335.1316993 | R6: 343.6760953 | S6: 353.9863781 | T6: 364.6059695 | U6: 375.5441486 | V6: 386.810473 | W6: 398.4147872 | X6: 410.3672308 | Y6: 422.6782478 | Z6: 435.3585952 | AA6: 448.419353
C7: Revenue from Operations - Total | D7: INR Crore | F7: =F6 -> 0 | G7: =G6 -> 0 | H7: 0 | I7: 0 | J7: 46.82378719 | K7: 147.6804478 | L7: 248.8118115 | M7: 267.9084628 | N7: 281.8053025 | O7: 300.8568693 | P7: 316.9370089 | Q7: 335.1316993 | R7: 343.6760953 | S7: 353.9863781 | T7: 364.6059695 | U7: 375.5441486 | V7: 386.810473 | W7: 398.4147872 | X7: 410.3672308 | Y7: 422.6782478 | Z7: 435.3585952 | AA7: 448.419353
... 8 more rows

Sheet P&L
C2: FY Ending | F2: =Timelines!C13 -> 2024-03-31 | G2: =EDATE(F2,12) -> 2025-03-31 | H2: =EDATE(G2,12) -> 2026-03-31 | I2: 2027-03-31 | J2: 2028-03-31 | K2: 2029-03-31 | L2: 2030-03-31 | M2: 2031-03-31 | N2: 2032-03-31 | O2: 2033-03-31 | P2: =EDATE(O2,12) -> 2034-03-31 | Q2: 2035-03-31 | R2: 2036-03-31 | S2: =EDATE(R2,12) -> 2037-03-31 | T2: =EDATE(S2,12) -> 2038-03-31 | U2: =EDATE(T2,12) -> 2039-03-31 | V2: =EDATE(U2,12) -> 2040-03-31 | W2: =EDATE(V2,12) -> 2041-03-31 | X2: =EDATE(W2,12) -> 2042-03-31 | Y2: =EDATE(X2,12) -> 2043-03-31 | Z2: =EDATE(Y2,12) -> 2044-03-31 | AA2: =EDATE(Z2,12) -> 2045-03-31
C3: (Rs. Crore)
C4: Total Gross Revenue | D4: INR Crore | F4: =Revenue!D17*(1-Summary!$L$6) -> 0 | G4: =Revenue!E17*(1-Summary!$L$6) -> 0 | H4: =Revenue!F17*(1-Summary!$L$6) -> 0 | I4: =Revenue!G17*(1-Summary!$L$6) -> 0 | J4: =Revenue!H17*(1-Summary!$L$6) -> 43.41304159 | K4: =Revenue!I17*(1-Summary!$L$6) -> 137.2632866 | L4: =Revenue!J17*(1-Summary!$L$6) -> 231.7710638 | M4: =Revenue!K17*(1-Summary!$L$6) -> 250.7235087 | N4: =Revenue!L17*(1-Summary!$L$6) -> 266.1158786 | O4: =Revenue!M17*(1-Summary!$L$6) -> 287.1588774 | P4: =Revenue!N17*(1-Summary!$L$6) -> 305.7880469 | Q4: =Revenue!O17*(1-Summary!$L$6) -> 328.0281784 | R4: =Revenue!P17*(1-Summary!$L$6) -> 339.7839434 | S4: =Revenue!Q17*(1-Summary!$L$6) -> 303.0226267 | T4: =Revenue!R17*(1-Summary!$L$6) -> 225.6526349 | U4: =Revenue!S17*(1-Summary!$L$6) -> 152.5666752 | V4: =Revenue!T17*(1-Summary!$L$6) -> 151.339189 | W4: =Revenue!U17*(1-Summary!$L$6) -> 152.497226 | X4: =Revenue!V17*(1-Summary!$L$6) -> 152.497226 | Y4: =Revenue!W17*(1-Summary!$L$6) -> 124.885603 | Z4: =Revenue!X17*(1-Summary!$L$6) -> 65.99655433 | AA4: =Revenue!Y17*(1-Summary!$L$6) -> 7.355354729
C5: TDS | F5: =F4*'Rev Assumptions'!$D$45 -> 0 | G5: =G4*'Rev Assumptions'!$D$45 -> 0 | H5: =H4*'Rev Assumptions'!$D$45 -> 0 | I5: =I4*'Rev Assumptions'!$D$45 -> 0 | J5: =J4*'Rev Assumptions'!$D$45 -> 0 | K5: =K4*'Rev Assumptions'!$D$45 -> 0 | L5: =L4*'Rev Assumptions'!$D$45 -> 0 | M5: =M4*'Rev Assumptions'!$D$45 -> 0 | N5: =N4*'Rev Assumptions'!$D$45 -> 0 | O5: =O4*'Rev Assumptions'!$D$45 -> 0 | P5: =P4*'Rev Assumptions'!$D$45 -> 0 | Q5: =Q4*'Rev Assumptions'!$D$45 -> 0 | R5: =R4*'Rev Assumptions'!$D$45 -> 0 | S5: =S4*'Rev Assumptions'!$D$45 -> 0 | T5: =T4*'Rev Assumptions'!$D$45 -> 0 | U5: =U4*'Rev Assumptions'!$D$45 -> 0 | V5: =V4*'Rev Assumptions'!$D$45 -> 0 | W5: =W4*'Rev Assumptions'!$D$45 -> 0 | X5: =X4*'Rev Assumptions'!$D$45 -> 0 | Y5: =Y4*'Rev Assumptions'!$D$45 -> 0 | Z5: =Z4*'Rev Assumptions'!$D$45 -> 0 | AA5: =AA4*'Rev Assumptions'!$D$45 -> 0
C6: Total Net Revenue | F6: =F4 -> 0 | G6: =G4 -> 0 | H6: 0 | I6: 0 | J6: 43.41304159 | K6: 137.2632866 | L6: 231.7710638 | M6: 250.7235087 | N6: 266.1158786 | O6: 287.1588774 | P6: 305.7880469 | Q6: 328.0281784 | R6: 339.7839434 | S6: 303.0226267 | T6: 225.6526349 | U6: 152.5666752 | V6: 151.339189 | W6: 152.497226 | X6: 152.497226 | Y6: 124.885603 | Z6: 65.99655433 | AA6: 7.355354729
... 5 more rows

Sheet BS1
C2: FY Ending | E2: =[4]CF1!E2 -> 2024-03-31 | F2: =[4]CF1!F2 -> 2025-03-31 | G2: =[4]CF1!G2 -> 2026-03-31 | H2: =[4]CF1!H2 -> 2027-03-31 | I2: =[4]CF1!I2 -> 2028-03-31 | J2: =[4]CF1!J2 -> 2029-03-31 | K2: =[4]CF1!K2 -> 2030-03-31 | L2: =[4]CF1!L2 -> 2031-03-31 | M2: =[4]CF1!M2 -> 2032-03-31 | N2: =[4]CF1!N2 -> 2033-03-31 | O2: =[4]CF1!O2 -> 2034-03-31 | P2: =[4]CF1!P2 -> 2035-03-31 | Q2: =[4]CF1!Q2 -> 2036-03-31 | R2: =[4]CF1!R2 -> 2037-03-31 | S2: =[4]CF1!S2 -> 2038-03-31 | T2: =[4]CF1!T2 -> 2039-03-31 | U2: =[4]CF1!U2 -> 2040-03-31 | V2: =[4]CF1!V2 -> 2041-03-31 | W2: =[4]CF1!W2 -> 2042-03-31 | X2: =[4]CF1!X2 -> 2043-03-31 | Y2: =[4]CF1!Y2 -> 2044-03-31 | Z2: =[4]CF1!Z2 -> 2045-03-31
C3: (Rs. Crore)
C4: Sources of Funds
C5: Equity | E5: =[4]CF1!E5+D5 -> 101.912879 | F5: =[4]CF1!F5+E5 -> 139.3768621 | G5: =[4]CF1!G5+F5 -> 236.519433 | H5: =[4]CF1!H5+G5 -> 283.6983634 | I5: =[4]CF1!I5+H5 -> 345.120458 | J5: =[4]CF1!J5+I5 -> 396.2291611 | K5: =[4]CF1!K5+J5 -> 396.2291611 | L5: =[4]CF1!L5+K5 -> 396.2291611 | M5: =[4]CF1!M5+L5 -> 396.2291611 | N5: =[4]CF1!N5+M5 -> 396.2291611 | O5: =[4]CF1!O5+N5 -> 396.2291611 | P5: =[4]CF1!P5+O5 -> 396.2291611 | Q5: =[4]CF1!Q5+P5 -> 396.2291611 | R5: =[4]CF1!R5+Q5 -> 396.2291611 | S5: =[4]CF1!S5+R5 -> 396.2291611 | T5: =[4]CF1!T5+S5 -> 396.2291611 | U5: =[4]CF1!U5+T5 -> 396.2291611 | V5: =[4]CF1!V5+U5 -> 396.2291611 | W5: =[4]CF1!W5+V5 -> 396.2291611 | X5: =[4]CF1!X5+W5 -> 396.2291611 | Y5: =[4]CF1!Y5+X5 -> 396.2291611 | Z5: =[4]CF1!Z5+Y5 -> 396.2291611
C6: R&S | E6: =D6+[4]CF1!E10 -> 0 | F6: =E6+[4]CF1!F10 -> 0 | G6: =F6+[4]CF1!G10 -> 0 | H6: =G6+[4]CF1!H10 -> 0 | I6: =H6+[4]CF1!I10 -> 14.54598826 | J6: =I6+[4]CF1!J10 -> 64.85861833 | K6: =J6+[4]CF1!K10 -> 93.04519059 | L6: =K6+[4]CF1!L10 -> 82.67561095 | M6: =L6+[4]CF1!M10 -> 84.66337778 | N6: =M6+[4]CF1!N10 -> 100.9500275 | O6: =N6+[4]CF1!O10 -> 129.6907206 | P6: =O6+[4]CF1!P10 -> 172.9288775 | Q6: =P6+[4]CF1!Q10 -> 223.8407424 | R6: =Q6+[4]CF1!R10 -> 286.3779997 | S6: =R6+[4]CF1!S10 -> 361.5427872 | T6: =S6+[4]CF1!T10 -> 450.2560633 | U6: =T6+[4]CF1!U10 -> 554.1913665 | V6: =U6+[4]CF1!V10 -> 673.9927757 | W6: =V6+[4]CF1!W10 -> 809.5050318 | X6: =W6+[4]CF1!X10 -> 961.3029425 | Y6: =X6+[4]CF1!Y10 -> 1131.858604 | Z6: =Y6+[4]CF1!Z10 -> 1314.273499
C7: Net Worth | E7: =SUM(E5:E6) -> 101.912879 | F7: =SUM(F5:F6) -> 139.3768621 | G7: 236.519433 | H7: 283.6983634 | I7: 359.6664462 | J7: 461.0877794 | K7: 489.2743517 | L7: 478.904772 | M7: 480.8925389 | N7: 497.1791886 | O7: 525.9198817 | P7: 569.1580386 | Q7: 620.0699035 | R7: 682.6071608 | S7: 757.7719483 | T7: 846.4852243 | U7: 950.4205276 | V7: 1070.221937 | W7: 1205.734193 | X7: 1357.532104 | Y7: 1528.087765 | Z7: 1710.50266
... 7 more rows

Sheet BS
C2: FY Ending | E2: =CF!E2 -> 2024-03-31 | F2: =CF!F2 -> 2025-03-31 | G2: =CF!G2 -> 2026-03-31 | H2: =CF!H2 -> 2027-03-31 | I2: =CF!I2 -> 2028-03-31 | J2: =CF!J2 -> 2029-03-31 | K2: =CF!K2 -> 2030-03-31 | L2: =CF!L2 -> 2031-03-31 | M2: =CF!M2 -> 2032-03-31 | N2: =CF!N2 -> 2033-03-31 | O2: =CF!O2 -> 2034-03-31 | P2: =CF!P2 -> 2035-03-31 | Q2: =CF!Q2 -> 2036-03-31 | R2: =CF!R2 -> 2037-03-31 | S2: =CF!S2 -> 2038-03-31 | T2: =CF!T2 -> 2039-03-31 | U2: =CF!U2 -> 2040-03-31 | V2: =CF!V2 -> 2041-03-31 | W2: =CF!W2 -> 2042-03-31 | X2: =CF!X2 -> 2043-03-31 | Y2: =CF!Y2 -> 2044-03-31 | Z2: =CF!Z2 -> 2045-03-31
C3: (Rs. Crore)
C4: Sources of Funds
C5: Equity | E5: =CF!E5+D5 -> 101.912879 | F5: =CF!F5+E5 -> 139.3767749 | G5: =CF!G5+F5 -> 236.5192776 | H5: =CF!H5+G5 -> 283.6981448 | I5: =CF!I5+H5 -> 345.1201808 | J5: =CF!J5+I5 -> 396.2288432 | K5: =CF!K5+J5 -> 396.2288432 | L5: =CF!L5+K5 -> 396.2288432 | M5: =CF!M5+L5 -> 396.2288432 | N5: =CF!N5+M5 -> 396.2288432 | O5: =CF!O5+N5 -> 396.2288432 | P5: =CF!P5+O5 -> 396.2288432 | Q5: =CF!Q5+P5 -> 396.2288432 | R5: =CF!R5+Q5 -> 396.2288432 | S5: =CF!S5+R5 -> 396.2288432 | T5: =CF!T5+S5 -> 396.2288432 | U5: =CF!U5+T5 -> 396.2288432 | V5: =CF!V5+U5 -> 396.2288432 | W5: =CF!W5+V5 -> 396.2288432 | X5: =CF!X5+W5 -> 396.2288432 | Y5: =CF!Y5+X5 -> 396.2288432 | Z5: =CF!Z5+Y5 -> 396.2288432
C6: R&S | E6: =D6+CF!E10 -> 0 | F6: =E6+CF!F10 -> 0 | G6: =F6+CF!G10 -> 0 | H6: =G6+CF!H10 -> 0 | I6: =H6+CF!I10 -> 11.36636281 | J6: =I6+CF!J10 -> 51.67509402 | K6: =J6+CF!K10 -> 49.12718179 | L6: =K6+CF!L10 -> 23.89092214 | M6: =L6+CF!M10 -> 12.24366697 | N6: =M6+CF!N10 -> 27.98858947 | O6: =N6+CF!O10 -> 68.56270357 | P6: =O6+CF!P10 -> 135.2128886 | Q6: =P6+CF!Q10 -> 221.2976393 | R6: =Q6+CF!R10 -> 294.4021705 | S6: =R6+CF!S10 -> 320.3334043 | T6: =S6+CF!T10 -> 294.6934462 | U6: =T6+CF!U10 -> 263.692398 | V6: =U6+CF!V10 -> 244.5491157 | W6: =V6+CF!W10 -> 237.2612378 | X6: =W6+CF!X10 -> 218.5620874 | Y6: =X6+CF!Y10 -> 161.5376883 | Z6: =Y6+CF!Z10 -> 52.42793107
C7: Net Worth | E7: =SUM(E5:E6) -> 101.912879 | F7: =SUM(F5:F6) -> 139.3767749 | G7: 236.5192776 | H7: 283.6981448 | I7: 356.4865436 | J7: 447.9039372 | K7: 445.356025 | L7: 420.1197653 | M7: 408.4725102 | N7: 424.2174327 | O7: 464.7915468 | P7: 531.4417318 | Q7: 617.5264825 | R7: 690.6310137 | S7: =SUM(S5:S6) -> 716.5622475 | T7: 690.9222894 | U7: 659.9212412 | V7: 640.7779589 | W7: 633.490081 | X7: =SUM(X5:X6) -> 614.7909305 | Y7: 557.7665315 | Z7: 448.6567743
... 7 more rows

Sheet DSCR1
C2: Financial Year Ending | E2: ='[4]Capex Debt1'!F5 -> 2024-03-31 | F2: =EOMONTH(E2,12) -> 2025-03-31 | G2: =EOMONTH(F2,12) -> 2026-03-31 | H2: 2027-03-31 | I2: 2028-03-31 | J2: 2029-03-31 | K2: 2030-03-31 | L2: 2031-03-31 | M2: 2032-03-31 | N2: 2033-03-31 | O2: 2034-03-31 | P2: 2035-03-31 | Q2: 2036-03-31 | R2: 2037-03-31 | S2: 2038-03-31 | T2: 2039-03-31 | U2: 2040-03-31 | V2: 2041-03-31 | W2: 2042-03-31 | X2: 2043-03-31 | Y2: 2044-03-31 | Z2: 2045-03-31
C3: Debt Flag | E3: =IF(E14>0,1,0) -> 0 | F3: =IF(F14>0,1,0) -> 0 | G3: 0 | H3: 0 | I3: 0 | J3: 0 | K3: 1 | L3: 1 | M3: 1 | N3: 1 | O3: 1 | P3: 1 | Q3: 1 | R3: 1 | S3: 1 | T3: 1 | U3: 1 | V3: 1 | W3: 1 | X3: 1 | Y3: 1 | Z3: 0
C4: (Rs. Crore)
C5: Cash for debt servicing
C6: PAT | E6: ='[4]P&L1'!F27 -> 0 | F6: ='[4]P&L1'!G27 -> 0 | G6: ='[4]P&L1'!H27 -> 0 | H6: ='[4]P&L1'!I27 -> 0 | I6: ='[4]P&L1'!J27 -> 14.54598826 | J6: ='[4]P&L1'!K27 -> 50.31263007 | K6: ='[4]P&L1'!L27 -> 28.18657226 | L6: ='[4]P&L1'!M27 -> -10.36957965 | M6: ='[4]P&L1'!N27 -> 1.98776683 | N6: ='[4]P&L1'!O27 -> 16.28664974 | O6: ='[4]P&L1'!P27 -> 28.74069313 | P6: ='[4]P&L1'!Q27 -> 43.23815682 | Q6: ='[4]P&L1'!R27 -> 50.91186496 | R6: ='[4]P&L1'!S27 -> 62.5372573 | S6: ='[4]P&L1'!T27 -> 75.16478746 | T6: ='[4]P&L1'!U27 -> 88.71327607 | U6: ='[4]P&L1'!V27 -> 103.9353032 | V6: ='[4]P&L1'!W27 -> 119.8014092 | W6: ='[4]P&L1'!X27 -> 135.5122561 | X6: ='[4]P&L1'!Y27 -> 151.7979107 | Y6: ='[4]P&L1'!Z27 -> 170.5556616 | Z6: ='[4]P&L1'!AA27 -> 182.4148952
C7: Deferred Tax | E7: ='[4]P&L1'!F26 -> 0 | F7: ='[4]P&L1'!G26 -> 0 | G7: ='[4]P&L1'!H26 -> 0 | H7: ='[4]P&L1'!I26 -> 0 | I7: ='[4]P&L1'!J26 -> 0 | J7: ='[4]P&L1'!K26 -> 8.623411862 | K7: ='[4]P&L1'!L26 -> 9.479896978 | L7: ='[4]P&L1'!M26 -> 0 | M7: ='[4]P&L1'!N26 -> 0.6685390684 | N7: ='[4]P&L1'!O26 -> 5.477635245 | O7: ='[4]P&L1'!P26 -> 9.666262624 | P7: ='[4]P&L1'!Q26 -> 14.54214682 | Q7: ='[4]P&L1'!R26 -> 17.1230198 | R7: ='[4]P&L1'!S26 -> 21.0329497 | S7: ='[4]P&L1'!T26 -> 25.27992531 | T7: ='[4]P&L1'!U26 -> 29.83664385 | U7: ='[4]P&L1'!V26 -> 34.95621809 | V7: ='[4]P&L1'!W26 -> 23.38023255 | W7: ='[4]P&L1'!X26 -> -20.82237177 | X7: ='[4]P&L1'!Y26 -> -20.82237177 | Y7: ='[4]P&L1'!Z26 -> -20.82237177 | Z7: ='[4]P&L1'!AA26 -> -20.82237177
... 7 more rows

Sheet DSCR
B2: Financial Year Ending | D2: ='Capex Debt'!F5 -> 2024-03-31 | E2: =EOMONTH(D2,12) -> 2025-03-31 | F2: =EOMONTH(E2,12) -> 2026-03-31 | G2: 2027-03-31 | H2: 2028-03-31 | I2: 2029-03-31 | J2: 2030-03-31 | K2: 2031-03-31 | L2: 2032-03-31 | M2: 2033-03-31 | N2: 2034-03-31 | O2: 2035-03-31 | P2: 2036-03-31 | Q2: 2037-03-31 | R2: 2038-03-31 | S2: 2039-03-31 | T2: 2040-03-31 | U2: 2041-03-31 | V2: 2042-03-31 | W2: 2043-03-31 | X2: 2044-03-31 | Y2: 2045-03-31
B3: Debt Flag | D3: =IF(D13>0,1,0) -> 0 | E3: =IF(E13>0,1,0) -> 0 | F3: 0 | G3: 0 | H3: 0 | I3: 0 | J3: 1 | K3: 1 | L3: 1 | M3: 1 | N3: 1 | O3: 1 | P3: 1 | Q3: 1 | R3: 1 | S3: 1 | T3: 1 | U3: 1 | V3: 1 | W3: 0 | X3: 0 | Y3: 0
B4: (Rs. Crore)
B5: Cash for debt servicing
B6: PAT | D6: ='P&L'!F29 -> 0 | E6: ='P&L'!G29 -> 0 | F6: ='P&L'!H29 -> 0 | G6: ='P&L'!I29 -> 0 | H6: ='P&L'!J29 -> 11.36636281 | I6: ='P&L'!K29 -> 40.30873121 | J6: ='P&L'!L29 -> -2.547912227 | K6: ='P&L'!M29 -> -25.23625966 | L6: ='P&L'!N29 -> -11.64725516 | M6: ='P&L'!O29 -> 15.74492249 | N6: ='P&L'!P29 -> 40.57411411 | O6: ='P&L'!Q29 -> 66.650185 | P6: ='P&L'!R29 -> 86.08475072 | Q6: ='P&L'!S29 -> 73.10453125 | R6: ='P&L'!T29 -> 25.93123376 | S6: ='P&L'!U29 -> -25.63995813 | T6: ='P&L'!V29 -> -31.0010482 | U6: ='P&L'!W29 -> -19.14328231 | V6: ='P&L'!X29 -> -7.287877832 | W6: ='P&L'!Y29 -> -18.69915048 | X6: ='P&L'!Z29 -> -57.02439902 | Y6: ='P&L'!AA29 -> -109.1097573
B7: Deferred Tax | D7: ='P&L'!F28 -> 0 | E7: ='P&L'!G28 -> 0 | F7: ='P&L'!H28 -> 0 | G7: ='P&L'!I28 -> 0 | H7: ='P&L'!J28 -> 0 | I7: ='P&L'!K28 -> 8.623404245 | J7: ='P&L'!L28 -> -12.38061631 | K7: ='P&L'!M28 -> -3.466765247 | L7: ='P&L'!N28 -> 5.73631084 | M7: ='P&L'!O28 -> 7.283446334 | N7: ='P&L'!P28 -> 5.901102699 | O7: ='P&L'!Q28 -> 6.78538058 | P7: ='P&L'!R28 -> 4.25425876 | Q7: ='P&L'!S28 -> -5.796415275 | R7: ='P&L'!T28 -> -13.91615046 | S7: ='P&L'!U28 -> -12.66439602 | T7: ='P&L'!V28 -> 2.456296824 | U7: ='P&L'!W28 -> 3.161965113 | V7: ='P&L'!X28 -> 2.923835819 | W7: ='P&L'!Y28 -> -4.8212798 | X7: ='P&L'!Z28 -> -11.26827942 | Y7: ='P&L'!AA28 -> -3.634454633
... 7 more rows

Sheet Avg Maturity1
E1: Disbursement | F1: Repayment | G1: Balance | H1: Days factor | I1: Product
C2: =M18 -> 2024-01-31 | E2: 25.70676777 | G2: =E2-F2 -> 25.70676777
C3: =EOMONTH(C2,1) -> 2024-02-29 | E3: 25.70676777 | G3: =G2+E3-F3 -> 51.41353554 | H3: =(C3-C2)+1 -> 30 | I3: =G3*H3 -> 1542.406066
C4: =EOMONTH(C3,1) -> 2024-03-31 | E4: 25.70676777 | G4: =G3+E4-F4 -> 77.12030331 | H4: =(C4-C3) -> 31 | I4: =G4*H4 -> 2390.729403
C5: 2024-04-30 | E5: 24.18840519 | G5: =G4+E5-F5 -> 101.3087085 | H5: =(C5-C4) -> 30 | I5: 3039.261255
C6: 2024-05-31 | E6: 24.18840519 | G6: 125.4971137 | H6: 31 | I6: =G6*H6 -> 3890.410524
C7: 2024-06-30 | E7: 24.18840519 | G7: 149.6855189 | H7: 30 | I7: 4490.565566
... 8 more rows

Sheet Avg Maturity
E1: Disbursement | F1: Repayment | G1: Balance | H1: Days factor | I1: Product
C2: =M18 -> 2024-01-31 | E2: 23.91837644 | G2: =E2-F2 -> 23.91837644
C3: =EOMONTH(C2,1) -> 2024-02-29 | E3: 23.91837644 | G3: =G2+E3-F3 -> 47.83675288 | H3: =(C3-C2)+1 -> 30 | I3: =G3*H3 -> 1435.102586
C4: =EOMONTH(C3,1) -> 2024-03-31 | E4: 23.91837644 | G4: =G3+E4-F4 -> 71.75512932 | H4: =(C4-C3) -> 31 | I4: =G4*H4 -> 2224.409009
C5: 2024-04-30 | E5: 24.29795916 | G5: 96.05308849 | H5: =(C5-C4) -> 30 | I5: 2881.592655
C6: 2024-05-31 | E6: 24.29795916 | G6: 120.3510476 | H6: 31 | I6: =G6*H6 -> 3730.882477
C7: 2024-06-30 | E7: 24.29795916 | G7: 144.6490068 | H7: 30 | I7: 4339.470204
... 8 more rows

Sheet Power and water requirement1
C3: FYE | F3: ='[4]P&L1'!F2 -> 2024-03-31 | G3: =EOMONTH(F3,12) -> 2025-03-31 | H3: =EOMONTH(G3,12) -> 2026-03-31 | I3: 2027-03-31 | J3: 2028-03-31 | K3: 2029-03-31 | L3: 2030-03-31 | M3: 2031-03-31 | N3: 2032-03-31 | O3: =EOMONTH(N3,12) -> 2033-03-31 | P3: 2034-03-31 | Q3: 2035-03-31 | R3: 2036-03-31 | S3: 2037-03-31 | T3: 2038-03-31 | U3: =EOMONTH(T3,12) -> 2039-03-31 | V3: 2040-03-31 | W3: 2041-03-31 | X3: 2042-03-31 | Y3: =EOMONTH(X3,12) -> 2043-03-31 | Z3: 2044-03-31 | AA3: 2045-03-31
B4: Leased IT load*PUE | C4: Power Requirement | D4: MW | F4: ='[4]2b. Lease Schedule (IT Load)1'!J248/1000*'[4]Rev Assumptions1'!$D$6 -> 0 | G4: ='[4]2b. Lease Schedule (IT Load)1'!K248/1000*'[4]Rev Assumptions1'!$D$6 -> 0 | H4: ='[4]2b. Lease Schedule (IT Load)1'!L248/1000*'[4]Rev Assumptions1'!$D$6 -> 0 | I4: ='[4]2b. Lease Schedule (IT Load)1'!M248/1000*'[4]Rev Assumptions1'!$D$6 -> 0 | J4: ='[4]2b. Lease Schedule (IT Load)1'!N248/1000*'[4]Rev Assumptions1'!$D$6 -> 12.5388 | K4: ='[4]2b. Lease Schedule (IT Load)1'!O248/1000*'[4]Rev Assumptions1'!$D$6 -> 28.2852 | L4: ='[4]2b. Lease Schedule (IT Load)1'!P248/1000*'[4]Rev Assumptions1'!$D$6 -> 36.45 | M4: ='[4]2b. Lease Schedule (IT Load)1'!Q248/1000*'[4]Rev Assumptions1'!$D$6 -> 36.45 | N4: ='[4]2b. Lease Schedule (IT Load)1'!R248/1000*'[4]Rev Assumptions1'!$D$6 -> 36.45 | O4: ='[4]2b. Lease Schedule (IT Load)1'!S248/1000*'[4]Rev Assumptions1'!$D$6 -> 36.45 | P4: ='[4]2b. Lease Schedule (IT Load)1'!T248/1000*'[4]Rev Assumptions1'!$D$6 -> 36.45 | Q4: ='[4]2b. Lease Schedule (IT Load)1'!U248/1000*'[4]Rev Assumptions1'!$D$6 -> 36.45 | R4: ='[4]2b. Lease Schedule (IT Load)1'!V248/1000*'[4]Rev Assumptions1'!$D$6 -> 36.45 | S4: ='[4]2b. Lease Schedule (IT Load)1'!W248/1000*'[4]Rev Assumptions1'!$D$6 -> 28.92672 | T4: ='[4]2b. Lease Schedule (IT Load)1'!X248/1000*'[4]Rev Assumptions1'!$D$6 -> 19.47888 | U4: ='[4]2b. Lease Schedule (IT Load)1'!Y248/1000*'[4]Rev Assumptions1'!$D$6 -> 14.58 | V4: ='[4]2b. Lease Schedule (IT Load)1'!Z248/1000*'[4]Rev Assumptions1'!$D$6 -> 14.58 | W4: ='[4]2b. Lease Schedule (IT Load)1'!AA248/1000*'[4]Rev Assumptions1'!$D$6 -> 14.58 | X4: ='[4]2b. Lease Schedule (IT Load)1'!AB248/1000*'[4]Rev Assumptions1'!$D$6 -> 14.58 | Y4: ='[4]2b. Lease Schedule (IT Load)1'!AC248/1000*'[4]Rev Assumptions1'!$D$6 -> 14.58 | Z4: ='[4]2b. Lease Schedule (IT Load)1'!AD248/1000*'[4]Rev Assumptions1'!$D$6 -> 14.58 | AA4: ='[4]2b. Lease Schedule (IT Load)1'!AE248/1000*'[4]Rev Assumptions1'!$D$6 -> 14.58
C5: Power Requirement | D5: KWh | F5: =F4*1000*365*24 -> 0 | G5: =G4*1000*365*24 -> 0 | H5: 0 | I5: 0 | J5: 109839888 | K5: 247778352 | L5: 319302000 | M5: 319302000 | N5: 319302000 | O5: 319302000 | P5: 319302000 | Q5: 319302000 | R5: 319302000 | S5: 253398067.2 | T5: 170634988.8 | U5: 127720800 | V5: 127720800 | W5: 127720800 | X5: 127720800 | Y5: 127720800 | Z5: 127720800 | AA5: 127720800
C6: Powe Rate | D6: INR/Kwh | F6: =[4]Assumptions1!$E$53*(1+[4]Assumptions1!$E$56)^YEARFRAC([4]Assumptions1!$E$57,F3) -> 7.986981886 | G6: =[4]Assumptions1!$E$53*(1+[4]Assumptions1!$E$56)^YEARFRAC([4]Assumptions1!$E$57,G3) -> 7.794496205 | H6: =[4]Assumptions1!$E$53*(1+[4]Assumptions1!$E$56)^YEARFRAC([4]Assumptions1!$E$57,H3) -> 8.184221015 | I6: =[4]Assumptions1!$E$53*(1+[4]Assumptions1!$E$56)^YEARFRAC([4]Assumptions1!$E$57,I3) -> 8.593432066 | J6: =[4]Assumptions1!$E$53*(1+[4]Assumptions1!$E$56)^YEARFRAC([4]Assumptions1!$E$57,J3) -> 9.023103669 | K6: =[4]Assumptions1!$E$53*(1+[4]Assumptions1!$E$56)^YEARFRAC([4]Assumptions1!$E$57,K3) -> 9.474258853 | L6: =[4]Assumptions1!$E$53*(1+[4]Assumptions1!$E$56)^YEARFRAC([4]Assumptions1!$E$57,L3) -> 9.947971796 | M6: =[4]Assumptions1!$E$53*(1+[4]Assumptions1!$E$56)^YEARFRAC([4]Assumptions1!$E$57,M3) -> 10.44537039 | N6: =[4]Assumptions1!$E$53*(1+[4]Assumptions1!$E$56)^YEARFRAC([4]Assumptions1!$E$57,N3) -> 10.9676389 | O6: =[4]Assumptions1!$E$53*(1+[4]Assumptions1!$E$56)^YEARFRAC([4]Assumptions1!$E$57,O3) -> 11.51602085 | P6: =[4]Assumptions1!$E$53*(1+[4]Assumptions1!$E$56)^YEARFRAC([4]Assumptions1!$E$57,P3) -> 12.09182189 | Q6: =[4]Assumptions1!$E$53*(1+[4]Assumptions1!$E$56)^YEARFRAC([4]Assumptions1!$E$57,Q3) -> 12.69641299 | R6: =[4]Assumptions1!$E$53*(1+[4]Assumptions1!$E$56)^YEARFRAC([4]Assumptions1!$E$57,R3) -> 13.33123364 | S6: =[4]Assumptions1!$E$53*(1+[4]Assumptions1!$E$56)^YEARFRAC([4]Assumptions1!$E$57,S3) -> 13.99779532 | T6: =[4]Assumptions1!$E$53*(1+[4]Assumptions1!$E$56)^YEARFRAC([4]Assumptions1!$E$57,T3) -> 14.69768508 | U6: =[4]Assumptions1!$E$53*(1+[4]Assumptions1!$E$56)^YEARFRAC([4]Assumptions1!$E$57,U3) -> 15.43256934 | V6: =[4]Assumptions1!$E$53*(1+[4]Assumptions1!$E$56)^YEARFRAC([4]Assumptions1!$E$57,V3) -> 16.20419781 | W6: =[4]Assumptions1!$E$53*(1+[4]Assumptions1!$E$56)^YEARFRAC([4]Assumptions1!$E$57,W3) -> 17.0144077 | X6: =[4]Assumptions1!$E$53*(1+[4]Assumptions1!$E$56)^YEARFRAC([4]Assumptions1!$E$57,X3) -> 17.86512808 | Y6: =[4]Assumptions1!$E$53*(1+[4]Assumptions1!$E$56)^YEARFRAC([4]Assumptions1!$E$57,Y3) -> 18.75838448 | Z6: =[4]Assumptions1!$E$53*(1+[4]Assumptions1!$E$56)^YEARFRAC([4]Assumptions1!$E$57,Z3) -> 19.69630371 | AA6: =[4]Assumptions1!$E$53*(1+[4]Assumptions1!$E$56)^YEARFRAC([4]Assumptions1!$E$57,AA3) -> 20.68111889
... 4 more rows

Sheet Power and water requirement
C3: FYE | F3: ='P&L'!F2 -> 2024-03-31 | G3: =EOMONTH(F3,12) -> 2025-03-31 | H3: =EOMONTH(G3,12) -> 2026-03-31 | I3: 2027-03-31 | J3: 2028-03-31 | K3: 2029-03-31 | L3: 2030-03-31 | M3: 2031-03-31 | N3: 2032-03-31 | O3: =EOMONTH(N3,12) -> 2033-03-31 | P3: 2034-03-31 | Q3: 2035-03-31 | R3: 2036-03-31 | S3: 2037-03-31 | T3: 2038-03-31 | U3: =EOMONTH(T3,12) -> 2039-03-31 | V3: 2040-03-31 | W3: 2041-03-31 | X3: 2042-03-31 | Y3: =EOMONTH(X3,12) -> 2043-03-31 | Z3: 2044-03-31 | AA3: 2045-03-31
B4: Leased IT load*PUE | C4: Power Requirement | D4: MW | F4: ='2b. Lease Schedule (IT Load)'!J246/1000*'Rev Assumptions'!$D$6 -> 0 | G4: ='2b. Lease Schedule (IT Load)'!K246/1000*'Rev Assumptions'!$D$6 -> 0 | H4: ='2b. Lease Schedule (IT Load)'!L246/1000*'Rev Assumptions'!$D$6 -> 0 | I4: ='2b. Lease Schedule (IT Load)'!M246/1000*'Rev Assumptions'!$D$6 -> 0 | J4: ='2b. Lease Schedule (IT Load)'!N246/1000*'Rev Assumptions'!$D$6 -> 12.5388 | K4: ='2b. Lease Schedule (IT Load)'!O246/1000*'Rev Assumptions'!$D$6 -> 28.2852 | L4: ='2b. Lease Schedule (IT Load)'!P246/1000*'Rev Assumptions'!$D$6 -> 36.45 | M4: ='2b. Lease Schedule (IT Load)'!Q246/1000*'Rev Assumptions'!$D$6 -> 36.45 | N4: ='2b. Lease Schedule (IT Load)'!R246/1000*'Rev Assumptions'!$D$6 -> 36.45 | O4: ='2b. Lease Schedule (IT Load)'!S246/1000*'Rev Assumptions'!$D$6 -> 36.45 | P4: ='2b. Lease Schedule (IT Load)'!T246/1000*'Rev Assumptions'!$D$6 -> 36.45 | Q4: ='2b. Lease Schedule (IT Load)'!U246/1000*'Rev Assumptions'!$D$6 -> 36.45 | R4: ='2b. Lease Schedule (IT Load)'!V246/1000*'Rev Assumptions'!$D$6 -> 36.45 | S4: ='2b. Lease Schedule (IT Load)'!W246/1000*'Rev Assumptions'!$D$6 -> 28.92672 | T4: ='2b. Lease Schedule (IT Load)'!X246/1000*'Rev Assumptions'!$D$6 -> 19.47888 | U4: ='2b. Lease Schedule (IT Load)'!Y246/1000*'Rev Assumptions'!$D$6 -> 14.58 | V4: ='2b. Lease Schedule (IT Load)'!Z246/1000*'Rev Assumptions'!$D$6 -> 14.58 | W4: ='2b. Lease Schedule (IT Load)'!AA246/1000*'Rev Assumptions'!$D$6 -> 14.58 | X4: ='2b. Lease Schedule (IT Load)'!AB246/1000*'Rev Assumptions'!$D$6 -> 14.58 | Y4: ='2b. Lease Schedule (IT Load)'!AC246/1000*'Rev Assumptions'!$D$6 -> 14.58 | Z4: ='2b. Lease Schedule (IT Load)'!AD246/1000*'Rev Assumptions'!$D$6 -> 14.58 | AA4: ='2b. Lease Schedule (IT Load)'!AE246/1000*'Rev Assumptions'!$D$6 -> 14.58
C5: Power Requirement | D5: KWh | F5: =F4*1000*365*24 -> 0 | G5: =G4*1000*365*24 -> 0 | H5: 0 | I5: 0 | J5: 109839888 | K5: 247778352 | L5: 319302000 | M5: 319302000 | N5: 319302000 | O5: 319302000 | P5: 319302000 | Q5: 319302000 | R5: 319302000 | S5: 253398067.2 | T5: 170634988.8 | U5: 127720800 | V5: 127720800 | W5: 127720800 | X5: 127720800 | Y5: 127720800 | Z5: 127720800 | AA5: 127720800
C6: Powe Rate | D6: INR/Kwh | F6: =Assumptions!$E$53*(1+Assumptions!$E$56)^YEARFRAC(Assumptions!$E$57,F3) -> 7.958439938 | G6: =Assumptions!$E$53*(1+Assumptions!$E$56)^YEARFRAC(Assumptions!$E$57,G3) -> 7.785200427 | H6: =Assumptions!$E$53*(1+Assumptions!$E$56)^YEARFRAC(Assumptions!$E$57,H3) -> 8.135534446 | I6: =Assumptions!$E$53*(1+Assumptions!$E$56)^YEARFRAC(Assumptions!$E$57,I3) -> 8.501633496 | J6: =Assumptions!$E$53*(1+Assumptions!$E$56)^YEARFRAC(Assumptions!$E$57,J3) -> 8.884207003 | K6: =Assumptions!$E$53*(1+Assumptions!$E$56)^YEARFRAC(Assumptions!$E$57,K3) -> 9.283996319 | L6: =Assumptions!$E$53*(1+Assumptions!$E$56)^YEARFRAC(Assumptions!$E$57,L3) -> 9.701776153 | M6: =Assumptions!$E$53*(1+Assumptions!$E$56)^YEARFRAC(Assumptions!$E$57,M3) -> 10.13835608 | N6: =Assumptions!$E$53*(1+Assumptions!$E$56)^YEARFRAC(Assumptions!$E$57,N3) -> 10.5945821 | O6: =Assumptions!$E$53*(1+Assumptions!$E$56)^YEARFRAC(Assumptions!$E$57,O3) -> 11.0713383 | P6: =Assumptions!$E$53*(1+Assumptions!$E$56)^YEARFRAC(Assumptions!$E$57,P3) -> 11.56954852 | Q6: =Assumptions!$E$53*(1+Assumptions!$E$56)^YEARFRAC(Assumptions!$E$57,Q3) -> 12.0901782 | R6: =Assumptions!$E$53*(1+Assumptions!$E$56)^YEARFRAC(Assumptions!$E$57,R3) -> 12.63423622 | S6: =Assumptions!$E$53*(1+Assumptions!$E$56)^YEARFRAC(Assumptions!$E$57,S3) -> 13.20277685 | T6: =Assumptions!$E$53*(1+Assumptions!$E$56)^YEARFRAC(Assumptions!$E$57,T3) -> 13.79690181 | U6: =Assumptions!$E$53*(1+Assumptions!$E$56)^YEARFRAC(Assumptions!$E$57,U3) -> 14.41776239 | V6: =Assumptions!$E$53*(1+Assumptions!$E$56)^YEARFRAC(Assumptions!$E$57,V3) -> 15.0665617 | W6: =Assumptions!$E$53*(1+Assumptions!$E$56)^YEARFRAC(Assumptions!$E$57,W3) -> 15.74455698 | X6: =Assumptions!$E$53*(1+Assumptions!$E$56)^YEARFRAC(Assumptions!$E$57,X3) -> 16.45306204 | Y6: =Assumptions!$E$53*(1+Assumptions!$E$56)^YEARFRAC(Assumptions!$E$57,Y3) -> 17.19344983 | Z6: =Assumptions!$E$53*(1+Assumptions!$E$56)^YEARFRAC(Assumptions!$E$57,Z3) -> 17.96715508 | AA6: =Assumptions!$E$53*(1+Assumptions!$E$56)^YEARFRAC(Assumptions!$E$57,AA3) -> 18.77567706
... 4 more rows

Sheet LRD Eligibility1
B2: LRD eligibility on Dec 31, 2029 (12 years)
B3: ='[4]P&L1'!C2 -> FY Ending | E3: ='[4]P&L1'!F2 -> 2024-03-31 | F3: ='[4]P&L1'!G2 -> 2025-03-31 | G3: ='[4]P&L1'!H2 -> 2026-03-31 | H3: ='[4]P&L1'!I2 -> 2027-03-31 | I3: ='[4]P&L1'!J2 -> 2028-03-31 | J3: ='[4]P&L1'!K2 -> 2029-03-31 | K3: ='[4]P&L1'!L2 -> 2030-03-31 | L3: ='[4]P&L1'!M2 -> 2031-03-31 | M3: ='[4]P&L1'!N2 -> 2032-03-31 | N3: ='[4]P&L1'!O2 -> 2033-03-31 | O3: ='[4]P&L1'!P2 -> 2034-03-31 | P3: ='[4]P&L1'!Q2 -> 2035-03-31 | Q3: ='[4]P&L1'!R2 -> 2036-03-31 | R3: ='[4]P&L1'!S2 -> 2037-03-31 | S3: ='[4]P&L1'!T2 -> 2038-03-31 | T3: ='[4]P&L1'!U2 -> 2039-03-31 | U3: ='[4]P&L1'!V2 -> 2040-03-31 | V3: ='[4]P&L1'!W2 -> 2041-03-31 | W3: ='[4]P&L1'!X2 -> 2042-03-31 | X3: ='[4]P&L1'!Y2 -> 2043-03-31 | Y3: ='[4]P&L1'!Z2 -> 2044-03-31 | Z3: ='[4]P&L1'!AA2 -> 2045-03-31
B4: ='[4]P&L1'!C4 -> Total Gross Revenue | E4: ='[4]P&L1'!F4+'[4]P&L1'!F8 -> 0 | F4: ='[4]P&L1'!G4+'[4]P&L1'!G8 -> 0 | G4: ='[4]P&L1'!H4+'[4]P&L1'!H8 -> 0 | H4: ='[4]P&L1'!I4+'[4]P&L1'!I8 -> 0 | I4: ='[4]P&L1'!J4+'[4]P&L1'!J8 -> 48.28938787 | J4: ='[4]P&L1'!K4+'[4]P&L1'!K8 -> 152.3028967 | K4: ='[4]P&L1'!L4+'[4]P&L1'!L8 -> 256.5997069 | L4: ='[4]P&L1'!M4+'[4]P&L1'!M8 -> 276.4147357 | M4: ='[4]P&L1'!N4+'[4]P&L1'!N8 -> 291.0064174 | N4: ='[4]P&L1'!O4+'[4]P&L1'!O8 -> 310.7547187 | O4: ='[4]P&L1'!P4+'[4]P&L1'!P8 -> 327.0877874 | P4: ='[4]P&L1'!Q4+'[4]P&L1'!Q8 -> 345.6396334 | Q4: ='[4]P&L1'!R4+'[4]P&L1'!R8 -> 354.5421579 | R4: ='[4]P&L1'!S4+'[4]P&L1'!S8 -> 365.1784227 | S4: ='[4]P&L1'!T4+'[4]P&L1'!T8 -> 376.1337753 | T4: ='[4]P&L1'!U4+'[4]P&L1'!U8 -> 387.4177886 | U4: ='[4]P&L1'!V4+'[4]P&L1'!V8 -> 399.0403223 | V4: ='[4]P&L1'!W4+'[4]P&L1'!W8 -> 411.0115319 | W4: ='[4]P&L1'!X4+'[4]P&L1'!X8 -> 423.3418779 | X4: ='[4]P&L1'!Y4+'[4]P&L1'!Y8 -> 436.0421342 | Y4: ='[4]P&L1'!Z4+'[4]P&L1'!Z8 -> 449.1233983 | Z4: ='[4]P&L1'!AA4+'[4]P&L1'!AA8 -> 462.5971002
B5: TDS | E5: =E4*0.1 -> 0 | F5: =F4*0.1 -> 0 | G5: 0 | H5: 0 | I5: 4.828938787 | J5: 15.23028967 | K5: 25.65997069 | L5: 27.64147357 | M5: 29.10064174 | N5: 31.07547187 | O5: 32.70877874 | P5: 34.56396334 | Q5: 35.45421579 | R5: 36.51784227 | S5: 37.61337753 | T5: 38.74177886 | U5: 39.90403223 | V5: 41.10115319 | W5: 42.33418779 | X5: 43.60421342 | Y5: 44.91233983 | Z5: 46.25971002
B6: ='[4]P&L1'!C6 -> Total Net Revenue | E6: =E4-E5 -> 0 | F6: =F4-F5 -> 0 | G6: 0 | H6: 0 | I6: 43.46044908 | J6: 137.072607 | K6: 230.9397363 | L6: 248.7732621 | M6: 261.9057756 | N6: 279.6792468 | O6: 294.3790086 | P6: 311.0756701 | Q6: 319.0879421 | R6: 328.6605804 | S6: 338.5203978 | T6: 348.6760097 | U6: 359.13629 | V6: 369.9103787 | W6: 381.0076901 | X6: 392.4379208 | Y6: 404.2110584 | Z6: 416.3373902
... 7 more rows

Sheet LRD Eligibility
B1: ='P&L'!C3 -> (Rs. Crore)
B2: LRD eligibility on Dec 31, 2029 (12 years)
B3: ='P&L'!C2 -> FY Ending | E3: ='P&L'!F2 -> 2024-03-31 | F3: ='P&L'!G2 -> 2025-03-31 | G3: ='P&L'!H2 -> 2026-03-31 | H3: ='P&L'!I2 -> 2027-03-31 | I3: ='P&L'!J2 -> 2028-03-31 | J3: ='P&L'!K2 -> 2029-03-31 | K3: ='P&L'!L2 -> 2030-03-31 | L3: ='P&L'!M2 -> 2031-03-31 | M3: ='P&L'!N2 -> 2032-03-31 | N3: ='P&L'!O2 -> 2033-03-31 | O3: ='P&L'!P2 -> 2034-03-31 | P3: ='P&L'!Q2 -> 2035-03-31 | Q3: ='P&L'!R2 -> 2036-03-31 | R3: ='P&L'!S2 -> 2037-03-31 | S3: ='P&L'!T2 -> 2038-03-31 | T3: ='P&L'!U2 -> 2039-03-31 | U3: ='P&L'!V2 -> 2040-03-31 | V3: ='P&L'!W2 -> 2041-03-31 | W3: ='P&L'!X2 -> 2042-03-31 | X3: ='P&L'!Y2 -> 2043-03-31 | Y3: ='P&L'!Z2 -> 2044-03-31 | Z3: ='P&L'!AA2 -> 2045-03-31
B4: ='P&L'!C4 -> Total Gross Revenue | E4: ='P&L'!F4 -> 0 | F4: ='P&L'!G4 -> 0 | G4: ='P&L'!H4 -> 0 | H4: ='P&L'!I4 -> 0 | I4: ='P&L'!J4 -> 43.41304159 | J4: ='P&L'!K4 -> 137.2632866 | K4: ='P&L'!L4 -> 231.7710638 | L4: ='P&L'!M4 -> 250.7235087 | M4: ='P&L'!N4 -> 266.1158786 | N4: ='P&L'!O4 -> 287.1588774 | O4: ='P&L'!P4 -> 305.7880469 | P4: ='P&L'!Q4 -> 328.0281784 | Q4: ='P&L'!R4 -> 339.7839434 | R4: ='P&L'!S4 -> 303.0226267 | S4: ='P&L'!T4 -> 225.6526349 | T4: ='P&L'!U4 -> 152.5666752 | U4: ='P&L'!V4 -> 151.339189 | V4: ='P&L'!W4 -> 152.497226 | W4: ='P&L'!X4 -> 152.497226 | X4: ='P&L'!Y4 -> 124.885603 | Y4: ='P&L'!Z4 -> 65.99655433 | Z4: ='P&L'!AA4 -> 7.355354729
B5: ='P&L'!C5 -> TDS | E5: ='P&L'!F5 -> 0 | F5: ='P&L'!G5 -> 0 | G5: ='P&L'!H5 -> 0 | H5: ='P&L'!I5 -> 0 | I5: ='P&L'!J5 -> 0 | J5: ='P&L'!K5 -> 0 | K5: ='P&L'!L5 -> 0 | L5: ='P&L'!M5 -> 0 | M5: ='P&L'!N5 -> 0 | N5: ='P&L'!O5 -> 0 | O5: ='P&L'!P5 -> 0 | P5: ='P&L'!Q5 -> 0 | Q5: ='P&L'!R5 -> 0 | R5: ='P&L'!S5 -> 0 | S5: ='P&L'!T5 -> 0 | T5: ='P&L'!U5 -> 0 | U5: ='P&L'!V5 -> 0 | V5: ='P&L'!W5 -> 0 | W5: ='P&L'!X5 -> 0 | X5: ='P&L'!Y5 -> 0 | Y5: ='P&L'!Z5 -> 0 | Z5: ='P&L'!AA5 -> 0
B6: ='P&L'!C6 -> Total Net Revenue | E6: ='P&L'!F6 -> 0 | F6: ='P&L'!G6 -> 0 | G6: ='P&L'!H6 -> 0 | H6: ='P&L'!I6 -> 0 | I6: ='P&L'!J6 -> 43.41304159 | J6: ='P&L'!K6 -> 137.2632866 | K6: ='P&L'!L6 -> 231.7710638 | L6: ='P&L'!M6 -> 250.7235087 | M6: ='P&L'!N6 -> 266.1158786 | N6: ='P&L'!O6 -> 287.1588774 | O6: ='P&L'!P6 -> 305.7880469 | P6: ='P&L'!Q6 -> 328.0281784 | Q6: ='P&L'!R6 -> 339.7839434 | R6: ='P&L'!S6 -> 303.0226267 | S6: ='P&L'!T6 -> 225.6526349 | T6: ='P&L'!U6 -> 152.5666752 | U6: ='P&L'!V6 -> 151.339189 | V6: ='P&L'!W6 -> 152.497226 | W6: ='P&L'!X6 -> 152.497226 | X6: ='P&L'!Y6 -> 124.885603 | Y6: ='P&L'!Z6 -> 65.99655433 | Z6: ='P&L'!AA6 -> 7.355354729
... 6 more rows

Sheet LRD Sheet1
B3: LRD Schedule
BB4: =E6 -> 1.0015
B5: LRD Requirement | C5: ='[4]Capex Debt1'!$E$32 -> 1404.81248
B6: LRD Interest rate | C6: ='[4]LRD Eligibility1'!H32 -> 0.0875 | E6: =SUM(G6:BB6) -> 1.0015 | G6: 0.002 | H6: 0.002 | I6: 0.0025 | J6: 0.0025 | K6: 0.0025 | L6: 0.0025 | M6: 0.0025 | N6: 0.005 | O6: 0.005 | P6: 0.005 | Q6: 0.005 | R6: 0.005 | S6: 0.005 | T6: 0.005 | U6: 0.01 | V6: 0.01 | W6: 0.01 | X6: 0.01 | Y6: 0.02 | Z6: 0.02 | AA6: 0.02 | AB6: 0.02 | AC6: 0.02 | AD6: 0.02 | AE6: 0.02 | AF6: 0.02 | AG6: 0.02 | AH6: 0.02 | AI6: 0.02 | AJ6: 0.02 | AK6: 0.02 | AL6: 0.02 | AM6: 0.02 | AN6: 0.02 | AO6: 0.04 | AP6: 0.04 | AQ6: 0.04 | AR6: 0.04 | AS6: 0.04 | AT6: 0.04 | AU6: 0.04 | AV6: 0.04 | AW6: 0.04 | AX6: 0.04 | AY6: 0.04 | AZ6: 0.05 | BA6: 0.05 | BB6: 0.05
B7: LRD Period | C7: =[4]Assumptions1!D43 -> 12 | D7: years | E7: Qtr Ending | G7: =[4]Timelines1!C60 -> 2029-12-31 | H7: =EOMONTH(G7,3) -> 2030-03-31 | I7: 2030-06-30 | J7: 2030-09-30 | K7: 2030-12-31 | L7: 2031-03-31 | M7: 2031-06-30 | N7: 2031-09-30 | O7: 2031-12-31 | P7: 2032-03-31 | Q7: 2032-06-30 | R7: 2032-09-30 | S7: 2032-12-31 | T7: 2033-03-31 | U7: 2033-06-30 | V7: 2033-09-30 | W7: 2033-12-31 | X7: 2034-03-31 | Y7: 2034-06-30 | Z7: 2034-09-30 | AA7: 2034-12-31 | AB7: 2035-03-31 | AC7: 2035-06-30 | AD7: 2035-09-30 | AE7: 2035-12-31 | AF7: 2036-03-31 | AG7: 2036-06-30 | AH7: 2036-09-30 | AI7: 2036-12-31 | AJ7: 2037-03-31 | AK7: 2037-06-30 | AL7: 2037-09-30 | AM7: 2037-12-31 | AN7: 2038-03-31 | AO7: 2038-06-30 | AP7: 2038-09-30 | AQ7: 2038-12-31 | AR7: 2039-03-31 | AS7: 2039-06-30 | AT7: 2039-09-30 | AU7: 2039-12-31 | AV7: 2040-03-31 | AW7: 2040-06-30 | AX7: 2040-09-30 | AY7: 2040-12-31 | AZ7: 2041-03-31 | BA7: 2041-06-30 | BB7: 2041-09-30
... 3 more rows

Sheet LRD Sheet
B3: LRD Schedule
B5: LRD Requirement | C5: ='Capex Debt'!$E$32 -> 1404.811353
B6: LRD Interest rate | C6: ='LRD Eligibility'!I15 -> 0.0875
B7: LRD Period | C7: =Assumptions!D43 -> 12 | D7: years | E7: Qtr Ending | G7: =Timelines!C60 -> 2029-12-31 | H7: =EOMONTH(G7,3) -> 2030-03-31 | I7: 2030-06-30 | J7: 2030-09-30 | K7: 2030-12-31 | L7: 2031-03-31 | M7: 2031-06-30 | N7: 2031-09-30 | O7: 2031-12-31 | P7: 2032-03-31 | Q7: 2032-06-30 | R7: 2032-09-30 | S7: 2032-12-31 | T7: 2033-03-31 | U7: 2033-06-30 | V7: 2033-09-30 | W7: 2033-12-31 | X7: 2034-03-31 | Y7: 2034-06-30 | Z7: 2034-09-30 | AA7: 2034-12-31 | AB7: 2035-03-31 | AC7: 2035-06-30 | AD7: 2035-09-30 | AE7: 2035-12-31 | AF7: 2036-03-31 | AG7: 2036-06-30 | AH7: 2036-09-30 | AI7: 2036-12-31 | AJ7: 2037-03-31 | AK7: 2037-06-30 | AL7: 2037-09-30 | AM7: 2037-12-31 | AN7: 2038-03-31 | AO7: 2038-06-30 | AP7: 2038-09-30 | AQ7: 2038-12-31 | AR7: 2039-03-31 | AS7: 2039-06-30 | AT7: 2039-09-30 | AU7: 2039-12-31 | AV7: 2040-03-31 | AW7: 2040-06-30 | AX7: 2040-09-30 | AY7: 2040-12-31 | AZ7: 2041-03-31 | BA7: 2041-06-30 | BB7: 2041-09-30
E8: Principle | G8: =C5 -> 1404.811353 | H8: =G12 -> 1387.977344 | I8: 1370.775092 | J8: 1353.19654 | K8: 1335.233457 | L8: 1316.877431 | M8: 1298.119868 | N8: 1278.951983 | O8: 1259.3648 | P8: 1239.349148 | Q8: 1218.895654 | R8: 1197.994739 | S8: 1176.636617 | T8: 1154.811286 | U8: 1132.508525 | V8: 1109.717892 | W8: 1086.428714 | X8: 1062.630085 | Y8: 1038.310861 | Z8: 1013.459654 | AA8: 988.0648265 | AB8: 962.1144874 | AC8: 935.5964846 | AD8: 908.4984006 | AE8: 880.8075459 | AF8: 852.5109538 | AG8: 823.5953738 | AH8: 794.0472654 | AI8: 763.8527922 | AJ8: 732.9978149 | AK8: 701.4678849 | AL8: 669.2482377 | AM8: 636.3237857 | AN8: 602.6791114 | AO8: 568.2984598 | AP8: 533.1657314 | AQ8: 497.2644747 | AR8: 460.5778779 | AS8: 423.0887618 | AT8: 384.7795713 | AU8: 345.6323673 | AV8: 305.6288181 | AW8: 264.7501914 | AX8: 222.9773446 | AY8: 180.2907169 | AZ8: 136.6703192 | BA8: 92.09572523 | BB8: 46.54606205
B9: LRD start | E9: EMI | G9: =-PMT($C$6/4,$C$7*4,$C$5) -> 47.56425716 | H9: 47.56425716 | I9: 47.56425716 | J9: 47.56425716 | K9: 47.56425716 | L9: 47.56425716 | M9: 47.56425716 | N9: 47.56425716 | O9: 47.56425716 | P9: 47.56425716 | Q9: 47.56425716 | R9: 47.56425716 | S9: 47.56425716 | T9: 47.56425716 | U9: 47.56425716 | V9: 47.56425716 | W9: 47.56425716 | X9: 47.56425716 | Y9: 47.56425716 | Z9: 47.56425716 | AA9: 47.56425716 | AB9: 47.56425716 | AC9: 47.56425716 | AD9: 47.56425716 | AE9: 47.56425716 | AF9: 47.56425716 | AG9: 47.56425716 | AH9: 47.56425716 | AI9: 47.56425716 | AJ9: 47.56425716 | AK9: 47.56425716 | AL9: 47.56425716 | AM9: 47.56425716 | AN9: 47.56425716 | AO9: 47.56425716 | AP9: 47.56425716 | AQ9: 47.56425716 | AR9: 47.56425716 | AS9: 47.56425716 | AT9: 47.56425716 | AU9: 47.56425716 | AV9: 47.56425716 | AW9: 47.56425716 | AX9: 47.56425716 | AY9: 47.56425716 | AZ9: 47.56425716 | BA9: 47.56425716 | BB9: 47.56425716
B10: LRD End | C10: =EOMONTH(G7,12*12-3) -> 2041-09-30 | E10: Interest | G10: =G8*$C$6/4 -> 30.73024835 | H10: 30.36200441 | I10: 29.98570513 | J10: 29.6011743 | K10: 29.20823187 | L10: 28.80669381 | M10: 28.39637211 | N10: 27.97707463 | O10: 27.54860501 | P10: 27.11076262 | Q10: 26.66334243 | R10: 26.20613492 | S10: 25.73892599 | T10: 25.26149687 | U10: 24.77362399 | V10: 24.27507889 | W10: 23.76562812 | X10: 23.24503311 | Y10: 22.71305008 | Z10: 22.16942992 | AA10: 21.61391808 | AB10: 21.04625441 | AC10: 20.4661731 | AD10: 19.87340251 | AE10: 19.26766507 | AF10: 18.64867711 | AG10: 18.0161488 | AH10: 17.36978393 | AI10: 16.70927983 | AJ10: 16.0343272 | AK10: 15.34460998 | AL10: 14.6398052 | AM10: 13.91958281 | AN10: 13.18360556 | AO10: 12.43152881 | AP10: 11.66300038 | AQ10: 10.87766038 | AR10: 10.07514108 | AS10: 9.255066664 | AT10: 8.417053122 | AU10: 7.560708034 | AV10: 6.685630397 | AW10: 5.791410436 | AX10: 4.877629414 | AY10: 3.943859432 | AZ10: 2.989663232 | BA10: 2.014593989 | BB10: 1.018195107
E11: Principal Repaid | G11: =G9-G10 -> 16.83400881 | H11: 17.20225275 | I11: 17.57855203 | J11: 17.96308286 | K11: 18.3560253 | L11: 18.75756335 | M11: 19.16788505 | N11: 19.58718253 | O11: 20.01565215 | P11: 20.45349454 | Q11: 20.90091474 | R11: 21.35812225 | S11: 21.82533117 | T11: 22.30276029 | U11: 22.79063317 | V11: 23.28917827 | W11: 23.79862905 | X11: 24.31922406 | Y11: 24.85120708 | Z11: 25.39482724 | AA11: 25.95033908 | AB11: 26.51800275 | AC11: 27.09808406 | AD11: 27.69085465 | AE11: 28.2965921 | AF11: 28.91558005 | AG11: 29.54810836 | AH11: 30.19447323 | AI11: 30.85497733 | AJ11: 31.52992996 | AK11: 32.21964718 | AL11: 32.92445196 | AM11: 33.64467435 | AN11: 34.3806516 | AO11: 35.13272835 | AP11: 35.90125679 | AQ11: 36.68659678 | AR11: 37.48911608 | AS11: 38.3091905 | AT11: 39.14720404 | AU11: 40.00354913 | AV11: 40.87862677 | AW11: 41.77284673 | AX11: 42.68662775 | AY11: 43.62039773 | AZ11: 44.57459393 | BA11: 45.54966317 | BB11: 46.54606205
E12: Principal Outstanding | G12: =G8-G11 -> 1387.977344 | H12: 1370.775092 | I12: 1353.19654 | J12: 1335.233457 | K12: 1316.877431 | L12: 1298.119868 | M12: 1278.951983 | N12: 1259.3648 | O12: 1239.349148 | P12: 1218.895654 | Q12: 1197.994739 | R12: 1176.636617 | S12: 1154.811286 | T12: 1132.508525 | U12: 1109.717892 | V12: 1086.428714 | W12: 1062.630085 | X12: 1038.310861 | Y12: 1013.459654 | Z12: 988.0648265 | AA12: 962.1144874 | AB12: 935.5964846 | AC12: 908.4984006 | AD12: 880.8075459 | AE12: 852.5109538 | AF12: 823.5953738 | AG12: 794.0472654 | AH12: 763.8527922 | AI12: 732.9978149 | AJ12: 701.4678849 | AK12: 669.2482377 | AL12: 636.3237857 | AM12: 602.6791114 | AN12: 568.2984598 | AO12: 533.1657314 | AP12: 497.2644747 | AQ12: 460.5778779 | AR12: 423.0887618 | AS12: 384.7795713 | AT12: 345.6323673 | AU12: 305.6288181 | AV12: 264.7501914 | AW12: 222.9773446 | AX12: 180.2907169 | AY12: 136.6703192 | AZ12: 92.09572523 | BA12: 46.54606205 | BB12: 1.307398634e-12

Sheet 2a. Rent Roll (Details)1
B2: Rent Roll Details + Lease Up Schedule for Phase 1 | AH2: Please do not change this>>> | AI2: 1 | AJ2: =AI2+1 -> 2 | AK2: =AJ2+1 -> 3 | AL2: 4 | AM2: 5 | AN2: 6 | AO2: 7 | AP2: 8 | AQ2: 9 | AR2: 10 | AS2: 11 | AT2: 12 | AU2: 13 | AV2: 14 | AW2: 15 | AX2: 16 | AY2: 17 | AZ2: 18 | BA2: 19 | BB2: 20 | BC2: Please do not change this>>> | BD2: =AI2 -> 1 | BE2: =BD2+1 -> 2 | BF2: =BE2+1 -> 3 | BG2: 4 | BH2: 5 | BI2: 6 | BJ2: 7 | BK2: 8 | BL2: 9 | BM2: 10 | BN2: 11 | BO2: 12 | BP2: 13 | BQ2: 14 | BR2: 15 | BS2: 16 | BT2: 17 | BU2: 18 | BV2: 19 | BW2: 20 | BX2: Please do not change this>>> | BY2: 1 | BZ2: =BY2+1 -> 2 | CA2: 3 | CB2: 4 | CC2: 5 | CD2: 6 | CE2: 7 | CF2: 8 | CG2: 9 | CH2: 10 | CI2: 11 | CJ2: 12 | CK2: 13 | CL2: 14 | CM2: 15 | CN2: 16 | CO2: 17 | CP2: 18 | CQ2: 19 | CR2: 20 | CS2: Please do not change this>>> | CT2: =BY2 -> 1 | CU2: =CT2+1 -> 2 | CV2: 3 | CW2: 4 | CX2: 5 | CY2: 6 | CZ2: 7 | DA2: 8 | DB2: 9 | DC2: 10 | DD2: 11 | DE2: 12 | DF2: 13 | DG2: 14 | DH2: 15 | DI2: 16 | DJ2: 17 | DK2: 18 | DL2: 19 | DM2: 20 | DO2: 1 | DP2: =DO2+1 -> 2 | DQ2: 3 | DR2: 4 | DS2: 5 | DT2: 6 | DU2: 7 | DV2: 8 | DW2: 9 | DX2: 10 | DY2: 11 | DZ2: 12 | EA2: 13 | EB2: 14 | EC2: 15 | ED2: 16 | EE2: 17 | EF2: 18 | EG2: 19 | EH2: 20 | EI2: Please do not change this>>> | EJ2: =DO2 -> 1 | EK2: =EJ2+1 -> 2 | EL2: 3 | EM2: 4 | EN2: 5 | EO2: 6 | EP2: 7 | EQ2: 8 | ER2: 9 | ES2: 10 | ET2: 11 | EU2: 12 | EV2: 13 | EW2: 14 | EX2: 15 | EY2: 16 | EZ2: 17 | FA2: 18 | FB2: 19 | FC2: 20
D3: Lease Details | V3: Other Income | Z3: CAM | AD3: Security Deposit Details | AF3: Marketing Commissions Details | AI3: Lease Escalation Dates | BD3: Lease Escalation Rents | BY3: Revenue from other sources Dates | CT3: Other income Escalation Rents | DO3: CAM Income Escalation Dates | EJ3: CAM Income Escalation Rents
B4: Lease Up Schedule | C4: S/N | D4: Leasing Phase / Tenant Name | E4: Phase | F4: IT Load (KW) | G4: Lease Start Date | H4: Lease Start Date (End of Month) | I4: Rent Free (Months) | J4: Rent Start Date | K4: Rent Start Date (End of month) | L4: Lease Period (Years) | M4: Lock-in Period (Years) | N4: Lock-in End Date | O4: Lock-in End Date (End of Month) | P4: Lease End Date | Q4: Lease End Date (End of Month) | R4: Lease Rental Escalation (%) | S4: Lease Escalation (years) | T4: Base Rent (INR per KW per month) | U4: Exit Rent (INR per KW per month) | V4: Escalation (%) | W4: other income Escalation Term (years) | X4: Base Rent (per KW per month) | Y4: Exit Rent (per KW per month) | Z4: CAM Income escalation (%) | AA4: CAM Income Escalation Term (years) | AB4: Base CAM Income (psf per month) | AC4: Exit CAM Income (psf per month) | AD4: Security Deposit (months) | AE4: Security Deposit (INR) | AF4: New Lease or Rollover? | AG4: Marketing Commissions (INR) | AI4: 1st Escalation Date | AJ4: 2nd Escalation Date | AK4: 3rd Escalation Date | AL4: 4th Escalation Date | AM4: 5th Escalation Date | AN4: 6th Escalation Date | AO4: 7th Escalation Date | AP4: 8th Escalation Date | AQ4: 9th Escalation Date | AR4: 10th Escalation Date | AS4: 11th Escalation Date | AT4: 12th Escalation Date | AU4: 13th Escalation Date | AV4: 14th Escalation Date | AW4: 15th Escalation Date | AX4: 16th Escalation Date | AY4: 17th Escalation Date | AZ4: 18th Escalation Date | BA4: 19th Escalation Date | BB4: 20th Escalation Date | BD4: 1st Escalation Rent | BE4: 2nd Escalation Rent | BF4: 3rd Escalation Rent | BG4: 4th Escalation Rent | BH4: 5th Escalation Rent | BI4: 6th Escalation Rent | BJ4: 7th Escalation Rent | BK4: 8th Escalation Rent | BL4: 9th Escalation Rent | BM4: 10th Escalation Rent | BN4: 11th Escalation Rent | BO4: 12th Escalation Rent | BP4: 13th Escalation Rent | BQ4: 14th Escalation Rent | BR4: 15th Escalation Rent | BS4: 16th Escalation Rent | BT4: 17th Escalation Rent | BU4: 18th Escalation Rent | BV4: 19th Escalation Rent | BW4: 20th Escalation Rent | BY4: 1st Escalation Date | BZ4: 2nd Escalation Date | CA4: 3rd Escalation Date | CB4: 4th Escalation Date | CC4: 5th Escalation Date | CD4: 6th Escalation Date | CE4: 7th Escalation Date | CF4: 8th Escalation Date | CG4: 9th Escalation Date | CH4: 10th Escalation Date | CI4: 11th Escalation Date | CJ4: 12th Escalation Date | CK4: 13th Escalation Date | CL4: 14th Escalation Date | CM4: 15th Escalation Date | CN4: 16th Escalation Date | CO4: 17th Escalation Date | CP4: 18th Escalation Date | CQ4: 19th Escalation Date | CR4: 20th Escalation Date | CT4: 1st Escalation Rent | CU4: 2nd Escalation Rent | CV4: 3rd Escalation Rent | CW4: 4th Escalation Rent | CX4: 5th Escalation Rent | CY4: 6th Escalation Rent | CZ4: 7th Escalation Rent | DA4: 8th Escalation Rent | DB4: 9th Escalation Rent | DC4: 10th Escalation Rent | DD4: 11th Escalation Rent | DE4: 12th Escalation Rent | DF4: 13th Escalation Rent | DG4: 14th Escalation Rent | DH4: 15th Escalation Rent | DI4: 16th Escalation Rent | DJ4: 17th Escalation Rent | DK4: 18th Escalation Rent | DL4: 19th Escalation Rent | DM4: 20th Escalation Rent | DO4: 1st Escalation Date | DP4: 2nd Escalation Date | DQ4: 3rd Escalation Date | DR4: 4th Escalation Date | DS4: 5th Escalation Date | DT4: 6th Escalation Date | DU4: 7th Escalation Date | DV4: 8th Escalation Date | DW4: 9th Escalation Date | DX4: 10th Escalation Date | DY4: 11th Escalation Date | DZ4: 12th Escalation Date | EA4: 13th Escalation Date | EB4: 14th Escalation Date | EC4: 15th Escalation Date | ED4: 16th Escalation Date | EE4: 17th Escalation Date | EF4: 18th Escalation Date | EG4: 19th Escalation Date | EH4: 20th Escalation Date | EJ4: 1st Escalation Rent | EK4: 2nd Escalation Rent | EL4: 3rd Escalation Rent | EM4: 4th Escalation Rent | EN4: 5th Escalation Rent | EO4: 6th Escalation Rent | EP4: 7th Escalation Rent | EQ4: 8th Escalation Rent | ER4: 9th Escalation Rent | ES4: 10th Escalation Rent | ET4: 11th Escalation Rent | EU4: 12th Escalation Rent | EV4: 13th Escalation Rent | EW4: 14th Escalation Rent | EX4: 15th Escalation Rent | EY4: 16th Escalation Rent | EZ4: 17th Escalation Rent | FA4: 18th Escalation Rent | FB4: 19th Escalation Rent | FC4: 20th Escalation Rent
A5: =[4]Revenue1!A63 -> Hyperscaler | B5: =F5/'[4]Rev Assumptions1'!$C$10/10^3 -> 0.01032 | C5: 1 | D5: =[4]Revenue1!D63 -> Sub Phase 1 - Hyperscaler | E5: =IF(G5>='[4]Rev Assumptions1'!$E$21,'[4]Rev Assumptions1'!$B$21,IF(AND(G5>='[4]Rev Assumptions1'!$E$20,G5<'[4]Rev Assumptions1'!$E$21),'[4]Rev Assumptions1'!$B$20,'[4]Rev Assumptions1'!$B$19)) -> Phase 1 | F5: =[4]Revenue1!F63 -> 258 | G5: =[4]Revenue1!E63 -> 2027-04-01 | H5: =EOMONTH(G5, 0) -> 2027-04-30 | I5: ='[4]Rev Assumptions1'!$D$56 -> 3 | J5: =EDATE(G5,I5) -> 2027-07-01 | K5: =EOMONTH(J5, 0) -> 2027-07-31 | L5: =VLOOKUP(A5,'[4]Rev Assumptions1'!$B$48:$D$49,3,FALSE) -> 5 | M5: =L5 -> 5 | N5: =EDATE(G5, M5*12-1) -> 2032-03-01 | O5: =EOMONTH(N5, 0) -> 2032-03-31 | P5: =EDATE(G5, L5*12)-1 -> 2032-03-31 | Q5: =EOMONTH(P5, 0) -> 2032-03-31 | R5: =VLOOKUP(A5,'[4]Rev Assumptions1'!$A$52:$D$53,4,FALSE) -> 0.04 | S5: ='[4]Rev Assumptions1'!$D$54 -> 1 | T5: =[4]Revenue1!I63 -> 8438.167296 | U5: =INDEX(BD5:BW5, 1, COUNT(AI5:BB5)) -> 9871.462242 | V5: ='[4]Rev Assumptions1'!$D$62 -> 0 | W5: ='[4]Rev Assumptions1'!$D$63 -> 1 | X5: =[4]Revenue1!J63 -> 0 | Y5: =INDEX(CT5:DM5, 1, COUNT(BY5:CR5))*0+X5 -> 0 | AI5: =IF(EDATE($G5, $S5*12*AI$2)<=$P5, EDATE($G5, $S5*12*AI$2-1), "NA") -> 2028-03-01 | AJ5: =IF(EDATE($G5, $S5*12*AJ$2)<=$P5, EDATE($G5, $S5*12*AJ$2-1), "NA") -> 2029-03-01 | AK5: 2030-03-01 | AL5: 2031-03-01 | AM5: NA | AN5: NA | AO5: NA | AP5: NA | AQ5: NA | AR5: NA | AS5: NA | AT5: NA | AU5: NA | AV5: NA | AW5: NA | AX5: NA | AY5: NA | AZ5: NA | BA5: NA | BB5: NA | BD5: =IF(AI5="NA", 0, T5*(1+$R5)) -> 8775.693988 | BE5: =IF(AJ5="NA", 0, BD5*(1+$R5)) -> 9126.721747 | BF5: 9491.790617 | BG5: 9871.462242 | BH5: 0 | BI5: 0 | BJ5: 0 | BK5: 0 | BL5: 0 | BM5: 0 | BN5: 0 | BO5: 0 | BP5: 0 | BQ5: 0 | BR5: 0 | BS5: 0 | BT5: 0 | BU5: =IF(AZ5="NA", 0, BT5*(1+$R5)) -> 0 | BV5: 0 | BW5: 0 | BY5: =IF(EDATE($G5, $W5*12*BY$2)<=$P5, EDATE($G5, $W5*12*BY$2-1), "NA") -> 2028-03-01 | BZ5: 2029-03-01 | CA5: 2030-03-01 | CB5: 2031-03-01 | CC5: NA | CD5: NA | CE5: NA | CF5: NA | CG5: NA | CH5: NA | CI5: NA | CJ5: NA | CK5: NA | CL5: NA | CM5: NA | CN5: NA | CO5: =IF(EDATE($G5, $W5*12*CO$2)<=$P5, EDATE($G5, $W5*12*CO$2-1), "NA") -> NA | CP5: NA | CQ5: NA | CR5: NA | CT5: =IF(BY5="NA", 0, $X5*(1+$V5)) -> 0 | CU5: =IF(BZ5="NA", 0, CT5*(1+$V5)) -> 0 | CV5: =IF(CA5="NA", 0, CU5*(1+$V5)) -> 0 | CW5: 0 | CX5: 0 | CY5: 0 | CZ5: 0 | DA5: 0 | DB5: 0 | DC5: 0 | DD5: 0 | DE5: 0 | DF5: 0 | DG5: 0 | DH5: 0 | DI5: 0 | DJ5: 0 | DK5: 0 | DL5: 0 | DM5: 0 | DO5: =IF(EDATE($G5, $AA5*12*DO$2)<=$P5, EDATE($G5, $AA5*12*DO$2-1), "NA") -> 2027-03-01 | DP5: 2027-03-01 | DQ5: 2027-03-01 | DR5: 2027-03-01 | DS5: 2027-03-01 | DT5: 2027-03-01 | DU5: 2027-03-01 | DV5: 2027-03-01 | DW5: 2027-03-01 | DX5: 2027-03-01 | DY5: 2027-03-01 | DZ5: 2027-03-01 | EA5: 2027-03-01 | EB5: 2027-03-01 | EC5: 2027-03-01 | ED5: 2027-03-01 | EE5: =IF(EDATE($G5, $AA5*12*EE$2)<=$P5, EDATE($G5, $AA5*12*EE$2-1), "NA") -> 2027-03-01 | EF5: 2027-03-01 | EG5: 2027-03-01 | EH5: 2027-03-01 | EJ5: =IF(DO5="NA", 0, $AB5*(1+$Z5)) -> 0 | EK5: =IF(DP5="NA", 0, EJ5*(1+$Z5)) -> 0 | EL5: =IF(DQ5="NA", 0, EK5*(1+$Z5)) -> 0 | EM5: 0 | EN5: 0 | EO5: 0 | EP5: 0 | EQ5: 0 | ER5: 0 | ES5: 0 | ET5: 0 | EU5: 0 | EV5: 0 | EW5: 0 | EX5: 0 | EY5: 0 | EZ5: 0 | FA5: 0 | FB5: 0 | FC5: 0
A6: =[4]Revenue1!A64 -> Enterprise | B6: =F6/'[4]Rev Assumptions1'!$C$10/10^3 -> 0.01548 | C6: =C5+1 -> 2 | D6: =[4]Revenue1!D64 -> Sub Phase 1 - Enterprise | E6: =IF(G6>='[4]Rev Assumptions1'!$E$21,'[4]Rev Assumptions1'!$B$21,IF(AND(G6>='[4]Rev Assumptions1'!$E$20,G6<'[4]Rev Assumptions1'!$E$21),'[4]Rev Assumptions1'!$B$20,'[4]Rev Assumptions1'!$B$19)) -> Phase 1 | F6: =[4]Revenue1!F64 -> 387 | G6: =[4]Revenue1!E64 -> 2027-04-01 | H6: =EOMONTH(G6, 0) -> 2027-04-30 | I6: ='[4]Rev Assumptions1'!$D$56 -> 3 | J6: =EDATE(G6,I6) -> 2027-07-01 | K6: 2027-07-31 | L6: =VLOOKUP(A6,'[4]Rev Assumptions1'!$B$48:$D$49,3,FALSE) -> 3 | M6: =L6 -> 3 | N6: =EDATE(G6, M6*12)-1 -> 2030-03-31 | O6: 2030-03-31 | P6: =EDATE(G6, L6*12)-1 -> 2030-03-31 | Q6: =EOMONTH(P6, 0) -> 2030-03-31 | R6: =VLOOKUP(A6,'[4]Rev Assumptions1'!$A$52:$D$53,4,FALSE) -> 0.03 | S6: ='[4]Rev Assumptions1'!$D$54 -> 1 | T6: =[4]Revenue1!I64 -> 10313.31558 | U6: =INDEX(BD6:BW6, 1, COUNT(AI6:BB6)) -> 10941.3965 | V6: ='[4]Rev Assumptions1'!$D$62 -> 0 | W6: ='[4]Rev Assumptions1'!$D$63 -> 1 | X6: =[4]Revenue1!J64 -> 458.425 | Y6: 458.425 | AI6: =IF(EDATE($G6, $S6*12*AI$2)<=$P6, EDATE($G6, $S6*12*AI$2-1), "NA") -> 2028-03-01 | AJ6: 2029-03-01 | AK6: NA | AL6: NA | AM6: NA | AN6: NA | AO6: NA | AP6: NA | AQ6: NA | AR6: NA | AS6: NA | AT6: NA | AU6: NA | AV6: NA | AW6: NA | AX6: NA | AY6: NA | AZ6: NA | BA6: NA | BB6: NA | BD6: 10622.71505 | BE6: 10941.3965 | BF6: 0 | BG6: 0 | BH6: 0 | BI6: 0 | BJ6: 0 | BK6: 0 | BL6: 0 | BM6: 0 | BN6: 0 | BO6: 0 | BP6: 0 | BQ6: 0 | BR6: 0 | BS6: 0 | BT6: 0 | BU6: 0 | BV6: 0 | BW6: 0 | BY6: 2028-03-01 | BZ6: 2029-03-01 | CA6: NA | CB6: NA | CC6: NA | CD6: NA | CE6: NA | CF6: NA | CG6: NA | CH6: NA | CI6: NA | CJ6: NA | CK6: NA | CL6: NA | CM6: NA | CN6: NA | CO6: NA | CP6: NA | CQ6: NA | CR6: NA | CT6: 458.425 | CU6: =IF(BZ6="NA", 0, CT6*(1+$V6)) -> 458.425 | CV6: 0 | CW6: 0 | CX6: 0 | CY6: 0 | CZ6: 0 | DA6: 0 | DB6: 0 | DC6: 0 | DD6: 0 | DE6: 0 | DF6: 0 | DG6: 0 | DH6: 0 | DI6: 0 | DJ6: 0 | DK6: 0 | DL6: 0 | DM6: 0 | DO6: 2027-03-01 | DP6: 2027-03-01 | DQ6: 2027-03-01 | DR6: 2027-03-01 | DS6: 2027-03-01 | DT6: 2027-03-01 | DU6: 2027-03-01 | DV6: 2027-03-01 | DW6: 2027-03-01 | DX6: 2027-03-01 | DY6: 2027-03-01 | DZ6: 2027-03-01 | EA6: 2027-03-01 | EB6: 2027-03-01 | EC6: 2027-03-01 | ED6: 2027-03-01 | EE6: 2027-03-01 | EF6: 2027-03-01 | EG6: 2027-03-01 | EH6: 2027-03-01 | EJ6: 0 | EK6: =IF(DP6="NA", 0, EJ6*(1+$Z6)) -> 0 | EL6: 0 | EM6: 0 | EN6: 0 | EO6: 0 | EP6: 0 | EQ6: 0 | ER6: 0 | ES6: 0 | ET6: 0 | EU6: 0 | EV6: 0 | EW6: 0 | EX6: 0 | EY6: 0 | EZ6: 0 | FA6: 0 | FB6: 0 | FC6: 0
A7: =[4]Revenue1!A65 -> Hyperscaler | B7: =F7/'[4]Rev Assumptions1'!$C$10/10^3 -> 0.01032 | C7: =C6+1 -> 3 | D7: =[4]Revenue1!D65 -> Sub Phase 1 - Hyperscaler | E7: =IF(G7>='[4]Rev Assumptions1'!$E$21,'[4]Rev Assumptions1'!$B$21,IF(AND(G7>='[4]Rev Assumptions1'!$E$20,G7<'[4]Rev Assumptions1'!$E$21),'[4]Rev Assumptions1'!$B$20,'[4]Rev Assumptions1'!$B$19)) -> Phase 1 | F7: =[4]Revenue1!F65 -> 258 | G7: =[4]Revenue1!E65 -> 2027-05-01 | H7: 2027-05-31 | I7: ='[4]Rev Assumptions1'!$D$56 -> 3 | J7: 2027-08-01 | K7: 2027-08-31 | L7: =VLOOKUP(A7,'[4]Rev Assumptions1'!$B$48:$D$49,3,FALSE) -> 5 | M7: 5 | N7: 2032-04-30 | O7: 2032-04-30 | P7: =EDATE(G7, L7*12)-1 -> 2032-04-30 | Q7: =EOMONTH(P7, 0) -> 2032-04-30 | R7: =VLOOKUP(A7,'[4]Rev Assumptions1'!$A$52:$D$53,4,FALSE) -> 0.04 | S7: ='[4]Rev Assumptions1'!$D$54 -> 1 | T7: =[4]Revenue1!I65 -> 8438.167296 | U7: 9871.462242 | V7: ='[4]Rev Assumptions1'!$D$62 -> 0 | W7: ='[4]Rev Assumptions1'!$D$63 -> 1 | X7: =[4]Revenue1!J65 -> 0 | Y7: 0 | AI7: 2028-04-01 | AJ7: 2029-04-01 | AK7: 2030-04-01 | AL7: 2031-04-01 | AM7: NA | AN7: NA | AO7: NA | AP7: NA | AQ7: NA | AR7: NA | AS7: NA | AT7: NA | AU7: NA | AV7: NA | AW7: NA | AX7: NA | AY7: NA | AZ7: NA | BA7: NA | BB7: NA | BD7: 8775.693988 | BE7: 9126.721747 | BF7: 9491.790617 | BG7: 9871.462242 | BH7: 0 | BI7: 0 | BJ7: 0 | BK7: 0 | BL7: 0 | BM7: 0 | BN7: 0 | BO7: 0 | BP7: 0 | BQ7: 0 | BR7: 0 | BS7: 0 | BT7: 0 | BU7: 0 | BV7: 0 | BW7: 0 | BY7: 2028-04-01 | BZ7: 2029-04-01 | CA7: 2030-04-01 | CB7: 2031-04-01 | CC7: NA | CD7: NA | CE7: NA | CF7: NA | CG7: NA | CH7: NA | CI7: NA | CJ7: NA | CK7: NA | CL7: NA | CM7: NA | CN7: NA | CO7: NA | CP7: NA | CQ7: NA | CR7: NA | CT7: 0 | CU7: 0 | CV7: 0 | CW7: 0 | CX7: 0 | CY7: 0 | CZ7: 0 | DA7: 0 | DB7: 0 | DC7: 0 | DD7: 0 | DE7: 0 | DF7: 0 | DG7: 0 | DH7: 0 | DI7: 0 | DJ7: 0 | DK7: 0 | DL7: 0 | DM7: 0 | DO7: 2027-04-01 | DP7: 2027-04-01 | DQ7: 2027-04-01 | DR7: 2027-04-01 | DS7: 2027-04-01 | DT7: 2027-04-01 | DU7: 2027-04-01 | DV7: 2027-04-01 | DW7: 2027-04-01 | DX7: 2027-04-01 | DY7: 2027-04-01 | DZ7: 2027-04-01 | EA7: 2027-04-01 | EB7: 2027-04-01 | EC7: 2027-04-01 | ED7: 2027-04-01 | EE7: 2027-04-01 | EF7: 2027-04-01 | EG7: 2027-04-01 | EH7: 2027-04-01 | EJ7: 0 | EK7: 0 | EL7: 0 | EM7: 0 | EN7: 0 | EO7: 0 | EP7: 0 | EQ7: 0 | ER7: 0 | ES7: 0 | ET7: 0 | EU7: 0 | EV7: 0 | EW7: 0 | EX7: 0 | EY7: 0 | EZ7: 0 | FA7: 0 | FB7: 0 | FC7: 0
... 7 more rows

Sheet 2a. Rent Roll (Details)
B2: Rent Roll Details + Lease Up Schedule for Phase 1 | AH2: Please do not change this>>> | AI2: 1 | AJ2: =AI2+1 -> 2 | AK2: =AJ2+1 -> 3 | AL2: 4 | AM2: 5 | AN2: 6 | AO2: 7 | AP2: 8 | AQ2: 9 | AR2: 10 | AS2: 11 | AT2: 12 | AU2: 13 | AV2: 14 | AW2: 15 | AX2: 16 | AY2: 17 | AZ2: 18 | BA2: 19 | BB2: 20 | BC2: Please do not change this>>> | BD2: =AI2 -> 1 | BE2: =BD2+1 -> 2 | BF2: =BE2+1 -> 3 | BG2: 4 | BH2: 5 | BI2: 6 | BJ2: 7 | BK2: 8 | BL2: 9 | BM2: 10 | BN2: 11 | BO2: 12 | BP2: 13 | BQ2: 14 | BR2: 15 | BS2: 16 | BT2: 17 | BU2: 18 | BV2: 19 | BW2: 20 | BX2: Please do not change this>>> | BY2: 1 | BZ2: =BY2+1 -> 2 | CA2: 3 | CB2: 4 | CC2: 5 | CD2: 6 | CE2: 7 | CF2: 8 | CG2: 9 | CH2: 10 | CI2: 11 | CJ2: 12 | CK2: 13 | CL2: 14 | CM2: 15 | CN2: 16 | CO2: 17 | CP2: 18 | CQ2: 19 | CR2: 20 | CS2: Please do not change this>>> | CT2: =BY2 -> 1 | CU2: =CT2+1 -> 2 | CV2: 3 | CW2: 4 | CX2: 5 | CY2: 6 | CZ2: 7 | DA2: 8 | DB2: 9 | DC2: 10 | DD2: 11 | DE2: 12 | DF2: 13 | DG2: 14 | DH2: 15 | DI2: 16 | DJ2: 17 | DK2: 18 | DL2: 19 | DM2: 20 | DO2: 1 | DP2: =DO2+1 -> 2 | DQ2: 3 | DR2: 4 | DS2: 5 | DT2: 6 | DU2: 7 | DV2: 8 | DW2: 9 | DX2: 10 | DY2: 11 | DZ2: 12 | EA2: 13 | EB2: 14 | EC2: 15 | ED2: 16 | EE2: 17 | EF2: 18 | EG2: 19 | EH2: 20 | EI2: Please do not change this>>> | EJ2: =DO2 -> 1 | EK2: =EJ2+1 -> 2 | EL2: 3 | EM2: 4 | EN2: 5 | EO2: 6 | EP2: 7 | EQ2: 8 | ER2: 9 | ES2: 10 | ET2: 11 | EU2: 12 | EV2: 13 | EW2: 14 | EX2: 15 | EY2: 16 | EZ2: 17 | FA2: 18 | FB2: 19 | FC2: 20
D3: Lease Details | V3: Other Income | Z3: CAM | AD3: Security Deposit Details | AF3: Marketing Commissions Details | AI3: Lease Escalation Dates | BD3: Lease Escalation Rents | BY3: Revenue from other sources Dates | CT3: Other income Escalation Rents | DO3: CAM Income Escalation Dates | EJ3: CAM Income Escalation Rents
B4: Lease Up Schedule | C4: S/N | D4: Leasing Phase / Tenant Name | E4: Phase | F4: IT Load (KW) | G4: Lease Start Date | H4: Lease Start Date (End of Month) | I4: Rent Free (Months) | J4: Rent Start Date | K4: Rent Start Date (End of month) | L4: Lease Period (Years) | M4: Lock-in Period (Years) | N4: Lock-in End Date | O4: Lock-in End Date (End of Month) | P4: Lease End Date | Q4: Lease End Date (End of Month) | R4: Lease Rental Escalation (%) | S4: Lease Escalation (years) | T4: Base Rent (INR per KW per month) | U4: Exit Rent (INR per KW per month) | V4: Escalation (%) | W4: other income Escalation Term (years) | X4: Base Rent (per KW per month) | Y4: Exit Rent (per KW per month) | Z4: CAM Income escalation (%) | AA4: CAM Income Escalation Term (years) | AB4: Base CAM Income (psf per month) | AC4: Exit CAM Income (psf per month) | AD4: Security Deposit (months) | AE4: Security Deposit (INR) | AF4: New Lease or Rollover? | AG4: Marketing Commissions (INR) | AI4: 1st Escalation Date | AJ4: 2nd Escalation Date | AK4: 3rd Escalation Date | AL4: 4th Escalation Date | AM4: 5th Escalation Date | AN4: 6th Escalation Date | AO4: 7th Escalation Date | AP4: 8th Escalation Date | AQ4: 9th Escalation Date | AR4: 10th Escalation Date | AS4: 11th Escalation Date | AT4: 12th Escalation Date | AU4: 13th Escalation Date | AV4: 14th Escalation Date | AW4: 15th Escalation Date | AX4: 16th Escalation Date | AY4: 17th Escalation Date | AZ4: 18th Escalation Date | BA4: 19th Escalation Date | BB4: 20th Escalation Date | BD4: 1st Escalation Rent | BE4: 2nd Escalation Rent | BF4: 3rd Escalation Rent | BG4: 4th Escalation Rent | BH4: 5th Escalation Rent | BI4: 6th Escalation Rent | BJ4: 7th Escalation Rent | BK4: 8th Escalation Rent | BL4: 9th Escalation Rent | BM4: 10th Escalation Rent | BN4: 11th Escalation Rent | BO4: 12th Escalation Rent | BP4: 13th Escalation Rent | BQ4: 14th Escalation Rent | BR4: 15th Escalation Rent | BS4: 16th Escalation Rent | BT4: 17th Escalation Rent | BU4: 18th Escalation Rent | BV4: 19th Escalation Rent | BW4: 20th Escalation Rent | BY4: 1st Escalation Date | BZ4: 2nd Escalation Date | CA4: 3rd Escalation Date | CB4: 4th Escalation Date | CC4: 5th Escalation Date | CD4: 6th Escalation Date | CE4: 7th Escalation Date | CF4: 8th Escalation Date | CG4: 9th Escalation Date | CH4: 10th Escalation Date | CI4: 11th Escalation Date | CJ4: 12th Escalation Date | CK4: 13th Escalation Date | CL4: 14th Escalation Date | CM4: 15th Escalation Date | CN4: 16th Escalation Date | CO4: 17th Escalation Date | CP4: 18th Escalation Date | CQ4: 19th Escalation Date | CR4: 20th Escalation Date | CT4: 1st Escalation Rent | CU4: 2nd Escalation Rent | CV4: 3rd Escalation Rent | CW4: 4th Escalation Rent | CX4: 5th Escalation Rent | CY4: 6th Escalation Rent | CZ4: 7th Escalation Rent | DA4: 8th Escalation Rent | DB4: 9th Escalation Rent | DC4: 10th Escalation Rent | DD4: 11th Escalation Rent | DE4: 12th Escalation Rent | DF4: 13th Escalation Rent | DG4: 14th Escalation Rent | DH4: 15th Escalation Rent | DI4: 16th Escalation Rent | DJ4: 17th Escalation Rent | DK4: 18th Escalation Rent | DL4: 19th Escalation Rent | DM4: 20th Escalation Rent | DO4: 1st Escalation Date | DP4: 2nd Escalation Date | DQ4: 3rd Escalation Date | DR4: 4th Escalation Date | DS4: 5th Escalation Date | DT4: 6th Escalation Date | DU4: 7th Escalation Date | DV4: 8th Escalation Date | DW4: 9th Escalation Date | DX4: 10th Escalation Date | DY4: 11th Escalation Date | DZ4: 12th Escalation Date | EA4: 13th Escalation Date | EB4: 14th Escalation Date | EC4: 15th Escalation Date | ED4: 16th Escalation Date | EE4: 17th Escalation Date | EF4: 18th Escalation Date | EG4: 19th Escalation Date | EH4: 20th Escalation Date | EJ4: 1st Escalation Rent | EK4: 2nd Escalation Rent | EL4: 3rd Escalation Rent | EM4: 4th Escalation Rent | EN4: 5th Escalation Rent | EO4: 6th Escalation Rent | EP4: 7th Escalation Rent | EQ4: 8th Escalation Rent | ER4: 9th Escalation Rent | ES4: 10th Escalation Rent | ET4: 11th Escalation Rent | EU4: 12th Escalation Rent | EV4: 13th Escalation Rent | EW4: 14th Escalation Rent | EX4: 15th Escalation Rent | EY4: 16th Escalation Rent | EZ4: 17th Escalation Rent | FA4: 18th Escalation Rent | FB4: 19th Escalation Rent | FC4: 20th Escalation Rent
A5: =Revenue!A63 -> Hyperscaler | B5: =F5/'Rev Assumptions'!$C$10/10^3 -> 0.01032 | C5: 1 | D5: =Revenue!D63 ->  | E5: =IF(G5>='Rev Assumptions'!$E$21,'Rev Assumptions'!$B$21,IF(AND(G5>='Rev Assumptions'!$E$20,G5<'Rev Assumptions'!$E$21),'Rev Assumptions'!$B$20,'Rev Assumptions'!$B$19)) -> Phase 1 | F5: =Revenue!F63 -> 258 | G5: =Revenue!E63 -> 2027-04-01 | H5: =EOMONTH(G5, 0) -> 2027-04-30 | I5: ='Rev Assumptions'!$D$56 -> 3 | J5: =EDATE(G5,I5) -> 2027-07-01 | K5: =EOMONTH(J5, 0) -> 2027-07-31 | L5: =VLOOKUP(A5,'Rev Assumptions'!$B$48:$D$49,3,FALSE) -> 5 | M5: =L5 -> 5 | N5: =EDATE(G5, M5*12-1) -> 2032-03-01 | O5: =EOMONTH(N5, 0) -> 2032-03-31 | P5: =EDATE(G5, L5*12)-1 -> 2032-03-31 | Q5: =EOMONTH(P5, 0) -> 2032-03-31 | R5: =VLOOKUP(A5,'Rev Assumptions'!$A$52:$D$53,4,FALSE) -> 0.045 | S5: ='Rev Assumptions'!$D$54 -> 1 | T5: =Revenue!I63 -> 8200.739738 | U5: =INDEX(BD5:BW5, 1, COUNT(AI5:BB5)) -> 9779.534676 | V5: ='Rev Assumptions'!$D$61 -> 0 | W5: ='Rev Assumptions'!$D$62 -> 1 | X5: =Revenue!J63 -> 0 | Y5: =INDEX(CT5:DM5, 1, COUNT(BY5:CR5))*0+X5 -> 0 | AI5: =IF(EDATE($G5, $S5*12*AI$2)<=$P5, EDATE($G5, $S5*12*AI$2-1), "NA") -> 2028-03-01 | AJ5: =IF(EDATE($G5, $S5*12*AJ$2)<=$P5, EDATE($G5, $S5*12*AJ$2-1), "NA") -> 2029-03-01 | AK5: 2030-03-01 | AL5: 2031-03-01 | AM5: NA | AN5: NA | AO5: NA | AP5: NA | AQ5: NA | AR5: NA | AS5: NA | AT5: NA | AU5: NA | AV5: NA | AW5: NA | AX5: NA | AY5: NA | AZ5: NA | BA5: NA | BB5: NA | BD5: =IF(AI5="NA", 0, T5*(1+$R5)) -> 8569.773026 | BE5: =IF(AJ5="NA", 0, BD5*(1+$R5)) -> 8955.412812 | BF5: 9358.406388 | BG5: 9779.534676 | BH5: 0 | BI5: 0 | BJ5: 0 | BK5: 0 | BL5: 0 | BM5: 0 | BN5: 0 | BO5: 0 | BP5: 0 | BQ5: 0 | BR5: 0 | BS5: 0 | BT5: 0 | BU5: =IF(AZ5="NA", 0, BT5*(1+$R5)) -> 0 | BV5: 0 | BW5: 0 | BY5: =IF(EDATE($G5, $W5*12*BY$2)<=$P5, EDATE($G5, $W5*12*BY$2-1), "NA") -> 2028-03-01 | BZ5: 2029-03-01 | CA5: 2030-03-01 | CB5: 2031-03-01 | CC5: NA | CD5: NA | CE5: NA | CF5: NA | CG5: NA | CH5: NA | CI5: =IF(EDATE($G5, $W5*12*CI$2)<=$P5, EDATE($G5, $W5*12*CI$2-1), "NA") -> NA | CJ5: NA | CK5: NA | CL5: NA | CM5: NA | CN5: NA | CO5: NA | CP5: NA | CQ5: NA | CR5: NA | CT5: =IF(BY5="NA", 0, $X5*(1+$V5)) -> 0 | CU5: =IF(BZ5="NA", 0, CT5*(1+$V5)) -> 0 | CV5: =IF(CA5="NA", 0, CU5*(1+$V5)) -> 0 | CW5: 0 | CX5: 0 | CY5: 0 | CZ5: 0 | DA5: 0 | DB5: 0 | DC5: 0 | DD5: 0 | DE5: 0 | DF5: 0 | DG5: 0 | DH5: 0 | DI5: 0 | DJ5: 0 | DK5: 0 | DL5: 0 | DM5: 0 | DO5: =IF(EDATE($G5, $AA5*12*DO$2)<=$P5, EDATE($G5, $AA5*12*DO$2-1), "NA") -> 2027-03-01 | DP5: 2027-03-01 | DQ5: 2027-03-01 | DR5: 2027-03-01 | DS5: 2027-03-01 | DT5: 2027-03-01 | DU5: 2027-03-01 | DV5: 2027-03-01 | DW5: 2027-03-01 | DX5: 2027-03-01 | DY5: =IF(EDATE($G5, $AA5*12*DY$2)<=$P5, EDATE($G5, $AA5*12*DY$2-1), "NA") -> 2027-03-01 | DZ5: 2027-03-01 | EA5: 2027-03-01 | EB5: 2027-03-01 | EC5: 2027-03-01 | ED5: 2027-03-01 | EE5: 2027-03-01 | EF5: 2027-03-01 | EG5: 2027-03-01 | EH5: 2027-03-01 | EJ5: =IF(DO5="NA", 0, $AB5*(1+$Z5)) -> 0 | EK5: =IF(DP5="NA", 0, EJ5*(1+$Z5)) -> 0 | EL5: =IF(DQ5="NA", 0, EK5*(1+$Z5)) -> 0 | EM5: 0 | EN5: 0 | EO5: 0 | EP5: 0 | EQ5: 0 | ER5: 0 | ES5: 0 | ET5: 0 | EU5: 0 | EV5: 0 | EW5: 0 | EX5: 0 | EY5: 0 | EZ5: 0 | FA5: 0 | FB5: 0 | FC5: 0
A6: =Revenue!A64 -> Enterprise | B6: =F6/'Rev Assumptions'!$C$10/10^3 -> 0.01548 | C6: =C5+1 -> 2 | D6: =Revenue!D64 ->  | E6: =IF(G6>='Rev Assumptions'!$E$21,'Rev Assumptions'!$B$21,IF(AND(G6>='Rev Assumptions'!$E$20,G6<'Rev Assumptions'!$E$21),'Rev Assumptions'!$B$20,'Rev Assumptions'!$B$19)) -> Phase 1 | F6: =Revenue!F64 -> 387 | G6: =Revenue!E64 -> 2027-04-01 | H6: =EOMONTH(G6, 0) -> 2027-04-30 | I6: ='Rev Assumptions'!$D$56 -> 3 | J6: =EDATE(G6,I6) -> 2027-07-01 | K6: 2027-07-31 | L6: =VLOOKUP(A6,'Rev Assumptions'!$B$48:$D$49,3,FALSE) -> 3 | M6: =L6 -> 3 | N6: =EDATE(G6, M6*12)-1 -> 2030-03-31 | O6: 2030-03-31 | P6: =EDATE(G6, L6*12)-1 -> 2030-03-31 | Q6: =EOMONTH(P6, 0) -> 2030-03-31 | R6: =VLOOKUP(A6,'Rev Assumptions'!$A$52:$D$53,4,FALSE) -> 0.045 | S6: ='Rev Assumptions'!$D$54 -> 1 | T6: =Revenue!I64 -> 9111.933042 | U6: =INDEX(BD6:BW6, 1, COUNT(AI6:BB6)) -> 9950.45868 | V6: ='Rev Assumptions'!$D$61 -> 0 | W6: ='Rev Assumptions'!$D$62 -> 1 | X6: =Revenue!J64 -> 417.2035 | Y6: 417.2035 | AI6: =IF(EDATE($G6, $S6*12*AI$2)<=$P6, EDATE($G6, $S6*12*AI$2-1), "NA") -> 2028-03-01 | AJ6: 2029-03-01 | AK6: NA | AL6: NA | AM6: NA | AN6: NA | AO6: NA | AP6: NA | AQ6: NA | AR6: NA | AS6: NA | AT6: NA | AU6: NA | AV6: NA | AW6: NA | AX6: NA | AY6: NA | AZ6: NA | BA6: NA | BB6: NA | BD6: 9521.970029 | BE6: 9950.45868 | BF6: 0 | BG6: 0 | BH6: 0 | BI6: 0 | BJ6: 0 | BK6: 0 | BL6: 0 | BM6: 0 | BN6: 0 | BO6: 0 | BP6: 0 | BQ6: 0 | BR6: 0 | BS6: 0 | BT6: 0 | BU6: 0 | BV6: 0 | BW6: 0 | BY6: 2028-03-01 | BZ6: 2029-03-01 | CA6: NA | CB6: NA | CC6: NA | CD6: NA | CE6: NA | CF6: NA | CG6: NA | CH6: NA | CI6: NA | CJ6: NA | CK6: NA | CL6: NA | CM6: NA | CN6: NA | CO6: NA | CP6: NA | CQ6: NA | CR6: NA | CT6: 417.2035 | CU6: =IF(BZ6="NA", 0, CT6*(1+$V6)) -> 417.2035 | CV6: 0 | CW6: 0 | CX6: 0 | CY6: 0 | CZ6: 0 | DA6: 0 | DB6: 0 | DC6: 0 | DD6: 0 | DE6: 0 | DF6: 0 | DG6: 0 | DH6: 0 | DI6: 0 | DJ6: 0 | DK6: 0 | DL6: 0 | DM6: 0 | DO6: 2027-03-01 | DP6: 2027-03-01 | DQ6: 2027-03-01 | DR6: 2027-03-01 | DS6: 2027-03-01 | DT6: 2027-03-01 | DU6: 2027-03-01 | DV6: 2027-03-01 | DW6: 2027-03-01 | DX6: 2027-03-01 | DY6: 2027-03-01 | DZ6: 2027-03-01 | EA6: 2027-03-01 | EB6: 2027-03-01 | EC6: 2027-03-01 | ED6: 2027-03-01 | EE6: 2027-03-01 | EF6: 2027-03-01 | EG6: 2027-03-01 | EH6: 2027-03-01 | EJ6: 0 | EK6: =IF(DP6="NA", 0, EJ6*(1+$Z6)) -> 0 | EL6: 0 | EM6: 0 | EN6: 0 | EO6: 0 | EP6: 0 | EQ6: 0 | ER6: 0 | ES6: 0 | ET6: 0 | EU6: 0 | EV6: 0 | EW6: 0 | EX6: 0 | EY6: 0 | EZ6: 0 | FA6: 0 | FB6: 0 | FC6: 0
A7: =Revenue!A65 -> Hyperscaler | B7: =F7/'Rev Assumptions'!$C$10/10^3 -> 0.01032 | C7: =C6+1 -> 3 | D7: =Revenue!D65 ->  | E7: =IF(G7>='Rev Assumptions'!$E$21,'Rev Assumptions'!$B$21,IF(AND(G7>='Rev Assumptions'!$E$20,G7<'Rev Assumptions'!$E$21),'Rev Assumptions'!$B$20,'Rev Assumptions'!$B$19)) -> Phase 1 | F7: =Revenue!F65 -> 258 | G7: =Revenue!E65 -> 2027-05-01 | H7: 2027-05-31 | I7: ='Rev Assumptions'!$D$56 -> 3 | J7: 2027-08-01 | K7: 2027-08-31 | L7: =VLOOKUP(A7,'Rev Assumptions'!$B$48:$D$49,3,FALSE) -> 5 | M7: 5 | N7: 2032-04-30 | O7: 2032-04-30 | P7: =EDATE(G7, L7*12)-1 -> 2032-04-30 | Q7: =EOMONTH(P7, 0) -> 2032-04-30 | R7: =VLOOKUP(A7,'Rev Assumptions'!$A$52:$D$53,4,FALSE) -> 0.045 | S7: ='Rev Assumptions'!$D$54 -> 1 | T7: =Revenue!I65 -> 8200.739738 | U7: 9779.534676 | V7: ='Rev Assumptions'!$D$61 -> 0 | W7: ='Rev Assumptions'!$D$62 -> 1 | X7: =Revenue!J65 -> 0 | Y7: 0 | AI7: 2028-04-01 | AJ7: 2029-04-01 | AK7: 2030-04-01 | AL7: 2031-04-01 | AM7: NA | AN7: NA | AO7: NA | AP7: NA | AQ7: NA | AR7: NA | AS7: NA | AT7: NA | AU7: NA | AV7: NA | AW7: NA | AX7: NA | AY7: NA | AZ7: NA | BA7: NA | BB7: NA | BD7: 8569.773026 | BE7: 8955.412812 | BF7: 9358.406388 | BG7: 9779.534676 | BH7: 0 | BI7: 0 | BJ7: 0 | BK7: 0 | BL7: 0 | BM7: 0 | BN7: 0 | BO7: 0 | BP7: 0 | BQ7: 0 | BR7: 0 | BS7: 0 | BT7: 0 | BU7: 0 | BV7: 0 | BW7: 0 | BY7: 2028-04-01 | BZ7: 2029-04-01 | CA7: 2030-04-01 | CB7: 2031-04-01 | CC7: NA | CD7: NA | CE7: NA | CF7: NA | CG7: NA | CH7: NA | CI7: NA | CJ7: NA | CK7: NA | CL7: NA | CM7: NA | CN7: NA | CO7: NA | CP7: NA | CQ7: NA | CR7: NA | CT7: 0 | CU7: 0 | CV7: 0 | CW7: 0 | CX7: 0 | CY7: 0 | CZ7: 0 | DA7: 0 | DB7: 0 | DC7: 0 | DD7: 0 | DE7: 0 | DF7: 0 | DG7: 0 | DH7: 0 | DI7: 0 | DJ7: 0 | DK7: 0 | DL7: 0 | DM7: 0 | DO7: 2027-04-01 | DP7: 2027-04-01 | DQ7: 2027-04-01 | DR7: 2027-04-01 | DS7: 2027-04-01 | DT7: 2027-04-01 | DU7: 2027-04-01 | DV7: 2027-04-01 | DW7: 2027-04-01 | DX7: 2027-04-01 | DY7: 2027-04-01 | DZ7: 2027-04-01 | EA7: 2027-04-01 | EB7: 2027-04-01 | EC7: 2027-04-01 | ED7: 2027-04-01 | EE7: 2027-04-01 | EF7: 2027-04-01 | EG7: 2027-04-01 | EH7: 2027-04-01 | EJ7: 0 | EK7: 0 | EL7: 0 | EM7: 0 | EN7: 0 | EO7: 0 | EP7: 0 | EQ7: 0 | ER7: 0 | ES7: 0 | ET7: 0 | EU7: 0 | EV7: 0 | EW7: 0 | EX7: 0 | EY7: 0 | EZ7: 0 | FA7: 0 | FB7: 0 | FC7: 0
... 8 more rows

Sheet 2b. Lease Schedule (IT Load)
B1: Rent Roll (Monthly) - Area
J2: 1 | K2: 1 | L2: 1 | M2: 1 | N2: 1 | O2: 1 | P2: 1 | Q2: 1 | R2: 1 | S2: 1 | T2: 1 | U2: 1 | V2: =J2+1 -> 2 | W2: =K2+1 -> 2 | X2: 2 | Y2: 2 | Z2: 2 | AA2: 2 | AB2: 2 | AC2: 2 | AD2: 2 | AE2: =S2+1 -> 2 | AF2: 2 | AG2: 2 | AH2: 3 | AI2: 3 | AJ2: 3 | AK2: 3 | AL2: 3 | AM2: 3 | AN2: 3 | AO2: 3 | AP2: 3 | AQ2: 3 | AR2: 3 | AS2: 3 | AT2: 4 | AU2: 4 | AV2: 4 | AW2: 4 | AX2: 4 | AY2: 4 | AZ2: 4 | BA2: 4 | BB2: 4 | BC2: 4 | BD2: 4 | BE2: 4 | BF2: 5 | BG2: 5 | BH2: 5 | BI2: 5 | BJ2: 5 | BK2: 5 | BL2: 5 | BM2: 5 | BN2: 5 | BO2: 5 | BP2: 5 | BQ2: 5 | BR2: 6 | BS2: 6 | BT2: 6 | BU2: 6 | BV2: 6 | BW2: 6 | BX2: 6 | BY2: 6 | BZ2: 6 | CA2: 6 | CB2: 6 | CC2: 6 | CD2: 7 | CE2: 7 | CF2: 7 | CG2: 7 | CH2: 7 | CI2: =BW2+1 -> 7 | CJ2: 7 | CK2: 7 | CL2: 7 | CM2: 7 | CN2: 7 | CO2: 7 | CP2: 8 | CQ2: 8 | CR2: 8 | CS2: 8 | CT2: 8 | CU2: 8 | CV2: 8 | CW2: 8 | CX2: 8 | CY2: 8 | CZ2: 8 | DA2: 8 | DB2: 9 | DC2: 9 | DD2: 9 | DE2: 9 | DF2: 9 | DG2: 9 | DH2: 9 | DI2: 9 | DJ2: 9 | DK2: 9 | DL2: 9 | DM2: 9 | DN2: 10 | DO2: 10 | DP2: 10 | DQ2: 10 | DR2: 10 | DS2: 10 | DT2: 10 | DU2: 10 | DV2: 10 | DW2: 10 | DX2: 10 | DY2: 10 | DZ2: 11 | EA2: 11 | EB2: 11 | EC2: 11 | ED2: 11 | EE2: 11 | EF2: 11 | EG2: 11 | EH2: 11 | EI2: 11 | EJ2: 11 | EK2: 11 | EL2: 12 | EM2: 12 | EN2: 12 | EO2: 12 | EP2: 12 | EQ2: 12 | ER2: 12 | ES2: 12 | ET2: 12 | EU2: =EI2+1 -> 12 | EV2: 12 | EW2: 12 | EX2: 13 | EY2: 13 | EZ2: 13 | FA2: 13 | FB2: 13 | FC2: 13 | FD2: 13 | FE2: 13 | FF2: 13 | FG2: 13 | FH2: 13 | FI2: 13 | FJ2: 14 | FK2: 14 | FL2: 14 | FM2: 14 | FN2: 14 | FO2: 14 | FP2: 14 | FQ2: 14 | FR2: 14 | FS2: 14 | FT2: 14 | FU2: 14 | FV2: 15 | FW2: 15 | FX2: 15 | FY2: 15 | FZ2: 15 | GA2: 15 | GB2: 15 | GC2: 15 | GD2: 15 | GE2: 15 | GF2: 15 | GG2: 15 | GH2: 16 | GI2: 16 | GJ2: 16 | GK2: 16 | GL2: 16 | GM2: 16 | GN2: 16 | GO2: 16 | GP2: 16 | GQ2: 16 | GR2: 16 | GS2: 16 | GT2: 17 | GU2: 17 | GV2: 17 | GW2: 17 | GX2: 17 | GY2: 17 | GZ2: 17 | HA2: 17 | HB2: 17 | HC2: 17 | HD2: 17 | HE2: 17 | HF2: 18 | HG2: =GU2+1 -> 18 | HH2: =GW2+1 -> 18 | HI2: =GX2+1 -> 18 | HJ2: 18 | HK2: 18 | HL2: 18 | HM2: =HB2+1 -> 18 | HN2: =HC2+1 -> 18 | HO2: =HD2+1 -> 18 | HP2: 18 | HQ2: =HF2+1 -> 19 | HR2: =HG2+1 -> 19 | HS2: =HH2+1 -> 19 | HT2: 19 | HU2: =HJ2+1 -> 19 | HV2: =HK2+1 -> 19 | HW2: =HL2+1 -> 19 | HX2: =HM2+1 -> 19 | HY2: =HN2+1 -> 19 | HZ2: =HO2+1 -> 19 | IA2: =HP2+1 -> 19 | IB2: =HQ2+1 -> 20 | IC2: =HR2+1 -> 20 | ID2: =HS2+1 -> 20 | IE2: =HT2+1 -> 20 | IF2: =HU2+1 -> 20 | IG2: =HV2+1 -> 20 | IH2: =HW2+1 -> 20 | II2: =HX2+1 -> 20 | IJ2: =HY2+1 -> 20 | IK2: =HZ2+1 -> 20 | IL2: =IA2+1 -> 20 | IM2: =IB2+1 -> 21 | IN2: =IC2+1 -> 21 | IO2: =ID2+1 -> 21 | IP2: =IE2+1 -> 21 | IQ2: =IF2+1 -> 21 | IR2: =IG2+1 -> 21 | IS2: =IH2+1 -> 21 | IT2: =II2+1 -> 21 | IU2: =IJ2+1 -> 21 | IV2: =IK2+1 -> 21 | IW2: =IL2+1 -> 21 | IX2: =IM2+1 -> 22 | IY2: =IN2+1 -> 22 | IZ2: =IO2+1 -> 22 | JA2: =IP2+1 -> 22 | JB2: =IQ2+1 -> 22 | JC2: =IR2+1 -> 22 | JD2: =IS2+1 -> 22
J3: =I4+1 -> 2024-01-01 | K3: =J4+1 -> 2024-02-01 | L3: =K4+1 -> 2024-03-01 | M3: 2024-04-01 | N3: 2024-05-01 | O3: 2024-06-01 | P3: 2024-07-01 | Q3: 2024-08-01 | R3: 2024-09-01 | S3: 2024-10-01 | T3: 2024-11-01 | U3: 2024-12-01 | V3: 2025-01-01 | W3: 2025-02-01 | X3: 2025-03-01 | Y3: 2025-04-01 | Z3: 2025-05-01 | AA3: 2025-06-01 | AB3: 2025-07-01 | AC3: 2025-08-01 | AD3: 2025-09-01 | AE3: =AD4+1 -> 2025-10-01 | AF3: 2025-11-01 | AG3: 2025-12-01 | AH3: 2026-01-01 | AI3: 2026-02-01 | AJ3: 2026-03-01 | AK3: 2026-04-01 | AL3: 2026-05-01 | AM3: 2026-06-01 | AN3: 2026-07-01 | AO3: 2026-08-01 | AP3: 2026-09-01 | AQ3: 2026-10-01 | AR3: 2026-11-01 | AS3: 2026-12-01 | AT3: 2027-01-01 | AU3: 2027-02-01 | AV3: 2027-03-01 | AW3: 2027-04-01 | AX3: 2027-05-01 | AY3: 2027-06-01 | AZ3: 2027-07-01 | BA3: 2027-08-01 | BB3: 2027-09-01 | BC3: 2027-10-01 | BD3: 2027-11-01 | BE3: 2027-12-01 | BF3: 2028-01-01 | BG3: 2028-02-01 | BH3: 2028-03-01 | BI3: 2028-04-01 | BJ3: 2028-05-01 | BK3: 2028-06-01 | BL3: 2028-07-01 | BM3: 2028-08-01 | BN3: 2028-09-01 | BO3: 2028-10-01 | BP3: 2028-11-01 | BQ3: 2028-12-01 | BR3: 2029-01-01 | BS3: 2029-02-01 | BT3: 2029-03-01 | BU3: 2029-04-01 | BV3: 2029-05-01 | BW3: 2029-06-01 | BX3: =BW4+1 -> 2029-07-01 | BY3: 2029-08-01 | BZ3: 2029-09-01 | CA3: 2029-10-01 | CB3: 2029-11-01 | CC3: 2029-12-01 | CD3: 2030-01-01 | CE3: 2030-02-01 | CF3: 2030-03-01 | CG3: 2030-04-01 | CH3: 2030-05-01 | CI3: 2030-06-01 | CJ3: 2030-07-01 | CK3: 2030-08-01 | CL3: 2030-09-01 | CM3: 2030-10-01 | CN3: 2030-11-01 | CO3: 2030-12-01 | CP3: 2031-01-01 | CQ3: 2031-02-01 | CR3: 2031-03-01 | CS3: 2031-04-01 | CT3: 2031-05-01 | CU3: 2031-06-01 | CV3: 2031-07-01 | CW3: 2031-08-01 | CX3: 2031-09-01 | CY3: 2031-10-01 | CZ3: 2031-11-01 | DA3: 2031-12-01 | DB3: 2032-01-01 | DC3: 2032-02-01 | DD3: 2032-03-01 | DE3: 2032-04-01 | DF3: 2032-05-01 | DG3: 2032-06-01 | DH3: 2032-07-01 | DI3: 2032-08-01 | DJ3: 2032-09-01 | DK3: 2032-10-01 | DL3: 2032-11-01 | DM3: 2032-12-01 | DN3: 2033-01-01 | DO3: 2033-02-01 | DP3: =DO4+1 -> 2033-03-01 | DQ3: =DP4+1 -> 2033-04-01 | DR3: =DQ4+1 -> 2033-05-01 | DS3: =DR4+1 -> 2033-06-01 | DT3: =DS4+1 -> 2033-07-01 | DU3: =DT4+1 -> 2033-08-01 | DV3: =DU4+1 -> 2033-09-01 | DW3: =DV4+1 -> 2033-10-01 | DX3: =DW4+1 -> 2033-11-01 | DY3: =DX4+1 -> 2033-12-01 | DZ3: =DY4+1 -> 2034-01-01 | EA3: =DZ4+1 -> 2034-02-01 | EB3: =EA4+1 -> 2034-03-01 | EC3: =EB4+1 -> 2034-04-01 | ED3: =EC4+1 -> 2034-05-01 | EE3: =ED4+1 -> 2034-06-01 | EF3: =EE4+1 -> 2034-07-01 | EG3: =EF4+1 -> 2034-08-01 | EH3: =EG4+1 -> 2034-09-01 | EI3: =EH4+1 -> 2034-10-01 | EJ3: =EI4+1 -> 2034-11-01 | EK3: =EJ4+1 -> 2034-12-01 | EL3: =EK4+1 -> 2035-01-01 | EM3: =EL4+1 -> 2035-02-01 | EN3: =EM4+1 -> 2035-03-01 | EO3: =EN4+1 -> 2035-04-01 | EP3: =EO4+1 -> 2035-05-01 | EQ3: =EP4+1 -> 2035-06-01 | ER3: =EQ4+1 -> 2035-07-01 | ES3: =ER4+1 -> 2035-08-01 | ET3: =ES4+1 -> 2035-09-01 | EU3: =ET4+1 -> 2035-10-01 | EV3: =EU4+1 -> 2035-11-01 | EW3: =EV4+1 -> 2035-12-01 | EX3: =EW4+1 -> 2036-01-01 | EY3: =EX4+1 -> 2036-02-01 | EZ3: =EY4+1 -> 2036-03-01 | FA3: =EZ4+1 -> 2036-04-01 | FB3: =FA4+1 -> 2036-05-01 | FC3: =FB4+1 -> 2036-06-01 | FD3: =FC4+1 -> 2036-07-01 | FE3: =FD4+1 -> 2036-08-01 | FF3: =FE4+1 -> 2036-09-01 | FG3: =FF4+1 -> 2036-10-01 | FH3: =FG4+1 -> 2036-11-01 | FI3: =FH4+1 -> 2036-12-01 | FJ3: =FI4+1 -> 2037-01-01 | FK3: =FJ4+1 -> 2037-02-01 | FL3: =FK4+1 -> 2037-03-01 | FM3: =FL4+1 -> 2037-04-01 | FN3: =FM4+1 -> 2037-05-01 | FO3: =FN4+1 -> 2037-06-01 | FP3: =FO4+1 -> 2037-07-01 | FQ3: =FP4+1 -> 2037-08-01 | FR3: =FQ4+1 -> 2037-09-01 | FS3: =FR4+1 -> 2037-10-01 | FT3: =FS4+1 -> 2037-11-01 | FU3: =FT4+1 -> 2037-12-01 | FV3: =FU4+1 -> 2038-01-01 | FW3: =FV4+1 -> 2038-02-01 | FX3: =FW4+1 -> 2038-03-01 | FY3: =FX4+1 -> 2038-04-01 | FZ3: =FY4+1 -> 2038-05-01 | GA3: =FZ4+1 -> 2038-06-01 | GB3: =GA4+1 -> 2038-07-01 | GC3: =GB4+1 -> 2038-08-01 | GD3: =GC4+1 -> 2038-09-01 | GE3: =GD4+1 -> 2038-10-01 | GF3: =GE4+1 -> 2038-11-01 | GG3: =GF4+1 -> 2038-12-01 | GH3: =GG4+1 -> 2039-01-01 | GI3: =GH4+1 -> 2039-02-01 | GJ3: =GI4+1 -> 2039-03-01 | GK3: =GJ4+1 -> 2039-04-01 | GL3: =GK4+1 -> 2039-05-01 | GM3: =GL4+1 -> 2039-06-01 | GN3: =GM4+1 -> 2039-07-01 | GO3: =GN4+1 -> 2039-08-01 | GP3: =GO4+1 -> 2039-09-01 | GQ3: =GP4+1 -> 2039-10-01 | GR3: =GQ4+1 -> 2039-11-01 | GS3: =GR4+1 -> 2039-12-01 | GT3: =GS4+1 -> 2040-01-01 | GU3: =GT4+1 -> 2040-02-01 | GV3: =GU4+1 -> 2040-03-01 | GW3: =GV4+1 -> 2040-04-01 | GX3: =GW4+1 -> 2040-05-01 | GY3: =GX4+1 -> 2040-06-01 | GZ3: =GY4+1 -> 2040-07-01 | HA3: =GZ4+1 -> 2040-08-01 | HB3: =HA4+1 -> 2040-09-01 | HC3: =HB4+1 -> 2040-10-01 | HD3: =HC4+1 -> 2040-11-01 | HE3: =HD4+1 -> 2040-12-01 | HF3: =HE4+1 -> 2041-01-01 | HG3: =HF4+1 -> 2041-02-01 | HH3: =HG4+1 -> 2041-03-01 | HI3: =HH4+1 -> 2041-04-01 | HJ3: =HI4+1 -> 2041-05-01 | HK3: =HJ4+1 -> 2041-06-01 | HL3: =HK4+1 -> 2041-07-01 | HM3: =HL4+1 -> 2041-08-01 | HN3: =HM4+1 -> 2041-09-01 | HO3: =HN4+1 -> 2041-10-01 | HP3: =HO4+1 -> 2041-11-01 | HQ3: =HP4+1 -> 2041-12-01 | HR3: =HQ4+1 -> 2042-01-01 | HS3: =HR4+1 -> 2042-02-01 | HT3: =HS4+1 -> 2042-03-01 | HU3: =HT4+1 -> 2042-04-01 | HV3: =HU4+1 -> 2042-05-01 | HW3: =HV4+1 -> 2042-06-01 | HX3: =HW4+1 -> 2042-07-01 | HY3: =HX4+1 -> 2042-08-01 | HZ3: =HY4+1 -> 2042-09-01 | IA3: =HZ4+1 -> 2042-10-01 | IB3: =IA4+1 -> 2042-11-01 | IC3: =IB4+1 -> 2042-12-01 | ID3: =IC4+1 -> 2043-01-01 | IE3: =ID4+1 -> 2043-02-01 | IF3: =IE4+1 -> 2043-03-01 | IG3: =IF4+1 -> 2043-04-01 | IH3: =IG4+1 -> 2043-05-01 | II3: =IH4+1 -> 2043-06-01 | IJ3: =II4+1 -> 2043-07-01 | IK3: =IJ4+1 -> 2043-08-01 | IL3: =IK4+1 -> 2043-09-01 | IM3: =IL4+1 -> 2043-10-01 | IN3: =IM4+1 -> 2043-11-01 | IO3: =IN4+1 -> 2043-12-01 | IP3: =IO4+1 -> 2044-01-01 | IQ3: =IP4+1 -> 2044-02-01 | IR3: =IQ4+1 -> 2044-03-01 | IS3: =IR4+1 -> 2044-04-01 | IT3: =IS4+1 -> 2044-05-01 | IU3: =IT4+1 -> 2044-06-01 | IV3: =IU4+1 -> 2044-07-01 | IW3: =IV4+1 -> 2044-08-01 | IX3: =IW4+1 -> 2044-09-01 | IY3: =IX4+1 -> 2044-10-01 | IZ3: =IY4+1 -> 2044-11-01 | JA3: =IZ4+1 -> 2044-12-01 | JB3: =JA4+1 -> 2045-01-01 | JC3: =JB4+1 -> 2045-02-01 | JD3: =JC4+1 -> 2045-03-01
B4: S/N | C4: Tenant Name | D4: Phase | E4: Leased IT Load (KW) | F4: Lease Start Date | G4: Lease End Date | I4: =Timelines!$C$6 -> 2023-12-31 | J4: =EOMONTH(J3, 0) -> 2024-01-31 | K4: =EOMONTH(K3, 0) -> 2024-02-29 | L4: =EOMONTH(L3, 0) -> 2024-03-31 | M4: 2024-04-30 | N4: 2024-05-31 | O4: 2024-06-30 | P4: 2024-07-31 | Q4: 2024-08-31 | R4: 2024-09-30 | S4: 2024-10-31 | T4: 2024-11-30 | U4: 2024-12-31 | V4: 2025-01-31 | W4: 2025-02-28 | X4: 2025-03-31 | Y4: 2025-04-30 | Z4: 2025-05-31 | AA4: 2025-06-30 | AB4: 2025-07-31 | AC4: 2025-08-31 | AD4: 2025-09-30 | AE4: 2025-10-31 | AF4: 2025-11-30 | AG4: 2025-12-31 | AH4: 2026-01-31 | AI4: 2026-02-28 | AJ4: 2026-03-31 | AK4: 2026-04-30 | AL4: 2026-05-31 | AM4: 2026-06-30 | AN4: 2026-07-31 | AO4: 2026-08-31 | AP4: 2026-09-30 | AQ4: 2026-10-31 | AR4: 2026-11-30 | AS4: 2026-12-31 | AT4: 2027-01-31 | AU4: 2027-02-28 | AV4: 2027-03-31 | AW4: 2027-04-30 | AX4: 2027-05-31 | AY4: 2027-06-30 | AZ4: 2027-07-31 | BA4: 2027-08-31 | BB4: 2027-09-30 | BC4: 2027-10-31 | BD4: 2027-11-30 | BE4: 2027-12-31 | BF4: 2028-01-31 | BG4: 2028-02-29 | BH4: 2028-03-31 | BI4: 2028-04-30 | BJ4: 2028-05-31 | BK4: 2028-06-30 | BL4: 2028-07-31 | BM4: 2028-08-31 | BN4: 2028-09-30 | BO4: 2028-10-31 | BP4: 2028-11-30 | BQ4: 2028-12-31 | BR4: 2029-01-31 | BS4: 2029-02-28 | BT4: 2029-03-31 | BU4: 2029-04-30 | BV4: 2029-05-31 | BW4: 2029-06-30 | BX4: =EOMONTH(BX3, 0) -> 2029-07-31 | BY4: 2029-08-31 | BZ4: 2029-09-30 | CA4: 2029-10-31 | CB4: 2029-11-30 | CC4: 2029-12-31 | CD4: 2030-01-31 | CE4: 2030-02-28 | CF4: 2030-03-31 | CG4: 2030-04-30 | CH4: 2030-05-31 | CI4: 2030-06-30 | CJ4: 2030-07-31 | CK4: 2030-08-31 | CL4: 2030-09-30 | CM4: 2030-10-31 | CN4: 2030-11-30 | CO4: 2030-12-31 | CP4: 2031-01-31 | CQ4: 2031-02-28 | CR4: 2031-03-31 | CS4: 2031-04-30 | CT4: 2031-05-31 | CU4: 2031-06-30 | CV4: 2031-07-31 | CW4: 2031-08-31 | CX4: 2031-09-30 | CY4: 2031-10-31 | CZ4: 2031-11-30 | DA4: 2031-12-31 | DB4: 2032-01-31 | DC4: 2032-02-29 | DD4: 2032-03-31 | DE4: 2032-04-30 | DF4: 2032-05-31 | DG4: 2032-06-30 | DH4: 2032-07-31 | DI4: 2032-08-31 | DJ4: 2032-09-30 | DK4: 2032-10-31 | DL4: 2032-11-30 | DM4: 2032-12-31 | DN4: 2033-01-31 | DO4: 2033-02-28 | DP4: =EOMONTH(DP3, 0) -> 2033-03-31 | DQ4: 2033-04-30 | DR4: 2033-05-31 | DS4: 2033-06-30 | DT4: 2033-07-31 | DU4: 2033-08-31 | DV4: 2033-09-30 | DW4: 2033-10-31 | DX4: 2033-11-30 | DY4: 2033-12-31 | DZ4: 2034-01-31 | EA4: 2034-02-28 | EB4: 2034-03-31 | EC4: 2034-04-30 | ED4: 2034-05-31 | EE4: 2034-06-30 | EF4: 2034-07-31 | EG4: 2034-08-31 | EH4: 2034-09-30 | EI4: 2034-10-31 | EJ4: 2034-11-30 | EK4: 2034-12-31 | EL4: 2035-01-31 | EM4: 2035-02-28 | EN4: 2035-03-31 | EO4: 2035-04-30 | EP4: 2035-05-31 | EQ4: 2035-06-30 | ER4: 2035-07-31 | ES4: 2035-08-31 | ET4: 2035-09-30 | EU4: 2035-10-31 | EV4: 2035-11-30 | EW4: 2035-12-31 | EX4: 2036-01-31 | EY4: 2036-02-29 | EZ4: 2036-03-31 | FA4: 2036-04-30 | FB4: 2036-05-31 | FC4: 2036-06-30 | FD4: 2036-07-31 | FE4: 2036-08-31 | FF4: 2036-09-30 | FG4: 2036-10-31 | FH4: 2036-11-30 | FI4: 2036-12-31 | FJ4: 2037-01-31 | FK4: 2037-02-28 | FL4: 2037-03-31 | FM4: 2037-04-30 | FN4: 2037-05-31 | FO4: 2037-06-30 | FP4: 2037-07-31 | FQ4: 2037-08-31 | FR4: 2037-09-30 | FS4: 2037-10-31 | FT4: 2037-11-30 | FU4: 2037-12-31 | FV4: 2038-01-31 | FW4: 2038-02-28 | FX4: 2038-03-31 | FY4: 2038-04-30 | FZ4: 2038-05-31 | GA4: 2038-06-30 | GB4: =EOMONTH(GB3, 0) -> 2038-07-31 | GC4: 2038-08-31 | GD4: 2038-09-30 | GE4: 2038-10-31 | GF4: 2038-11-30 | GG4: 2038-12-31 | GH4: 2039-01-31 | GI4: 2039-02-28 | GJ4: 2039-03-31 | GK4: 2039-04-30 | GL4: 2039-05-31 | GM4: 2039-06-30 | GN4: 2039-07-31 | GO4: 2039-08-31 | GP4: 2039-09-30 | GQ4: 2039-10-31 | GR4: 2039-11-30 | GS4: 2039-12-31 | GT4: 2040-01-31 | GU4: 2040-02-29 | GV4: 2040-03-31 | GW4: 2040-04-30 | GX4: 2040-05-31 | GY4: 2040-06-30 | GZ4: 2040-07-31 | HA4: 2040-08-31 | HB4: 2040-09-30 | HC4: 2040-10-31 | HD4: 2040-11-30 | HE4: 2040-12-31 | HF4: 2041-01-31 | HG4: 2041-02-28 | HH4: 2041-03-31 | HI4: 2041-04-30 | HJ4: 2041-05-31 | HK4: 2041-06-30 | HL4: 2041-07-31 | HM4: 2041-08-31 | HN4: 2041-09-30 | HO4: 2041-10-31 | HP4: 2041-11-30 | HQ4: 2041-12-31 | HR4: 2042-01-31 | HS4: 2042-02-28 | HT4: 2042-03-31 | HU4: 2042-04-30 | HV4: 2042-05-31 | HW4: 2042-06-30 | HX4: 2042-07-31 | HY4: 2042-08-31 | HZ4: 2042-09-30 | IA4: 2042-10-31 | IB4: 2042-11-30 | IC4: 2042-12-31 | ID4: 2043-01-31 | IE4: 2043-02-28 | IF4: 2043-03-31 | IG4: 2043-04-30 | IH4: 2043-05-31 | II4: 2043-06-30 | IJ4: 2043-07-31 | IK4: 2043-08-31 | IL4: 2043-09-30 | IM4: 2043-10-31 | IN4: =EOMONTH(IN3, 0) -> 2043-11-30 | IO4: 2043-12-31 | IP4: 2044-01-31 | IQ4: 2044-02-29 | IR4: 2044-03-31 | IS4: 2044-04-30 | IT4: 2044-05-31 | IU4: 2044-06-30 | IV4: 2044-07-31 | IW4: 2044-08-31 | IX4: 2044-09-30 | IY4: 2044-10-31 | IZ4: 2044-11-30 | JA4: 2044-12-31 | JB4: 2045-01-31 | JC4: 2045-02-28 | JD4: 2045-03-31
B5: 1 | C5: =IF('2a. Rent Roll (Details)'!D5=0, " ",'2a. Rent Roll (Details)'!D5) ->  | D5: =IF('2a. Rent Roll (Details)'!E5=0, " ",'2a. Rent Roll (Details)'!E5) -> Phase 1 | E5: ='2a. Rent Roll (Details)'!F5 -> 258 | F5: =IF('2a. Rent Roll (Details)'!G5<> "", '2a. Rent Roll (Details)'!G5, "Not available") -> 2027-04-01 | G5: =IF('2a. Rent Roll (Details)'!Q5<>"", '2a. Rent Roll (Details)'!Q5, "Not Available") -> 2032-03-31 | J5: =IFERROR(IF(J$4>=$F5, IF(J$4>$G5, 0,$E5),0), 0) -> 0 | K5: =IFERROR(IF(K$4>=$F5, IF(K$4>$G5, 0,$E5),0), 0) -> 0 | L5: 0 | M5: 0 | N5: 0 | O5: 0 | P5: 0 | Q5: 0 | R5: 0 | S5: 0 | T5: 0 | U5: 0 | V5: 0 | W5: 0 | X5: 0 | Y5: 0 | Z5: 0 | AA5: 0 | AB5: 0 | AC5: 0 | AD5: 0 | AE5: 0 | AF5: 0 | AG5: 0 | AH5: 0 | AI5: 0 | AJ5: 0 | AK5: 0 | AL5: 0 | AM5: 0 | AN5: 0 | AO5: 0 | AP5: 0 | AQ5: 0 | AR5: 0 | AS5: 0 | AT5: 0 | AU5: 0 | AV5: 0 | AW5: 258 | AX5: 258 | AY5: 258 | AZ5: 258 | BA5: 258 | BB5: 258 | BC5: 258 | BD5: 258 | BE5: 258 | BF5: 258 | BG5: 258 | BH5: 258 | BI5: 258 | BJ5: 258 | BK5: 258 | BL5: 258 | BM5: 258 | BN5: 258 | BO5: 258 | BP5: 258 | BQ5: 258 | BR5: 258 | BS5: 258 | BT5: 258 | BU5: 258 | BV5: 258 | BW5: =IFERROR(IF(BW$4>=$F5, IF(BW$4>$G5, 0,$E5),0), 0) -> 258 | BX5: 258 | BY5: 258 | BZ5: 258 | CA5: 258 | CB5: 258 | CC5: 258 | CD5: 258 | CE5: 258 | CF5: 258 | CG5: 258 | CH5: 258 | CI5: 258 | CJ5: 258 | CK5: 258 | CL5: 258 | CM5: =IFERROR(IF(CM$4>=$F5, IF(CM$4>$G5, 0,$E5),0), 0) -> 258 | CN5: 258 | CO5: 258 | CP5: 258 | CQ5: 258 | CR5: 258 | CS5: 258 | CT5: 258 | CU5: 258 | CV5: 258 | CW5: 258 | CX5: 258 | CY5: 258 | CZ5: 258 | DA5: 258 | DB5: 258 | DC5: =IFERROR(IF(DC$4>=$F5, IF(DC$4>$G5, 0,$E5),0), 0) -> 258 | DD5: 258 | DE5: 0 | DF5: 0 | DG5: 0 | DH5: 0 | DI5: 0 | DJ5: 0 | DK5: 0 | DL5: 0 | DM5: 0 | DN5: 0 | DO5: 0 | DP5: 0 | DQ5: 0 | DR5: 0 | DS5: =IFERROR(IF(DS$4>=$F5, IF(DS$4>$G5, 0,$E5),0), 0) -> 0 | DT5: 0 | DU5: 0 | DV5: 0 | DW5: 0 | DX5: 0 | DY5: 0 | DZ5: 0 | EA5: 0 | EB5: 0 | EC5: 0 | ED5: 0 | EE5: 0 | EF5: 0 | EG5: 0 | EH5: 0 | EI5: =IFERROR(IF(EI$4>=$F5, IF(EI$4>$G5, 0,$E5),0), 0) -> 0 | EJ5: 0 | EK5: 0 | EL5: 0 | EM5: 0 | EN5: 0 | EO5: 0 | EP5: 0 | EQ5: 0 | ER5: 0 | ES5: 0 | ET5: 0 | EU5: 0 | EV5: 0 | EW5: 0 | EX5: 0 | EY5: 0 | EZ5: 0 | FA5: 0 | FB5: 0 | FC5: 0 | FD5: 0 | FE5: 0 | FF5: 0 | FG5: 0 | FH5: 0 | FI5: 0 | FJ5: 0 | FK5: 0 | FL5: 0 | FM5: 0 | FN5: 0 | FO5: 0 | FP5: 0 | FQ5: 0 | FR5: 0 | FS5: 0 | FT5: 0 | FU5: 0 | FV5: 0 | FW5: 0 | FX5: 0 | FY5: 0 | FZ5: 0 | GA5: 0 | GB5: 0 | GC5: 0 | GD5: 0 | GE5: 0 | GF5: 0 | GG5: 0 | GH5: 0 | GI5: 0 | GJ5: 0 | GK5: 0 | GL5: 0 | GM5: 0 | GN5: 0 | GO5: 0 | GP5: 0 | GQ5: 0 | GR5: 0 | GS5: 0 | GT5: 0 | GU5: =IFERROR(IF(GU$4>=$F5, IF(GU$4>$G5, 0,$E5),0), 0) -> 0 | GV5: 0 | GW5: 0 | GX5: 0 | GY5: 0 | GZ5: 0 | HA5: 0 | HB5: 0 | HC5: 0 | HD5: 0 | HE5: 0 | HF5: 0 | HG5: 0 | HH5: 0 | HI5: 0 | HJ5: 0 | HK5: =IFERROR(IF(HK$4>=$F5, IF(HK$4>$G5, 0,$E5),0), 0) -> 0 | HL5: 0 | HM5: =IFERROR(IF(HM$4>=$F5, IF(HM$4>$G5, 0,$E5),0), 0) -> 0 | HN5: 0 | HO5: 0 | HP5: 0 | HQ5: 0 | HR5: 0 | HS5: 0 | HT5: 0 | HU5: 0 | HV5: 0 | HW5: 0 | HX5: 0 | HY5: 0 | HZ5: 0 | IA5: 0 | IB5: 0 | IC5: =IFERROR(IF(IC$4>=$F5, IF(IC$4>$G5, 0,$E5),0), 0) -> 0 | ID5: 0 | IE5: 0 | IF5: 0 | IG5: 0 | IH5: 0 | II5: 0 | IJ5: 0 | IK5: 0 | IL5: 0 | IM5: 0 | IN5: 0 | IO5: 0 | IP5: 0 | IQ5: =IFERROR(IF(IQ$4>=$F5, IF(IQ$4>$G5, 0,$E5),0), 0) -> 0 | IR5: 0 | IS5: 0 | IT5: 0 | IU5: 0 | IV5: 0 | IW5: 0 | IX5: 0 | IY5: 0 | IZ5: 0 | JA5: 0 | JB5: 0 | JC5: 0 | JD5: 0
B6: =B5+1 -> 2 | C6: =IF('2a. Rent Roll (Details)'!D6=0, " ",'2a. Rent Roll (Details)'!D6) ->  | D6: =IF('2a. Rent Roll (Details)'!E6=0, " ",'2a. Rent Roll (Details)'!E6) -> Phase 1 | E6: ='2a. Rent Roll (Details)'!F6 -> 387 | F6: =IF('2a. Rent Roll (Details)'!G6<> "", '2a. Rent Roll (Details)'!G6, "Not available") -> 2027-04-01 | G6: =IF('2a. Rent Roll (Details)'!Q6<>"", '2a. Rent Roll (Details)'!Q6, "Not Available") -> 2030-03-31 | J6: =IFERROR(IF(J$4>=$F6, IF(J$4>$G6, 0,$E6),0), 0) -> 0 | K6: 0 | L6: 0 | M6: 0 | N6: 0 | O6: 0 | P6: 0 | Q6: 0 | R6: 0 | S6: 0 | T6: 0 | U6: 0 | V6: 0 | W6: 0 | X6: 0 | Y6: 0 | Z6: 0 | AA6: 0 | AB6: 0 | AC6: 0 | AD6: 0 | AE6: 0 | AF6: 0 | AG6: 0 | AH6: 0 | AI6: 0 | AJ6: 0 | AK6: 0 | AL6: 0 | AM6: 0 | AN6: 0 | AO6: 0 | AP6: 0 | AQ6: 0 | AR6: 0 | AS6: 0 | AT6: 0 | AU6: 0 | AV6: 0 | AW6: 387 | AX6: 387 | AY6: 387 | AZ6: 387 | BA6: 387 | BB6: 387 | BC6: 387 | BD6: 387 | BE6: 387 | BF6: 387 | BG6: 387 | BH6: 387 | BI6: 387 | BJ6: 387 | BK6: 387 | BL6: 387 | BM6: 387 | BN6: 387 | BO6: 387 | BP6: 387 | BQ6: 387 | BR6: 387 | BS6: 387 | BT6: 387 | BU6: 387 | BV6: 387 | BW6: 387 | BX6: 387 | BY6: 387 | BZ6: 387 | CA6: 387 | CB6: 387 | CC6: 387 | CD6: 387 | CE6: 387 | CF6: 387 | CG6: 0 | CH6: 0 | CI6: 0 | CJ6: 0 | CK6: 0 | CL6: 0 | CM6: 0 | CN6: 0 | CO6: 0 | CP6: 0 | CQ6: 0 | CR6: 0 | CS6: 0 | CT6: 0 | CU6: 0 | CV6: 0 | CW6: 0 | CX6: 0 | CY6: 0 | CZ6: 0 | DA6: 0 | DB6: 0 | DC6: 0 | DD6: 0 | DE6: 0 | DF6: 0 | DG6: 0 | DH6: 0 | DI6: 0 | DJ6: 0 | DK6: 0 | DL6: 0 | DM6: 0 | DN6: 0 | DO6: 0 | DP6: 0 | DQ6: 0 | DR6: 0 | DS6: 0 | DT6: 0 | DU6: 0 | DV6: 0 | DW6: 0 | DX6: 0 | DY6: 0 | DZ6: 0 | EA6: 0 | EB6: 0 | EC6: 0 | ED6: 0 | EE6: 0 | EF6: 0 | EG6: 0 | EH6: 0 | EI6: 0 | EJ6: 0 | EK6: 0 | EL6: 0 | EM6: 0 | EN6: 0 | EO6: 0 | EP6: 0 | EQ6: 0 | ER6: 0 | ES6: 0 | ET6: 0 | EU6: 0 | EV6: 0 | EW6: 0 | EX6: 0 | EY6: 0 | EZ6: 0 | FA6: 0 | FB6: 0 | FC6: 0 | FD6: 0 | FE6: 0 | FF6: 0 | FG6: 0 | FH6: 0 | FI6: 0 | FJ6: 0 | FK6: 0 | FL6: 0 | FM6: 0 | FN6: 0 | FO6: 0 | FP6: 0 | FQ6: 0 | FR6: 0 | FS6: 0 | FT6: 0 | FU6: 0 | FV6: 0 | FW6: 0 | FX6: 0 | FY6: 0 | FZ6: 0 | GA6: 0 | GB6: 0 | GC6: 0 | GD6: 0 | GE6: 0 | GF6: 0 | GG6: 0 | GH6: 0 | GI6: 0 | GJ6: 0 | GK6: 0 | GL6: 0 | GM6: 0 | GN6: 0 | GO6: 0 | GP6: 0 | GQ6: 0 | GR6: 0 | GS6: 0 | GT6: 0 | GU6: 0 | GV6: 0 | GW6: 0 | GX6: 0 | GY6: 0 | GZ6: 0 | HA6: 0 | HB6: 0 | HC6: 0 | HD6: 0 | HE6: 0 | HF6: 0 | HG6: 0 | HH6: 0 | HI6: 0 | HJ6: 0 | HK6: 0 | HL6: 0 | HM6: 0 | HN6: 0 | HO6: 0 | HP6: 0 | HQ6: 0 | HR6: 0 | HS6: 0 | HT6: 0 | HU6: 0 | HV6: 0 | HW6: 0 | HX6: 0 | HY6: 0 | HZ6: 0 | IA6: 0 | IB6: 0 | IC6: 0 | ID6: 0 | IE6: 0 | IF6: 0 | IG6: 0 | IH6: 0 | II6: 0 | IJ6: 0 | IK6: 0 | IL6: 0 | IM6: 0 | IN6: 0 | IO6: 0 | IP6: 0 | IQ6: 0 | IR6: 0 | IS6: 0 | IT6: 0 | IU6: 0 | IV6: 0 | IW6: 0 | IX6: 0 | IY6: 0 | IZ6: 0 | JA6: 0 | JB6: 0 | JC6: 0 | JD6: 0
B7: =B6+1 -> 3 | C7: =IF('2a. Rent Roll (Details)'!D7=0, " ",'2a. Rent Roll (Details)'!D7) ->  | D7: =IF('2a. Rent Roll (Details)'!E7=0, " ",'2a. Rent Roll (Details)'!E7) -> Phase 1 | E7: ='2a. Rent Roll (Details)'!F7 -> 258 | F7: =IF('2a. Rent Roll (Details)'!G7<> "", '2a. Rent Roll (Details)'!G7, "Not available") -> 2027-05-01 | G7: =IF('2a. Rent Roll (Details)'!Q7<>"", '2a. Rent Roll (Details)'!Q7, "Not Available") -> 2032-04-30 | J7: 0 | K7: 0 | L7: 0 | M7: 0 | N7: 0 | O7: 0 | P7: 0 | Q7: 0 | R7: 0 | S7: 0 | T7: 0 | U7: 0 | V7: 0 | W7: 0 | X7: 0 | Y7: 0 | Z7: 0 | AA7: 0 | AB7: 0 | AC7: 0 | AD7: 0 | AE7: 0 | AF7: 0 | AG7: 0 | AH7: 0 | AI7: 0 | AJ7: 0 | AK7: 0 | AL7: 0 | AM7: 0 | AN7: 0 | AO7: 0 | AP7: 0 | AQ7: 0 | AR7: 0 | AS7: 0 | AT7: 0 | AU7: 0 | AV7: 0 | AW7: 0 | AX7: 258 | AY7: 258 | AZ7: 258 | BA7: 258 | BB7: 258 | BC7: 258 | BD7: 258 | BE7: 258 | BF7: 258 | BG7: 258 | BH7: 258 | BI7: 258 | BJ7: 258 | BK7: 258 | BL7: 258 | BM7: 258 | BN7: 258 | BO7: 258 | BP7: 258 | BQ7: 258 | BR7: 258 | BS7: 258 | BT7: 258 | BU7: 258 | BV7: 258 | BW7: 258 | BX7: 258 | BY7: 258 | BZ7: 258 | CA7: 258 | CB7: 258 | CC7: 258 | CD7: 258 | CE7: 258 | CF7: 258 | CG7: 258 | CH7: 258 | CI7: 258 | CJ7: 258 | CK7: 258 | CL7: 258 | CM7: 258 | CN7: 258 | CO7: 258 | CP7: 258 | CQ7: 258 | CR7: 258 | CS7: 258 | CT7: 258 | CU7: 258 | CV7: 258 | CW7: 258 | CX7: 258 | CY7: 258 | CZ7: 258 | DA7: 258 | DB7: 258 | DC7: 258 | DD7: 258 | DE7: 258 | DF7: 0 | DG7: 0 | DH7: 0 | DI7: 0 | DJ7: 0 | DK7: 0 | DL7: 0 | DM7: 0 | DN7: 0 | DO7: 0 | DP7: 0 | DQ7: 0 | DR7: 0 | DS7: 0 | DT7: 0 | DU7: 0 | DV7: 0 | DW7: 0 | DX7: 0 | DY7: 0 | DZ7: 0 | EA7: 0 | EB7: 0 | EC7: 0 | ED7: 0 | EE7: 0 | EF7: 0 | EG7: 0 | EH7: 0 | EI7: 0 | EJ7: 0 | EK7: 0 | EL7: 0 | EM7: 0 | EN7: 0 | EO7: 0 | EP7: 0 | EQ7: 0 | ER7: 0 | ES7: 0 | ET7: 0 | EU7: 0 | EV7: 0 | EW7: 0 | EX7: 0 | EY7: 0 | EZ7: 0 | FA7: 0 | FB7: 0 | FC7: 0 | FD7: 0 | FE7: 0 | FF7: 0 | FG7: 0 | FH7: 0 | FI7: 0 | FJ7: 0 | FK7: 0 | FL7: 0 | FM7: 0 | FN7: 0 | FO7: 0 | FP7: 0 | FQ7: 0 | FR7: 0 | FS7: 0 | FT7: 0 | FU7: 0 | FV7: 0 | FW7: 0 | FX7: 0 | FY7: 0 | FZ7: 0 | GA7: 0 | GB7: 0 | GC7: 0 | GD7: 0 | GE7: 0 | GF7: 0 | GG7: 0 | GH7: 0 | GI7: 0 | GJ7: 0 | GK7: 0 | GL7: 0 | GM7: 0 | GN7: 0 | GO7: 0 | GP7: 0 | GQ7: 0 | GR7: 0 | GS7: 0 | GT7: 0 | GU7: 0 | GV7: 0 | GW7: 0 | GX7: 0 | GY7: 0 | GZ7: 0 | HA7: 0 | HB7: 0 | HC7: 0 | HD7: 0 | HE7: 0 | HF7: 0 | HG7: 0 | HH7: 0 | HI7: 0 | HJ7: 0 | HK7: 0 | HL7: 0 | HM7: 0 | HN7: 0 | HO7: 0 | HP7: 0 | HQ7: 0 | HR7: 0 | HS7: 0 | HT7: 0 | HU7: 0 | HV7: 0 | HW7: 0 | HX7: 0 | HY7: 0 | HZ7: 0 | IA7: 0 | IB7: 0 | IC7: 0 | ID7: 0 | IE7: 0 | IF7: 0 | IG7: 0 | IH7: 0 | II7: 0 | IJ7: 0 | IK7: 0 | IL7: 0 | IM7: 0 | IN7: 0 | IO7: 0 | IP7: 0 | IQ7: 0 | IR7: 0 | IS7: 0 | IT7: 0 | IU7: 0 | IV7: 0 | IW7: 0 | IX7: 0 | IY7: 0 | IZ7: 0 | JA7: 0 | JB7: 0 | JC7: 0 | JD7: 0
... 7 more rows

Sheet 2b. Lease Schedule (IT Load)1
B1: Rent Roll (Monthly) - Area
J2: 1 | K2: 1 | L2: 1 | M2: 1 | N2: 1 | O2: 1 | P2: 1 | Q2: 1 | R2: 1 | S2: 1 | T2: 1 | U2: 1 | V2: =J2+1 -> 2 | W2: =K2+1 -> 2 | X2: 2 | Y2: 2 | Z2: 2 | AA2: 2 | AB2: 2 | AC2: 2 | AD2: 2 | AE2: 2 | AF2: 2 | AG2: 2 | AH2: 3 | AI2: 3 | AJ2: 3 | AK2: 3 | AL2: 3 | AM2: 3 | AN2: 3 | AO2: 3 | AP2: 3 | AQ2: 3 | AR2: 3 | AS2: 3 | AT2: 4 | AU2: 4 | AV2: 4 | AW2: 4 | AX2: 4 | AY2: 4 | AZ2: 4 | BA2: 4 | BB2: 4 | BC2: 4 | BD2: 4 | BE2: 4 | BF2: 5 | BG2: 5 | BH2: 5 | BI2: 5 | BJ2: 5 | BK2: 5 | BL2: 5 | BM2: 5 | BN2: 5 | BO2: 5 | BP2: 5 | BQ2: 5 | BR2: 6 | BS2: 6 | BT2: 6 | BU2: 6 | BV2: 6 | BW2: 6 | BX2: 6 | BY2: 6 | BZ2: 6 | CA2: 6 | CB2: 6 | CC2: 6 | CD2: 7 | CE2: 7 | CF2: 7 | CG2: 7 | CH2: 7 | CI2: =BW2+1 -> 7 | CJ2: 7 | CK2: 7 | CL2: 7 | CM2: 7 | CN2: 7 | CO2: 7 | CP2: 8 | CQ2: 8 | CR2: 8 | CS2: 8 | CT2: 8 | CU2: 8 | CV2: 8 | CW2: 8 | CX2: 8 | CY2: 8 | CZ2: 8 | DA2: 8 | DB2: 9 | DC2: 9 | DD2: 9 | DE2: 9 | DF2: 9 | DG2: 9 | DH2: 9 | DI2: 9 | DJ2: 9 | DK2: 9 | DL2: 9 | DM2: 9 | DN2: 10 | DO2: 10 | DP2: 10 | DQ2: 10 | DR2: 10 | DS2: 10 | DT2: 10 | DU2: 10 | DV2: 10 | DW2: 10 | DX2: 10 | DY2: 10 | DZ2: 11 | EA2: 11 | EB2: 11 | EC2: 11 | ED2: 11 | EE2: 11 | EF2: 11 | EG2: 11 | EH2: 11 | EI2: 11 | EJ2: 11 | EK2: 11 | EL2: 12 | EM2: 12 | EN2: 12 | EO2: 12 | EP2: 12 | EQ2: 12 | ER2: 12 | ES2: 12 | ET2: 12 | EU2: =EI2+1 -> 12 | EV2: 12 | EW2: 12 | EX2: 13 | EY2: 13 | EZ2: 13 | FA2: 13 | FB2: 13 | FC2: 13 | FD2: 13 | FE2: 13 | FF2: 13 | FG2: 13 | FH2: 13 | FI2: 13 | FJ2: 14 | FK2: 14 | FL2: 14 | FM2: 14 | FN2: 14 | FO2: 14 | FP2: 14 | FQ2: 14 | FR2: 14 | FS2: 14 | FT2: 14 | FU2: 14 | FV2: 15 | FW2: 15 | FX2: 15 | FY2: 15 | FZ2: 15 | GA2: 15 | GB2: 15 | GC2: 15 | GD2: 15 | GE2: 15 | GF2: 15 | GG2: 15 | GH2: 16 | GI2: 16 | GJ2: 16 | GK2: 16 | GL2: 16 | GM2: 16 | GN2: 16 | GO2: 16 | GP2: 16 | GQ2: 16 | GR2: 16 | GS2: 16 | GT2: 17 | GU2: 17 | GV2: 17 | GW2: 17 | GX2: 17 | GY2: 17 | GZ2: 17 | HA2: 17 | HB2: 17 | HC2: 17 | HD2: 17 | HE2: 17 | HF2: 18 | HG2: =GU2+1 -> 18 | HH2: =GW2+1 -> 18 | HI2: =GX2+1 -> 18 | HJ2: 18 | HK2: 18 | HL2: 18 | HM2: 18 | HN2: 18 | HO2: 18 | HP2: 18 | HQ2: 19 | HR2: 19 | HS2: 19 | HT2: 19 | HU2: 19 | HV2: 19 | HW2: =HL2+1 -> 19 | HX2: =HM2+1 -> 19 | HY2: 19 | HZ2: 19 | IA2: 19 | IB2: 20 | IC2: 20 | ID2: 20 | IE2: 20 | IF2: 20 | IG2: 20 | IH2: =HW2+1 -> 20 | II2: =HX2+1 -> 20 | IJ2: 20 | IK2: 20 | IL2: 20 | IM2: 21 | IN2: 21 | IO2: 21 | IP2: 21 | IQ2: =IF2+1 -> 21 | IR2: =IG2+1 -> 21 | IS2: 21 | IT2: =II2+1 -> 21 | IU2: =IJ2+1 -> 21 | IV2: =IK2+1 -> 21 | IW2: =IL2+1 -> 21 | IX2: 22 | IY2: 22 | IZ2: =IO2+1 -> 22 | JA2: =IP2+1 -> 22 | JB2: 22 | JC2: 22 | JD2: 22
J3: =I4+1 -> 2024-01-01 | K3: =J4+1 -> 2024-02-01 | L3: =K4+1 -> 2024-03-01 | M3: 2024-04-01 | N3: 2024-05-01 | O3: 2024-06-01 | P3: 2024-07-01 | Q3: 2024-08-01 | R3: 2024-09-01 | S3: 2024-10-01 | T3: 2024-11-01 | U3: 2024-12-01 | V3: 2025-01-01 | W3: 2025-02-01 | X3: 2025-03-01 | Y3: 2025-04-01 | Z3: 2025-05-01 | AA3: 2025-06-01 | AB3: 2025-07-01 | AC3: 2025-08-01 | AD3: 2025-09-01 | AE3: =AD4+1 -> 2025-10-01 | AF3: 2025-11-01 | AG3: 2025-12-01 | AH3: 2026-01-01 | AI3: 2026-02-01 | AJ3: 2026-03-01 | AK3: 2026-04-01 | AL3: 2026-05-01 | AM3: 2026-06-01 | AN3: 2026-07-01 | AO3: 2026-08-01 | AP3: 2026-09-01 | AQ3: 2026-10-01 | AR3: 2026-11-01 | AS3: 2026-12-01 | AT3: 2027-01-01 | AU3: 2027-02-01 | AV3: 2027-03-01 | AW3: 2027-04-01 | AX3: 2027-05-01 | AY3: 2027-06-01 | AZ3: 2027-07-01 | BA3: 2027-08-01 | BB3: 2027-09-01 | BC3: 2027-10-01 | BD3: 2027-11-01 | BE3: 2027-12-01 | BF3: 2028-01-01 | BG3: 2028-02-01 | BH3: 2028-03-01 | BI3: 2028-04-01 | BJ3: 2028-05-01 | BK3: 2028-06-01 | BL3: 2028-07-01 | BM3: 2028-08-01 | BN3: 2028-09-01 | BO3: 2028-10-01 | BP3: 2028-11-01 | BQ3: 2028-12-01 | BR3: 2029-01-01 | BS3: 2029-02-01 | BT3: 2029-03-01 | BU3: 2029-04-01 | BV3: 2029-05-01 | BW3: 2029-06-01 | BX3: =BW4+1 -> 2029-07-01 | BY3: 2029-08-01 | BZ3: 2029-09-01 | CA3: 2029-10-01 | CB3: 2029-11-01 | CC3: 2029-12-01 | CD3: 2030-01-01 | CE3: 2030-02-01 | CF3: 2030-03-01 | CG3: 2030-04-01 | CH3: 2030-05-01 | CI3: 2030-06-01 | CJ3: 2030-07-01 | CK3: 2030-08-01 | CL3: 2030-09-01 | CM3: 2030-10-01 | CN3: 2030-11-01 | CO3: 2030-12-01 | CP3: 2031-01-01 | CQ3: 2031-02-01 | CR3: 2031-03-01 | CS3: 2031-04-01 | CT3: 2031-05-01 | CU3: 2031-06-01 | CV3: 2031-07-01 | CW3: 2031-08-01 | CX3: 2031-09-01 | CY3: 2031-10-01 | CZ3: 2031-11-01 | DA3: 2031-12-01 | DB3: 2032-01-01 | DC3: 2032-02-01 | DD3: 2032-03-01 | DE3: 2032-04-01 | DF3: 2032-05-01 | DG3: 2032-06-01 | DH3: 2032-07-01 | DI3: 2032-08-01 | DJ3: 2032-09-01 | DK3: 2032-10-01 | DL3: 2032-11-01 | DM3: 2032-12-01 | DN3: 2033-01-01 | DO3: 2033-02-01 | DP3: 2033-03-01 | DQ3: 2033-04-01 | DR3: 2033-05-01 | DS3: 2033-06-01 | DT3: 2033-07-01 | DU3: 2033-08-01 | DV3: 2033-09-01 | DW3: 2033-10-01 | DX3: 2033-11-01 | DY3: 2033-12-01 | DZ3: 2034-01-01 | EA3: 2034-02-01 | EB3: 2034-03-01 | EC3: 2034-04-01 | ED3: 2034-05-01 | EE3: 2034-06-01 | EF3: 2034-07-01 | EG3: 2034-08-01 | EH3: 2034-09-01 | EI3: 2034-10-01 | EJ3: =EI4+1 -> 2034-11-01 | EK3: 2034-12-01 | EL3: 2035-01-01 | EM3: 2035-02-01 | EN3: 2035-03-01 | EO3: 2035-04-01 | EP3: 2035-05-01 | EQ3: 2035-06-01 | ER3: 2035-07-01 | ES3: 2035-08-01 | ET3: 2035-09-01 | EU3: 2035-10-01 | EV3: 2035-11-01 | EW3: 2035-12-01 | EX3: 2036-01-01 | EY3: 2036-02-01 | EZ3: 2036-03-01 | FA3: 2036-04-01 | FB3: 2036-05-01 | FC3: 2036-06-01 | FD3: 2036-07-01 | FE3: 2036-08-01 | FF3: 2036-09-01 | FG3: 2036-10-01 | FH3: 2036-11-01 | FI3: 2036-12-01 | FJ3: 2037-01-01 | FK3: 2037-02-01 | FL3: 2037-03-01 | FM3: 2037-04-01 | FN3: 2037-05-01 | FO3: 2037-06-01 | FP3: 2037-07-01 | FQ3: 2037-08-01 | FR3: 2037-09-01 | FS3: 2037-10-01 | FT3: 2037-11-01 | FU3: 2037-12-01 | FV3: 2038-01-01 | FW3: 2038-02-01 | FX3: 2038-03-01 | FY3: 2038-04-01 | FZ3: 2038-05-01 | GA3: 2038-06-01 | GB3: 2038-07-01 | GC3: 2038-08-01 | GD3: 2038-09-01 | GE3: 2038-10-01 | GF3: 2038-11-01 | GG3: 2038-12-01 | GH3: 2039-01-01 | GI3: 2039-02-01 | GJ3: 2039-03-01 | GK3: 2039-04-01 | GL3: 2039-05-01 | GM3: 2039-06-01 | GN3: 2039-07-01 | GO3: 2039-08-01 | GP3: 2039-09-01 | GQ3: 2039-10-01 | GR3: 2039-11-01 | GS3: 2039-12-01 | GT3: 2040-01-01 | GU3: 2040-02-01 | GV3: =GU4+1 -> 2040-03-01 | GW3: 2040-04-01 | GX3: 2040-05-01 | GY3: 2040-06-01 | GZ3: 2040-07-01 | HA3: 2040-08-01 | HB3: 2040-09-01 | HC3: 2040-10-01 | HD3: 2040-11-01 | HE3: 2040-12-01 | HF3: 2041-01-01 | HG3: 2041-02-01 | HH3: 2041-03-01 | HI3: 2041-04-01 | HJ3: 2041-05-01 | HK3: 2041-06-01 | HL3: 2041-07-01 | HM3: 2041-08-01 | HN3: 2041-09-01 | HO3: 2041-10-01 | HP3: 2041-11-01 | HQ3: 2041-12-01 | HR3: 2042-01-01 | HS3: 2042-02-01 | HT3: 2042-03-01 | HU3: 2042-04-01 | HV3: 2042-05-01 | HW3: 2042-06-01 | HX3: 2042-07-01 | HY3: 2042-08-01 | HZ3: 2042-09-01 | IA3: 2042-10-01 | IB3: 2042-11-01 | IC3: 2042-12-01 | ID3: 2043-01-01 | IE3: 2043-02-01 | IF3: 2043-03-01 | IG3: 2043-04-01 | IH3: 2043-05-01 | II3: 2043-06-01 | IJ3: 2043-07-01 | IK3: 2043-08-01 | IL3: 2043-09-01 | IM3: 2043-10-01 | IN3: 2043-11-01 | IO3: 2043-12-01 | IP3: 2044-01-01 | IQ3: 2044-02-01 | IR3: 2044-03-01 | IS3: 2044-04-01 | IT3: 2044-05-01 | IU3: 2044-06-01 | IV3: 2044-07-01 | IW3: 2044-08-01 | IX3: 2044-09-01 | IY3: 2044-10-01 | IZ3: 2044-11-01 | JA3: 2044-12-01 | JB3: 2045-01-01 | JC3: 2045-02-01 | JD3: 2045-03-01
B4: S/N | C4: Tenant Name | D4: Phase | E4: Leased IT Load (KW) | F4: Lease Start Date | G4: Lease End Date | I4: =[4]Timelines1!$C$6 -> 2023-12-31 | J4: =EOMONTH(J3, 0) -> 2024-01-31 | K4: =EOMONTH(K3, 0) -> 2024-02-29 | L4: =EOMONTH(L3, 0) -> 2024-03-31 | M4: 2024-04-30 | N4: 2024-05-31 | O4: 2024-06-30 | P4: 2024-07-31 | Q4: 2024-08-31 | R4: 2024-09-30 | S4: 2024-10-31 | T4: 2024-11-30 | U4: 2024-12-31 | V4: 2025-01-31 | W4: 2025-02-28 | X4: 2025-03-31 | Y4: 2025-04-30 | Z4: 2025-05-31 | AA4: 2025-06-30 | AB4: 2025-07-31 | AC4: 2025-08-31 | AD4: 2025-09-30 | AE4: 2025-10-31 | AF4: 2025-11-30 | AG4: 2025-12-31 | AH4: 2026-01-31 | AI4: 2026-02-28 | AJ4: 2026-03-31 | AK4: 2026-04-30 | AL4: 2026-05-31 | AM4: 2026-06-30 | AN4: 2026-07-31 | AO4: 2026-08-31 | AP4: 2026-09-30 | AQ4: 2026-10-31 | AR4: 2026-11-30 | AS4: 2026-12-31 | AT4: 2027-01-31 | AU4: 2027-02-28 | AV4: 2027-03-31 | AW4: 2027-04-30 | AX4: 2027-05-31 | AY4: 2027-06-30 | AZ4: 2027-07-31 | BA4: 2027-08-31 | BB4: 2027-09-30 | BC4: 2027-10-31 | BD4: 2027-11-30 | BE4: 2027-12-31 | BF4: 2028-01-31 | BG4: 2028-02-29 | BH4: 2028-03-31 | BI4: 2028-04-30 | BJ4: 2028-05-31 | BK4: 2028-06-30 | BL4: 2028-07-31 | BM4: 2028-08-31 | BN4: 2028-09-30 | BO4: 2028-10-31 | BP4: 2028-11-30 | BQ4: 2028-12-31 | BR4: 2029-01-31 | BS4: 2029-02-28 | BT4: 2029-03-31 | BU4: 2029-04-30 | BV4: 2029-05-31 | BW4: 2029-06-30 | BX4: =EOMONTH(BX3, 0) -> 2029-07-31 | BY4: 2029-08-31 | BZ4: 2029-09-30 | CA4: 2029-10-31 | CB4: 2029-11-30 | CC4: 2029-12-31 | CD4: 2030-01-31 | CE4: 2030-02-28 | CF4: 2030-03-31 | CG4: 2030-04-30 | CH4: 2030-05-31 | CI4: 2030-06-30 | CJ4: 2030-07-31 | CK4: 2030-08-31 | CL4: 2030-09-30 | CM4: 2030-10-31 | CN4: 2030-11-30 | CO4: 2030-12-31 | CP4: 2031-01-31 | CQ4: 2031-02-28 | CR4: 2031-03-31 | CS4: 2031-04-30 | CT4: 2031-05-31 | CU4: 2031-06-30 | CV4: 2031-07-31 | CW4: 2031-08-31 | CX4: 2031-09-30 | CY4: 2031-10-31 | CZ4: 2031-11-30 | DA4: 2031-12-31 | DB4: 2032-01-31 | DC4: 2032-02-29 | DD4: 2032-03-31 | DE4: 2032-04-30 | DF4: 2032-05-31 | DG4: 2032-06-30 | DH4: 2032-07-31 | DI4: 2032-08-31 | DJ4: 2032-09-30 | DK4: 2032-10-31 | DL4: 2032-11-30 | DM4: 2032-12-31 | DN4: 2033-01-31 | DO4: 2033-02-28 | DP4: 2033-03-31 | DQ4: 2033-04-30 | DR4: 2033-05-31 | DS4: 2033-06-30 | DT4: 2033-07-31 | DU4: 2033-08-31 | DV4: 2033-09-30 | DW4: 2033-10-31 | DX4: 2033-11-30 | DY4: 2033-12-31 | DZ4: 2034-01-31 | EA4: 2034-02-28 | EB4: 2034-03-31 | EC4: 2034-04-30 | ED4: 2034-05-31 | EE4: 2034-06-30 | EF4: 2034-07-31 | EG4: 2034-08-31 | EH4: 2034-09-30 | EI4: 2034-10-31 | EJ4: =EOMONTH(EJ3, 0) -> 2034-11-30 | EK4: 2034-12-31 | EL4: 2035-01-31 | EM4: 2035-02-28 | EN4: 2035-03-31 | EO4: 2035-04-30 | EP4: 2035-05-31 | EQ4: 2035-06-30 | ER4: 2035-07-31 | ES4: 2035-08-31 | ET4: 2035-09-30 | EU4: 2035-10-31 | EV4: 2035-11-30 | EW4: 2035-12-31 | EX4: 2036-01-31 | EY4: 2036-02-29 | EZ4: 2036-03-31 | FA4: 2036-04-30 | FB4: 2036-05-31 | FC4: 2036-06-30 | FD4: 2036-07-31 | FE4: 2036-08-31 | FF4: 2036-09-30 | FG4: 2036-10-31 | FH4: 2036-11-30 | FI4: 2036-12-31 | FJ4: 2037-01-31 | FK4: 2037-02-28 | FL4: 2037-03-31 | FM4: 2037-04-30 | FN4: 2037-05-31 | FO4: 2037-06-30 | FP4: 2037-07-31 | FQ4: 2037-08-31 | FR4: 2037-09-30 | FS4: 2037-10-31 | FT4: 2037-11-30 | FU4: 2037-12-31 | FV4: 2038-01-31 | FW4: 2038-02-28 | FX4: 2038-03-31 | FY4: 2038-04-30 | FZ4: 2038-05-31 | GA4: 2038-06-30 | GB4: 2038-07-31 | GC4: 2038-08-31 | GD4: 2038-09-30 | GE4: 2038-10-31 | GF4: 2038-11-30 | GG4: 2038-12-31 | GH4: 2039-01-31 | GI4: 2039-02-28 | GJ4: 2039-03-31 | GK4: 2039-04-30 | GL4: 2039-05-31 | GM4: 2039-06-30 | GN4: 2039-07-31 | GO4: 2039-08-31 | GP4: 2039-09-30 | GQ4: 2039-10-31 | GR4: 2039-11-30 | GS4: 2039-12-31 | GT4: 2040-01-31 | GU4: 2040-02-29 | GV4: =EOMONTH(GV3, 0) -> 2040-03-31 | GW4: 2040-04-30 | GX4: 2040-05-31 | GY4: 2040-06-30 | GZ4: 2040-07-31 | HA4: 2040-08-31 | HB4: 2040-09-30 | HC4: 2040-10-31 | HD4: 2040-11-30 | HE4: 2040-12-31 | HF4: 2041-01-31 | HG4: 2041-02-28 | HH4: 2041-03-31 | HI4: 2041-04-30 | HJ4: 2041-05-31 | HK4: 2041-06-30 | HL4: 2041-07-31 | HM4: 2041-08-31 | HN4: 2041-09-30 | HO4: 2041-10-31 | HP4: 2041-11-30 | HQ4: 2041-12-31 | HR4: 2042-01-31 | HS4: 2042-02-28 | HT4: 2042-03-31 | HU4: 2042-04-30 | HV4: 2042-05-31 | HW4: 2042-06-30 | HX4: 2042-07-31 | HY4: 2042-08-31 | HZ4: 2042-09-30 | IA4: 2042-10-31 | IB4: 2042-11-30 | IC4: 2042-12-31 | ID4: 2043-01-31 | IE4: 2043-02-28 | IF4: 2043-03-31 | IG4: 2043-04-30 | IH4: 2043-05-31 | II4: 2043-06-30 | IJ4: 2043-07-31 | IK4: 2043-08-31 | IL4: 2043-09-30 | IM4: 2043-10-31 | IN4: 2043-11-30 | IO4: 2043-12-31 | IP4: 2044-01-31 | IQ4: 2044-02-29 | IR4: 2044-03-31 | IS4: 2044-04-30 | IT4: 2044-05-31 | IU4: 2044-06-30 | IV4: 2044-07-31 | IW4: 2044-08-31 | IX4: 2044-09-30 | IY4: 2044-10-31 | IZ4: 2044-11-30 | JA4: 2044-12-31 | JB4: 2045-01-31 | JC4: 2045-02-28 | JD4: 2045-03-31
B5: 1 | C5: =IF('[4]2a. Rent Roll (Details)1'!D5=0, " ",'[4]2a. Rent Roll (Details)1'!D5) -> Sub Phase 1 - Hyperscaler | D5: =IF('[4]2a. Rent Roll (Details)1'!E5=0, " ",'[4]2a. Rent Roll (Details)1'!E5) -> Phase 1 | E5: ='[4]2a. Rent Roll (Details)1'!F5 -> 258 | F5: =IF('[4]2a. Rent Roll (Details)1'!G5<> "", '[4]2a. Rent Roll (Details)1'!G5, "Not available") -> 2027-04-01 | G5: =IF('[4]2a. Rent Roll (Details)1'!Q5<>"", '[4]2a. Rent Roll (Details)1'!Q5, "Not Available") -> 2032-03-31 | J5: =IFERROR(IF(J$4>=$F5, IF(J$4>$G5, 0,$E5),0), 0) -> 0 | K5: =IFERROR(IF(K$4>=$F5, IF(K$4>$G5, 0,$E5),0), 0) -> 0 | L5: 0 | M5: 0 | N5: 0 | O5: 0 | P5: 0 | Q5: 0 | R5: 0 | S5: 0 | T5: 0 | U5: 0 | V5: 0 | W5: 0 | X5: 0 | Y5: 0 | Z5: 0 | AA5: 0 | AB5: 0 | AC5: 0 | AD5: 0 | AE5: 0 | AF5: 0 | AG5: 0 | AH5: 0 | AI5: 0 | AJ5: 0 | AK5: 0 | AL5: 0 | AM5: 0 | AN5: 0 | AO5: 0 | AP5: 0 | AQ5: 0 | AR5: 0 | AS5: 0 | AT5: 0 | AU5: 0 | AV5: 0 | AW5: 258 | AX5: 258 | AY5: 258 | AZ5: 258 | BA5: 258 | BB5: 258 | BC5: 258 | BD5: 258 | BE5: 258 | BF5: 258 | BG5: 258 | BH5: 258 | BI5: 258 | BJ5: 258 | BK5: 258 | BL5: 258 | BM5: 258 | BN5: 258 | BO5: 258 | BP5: 258 | BQ5: 258 | BR5: 258 | BS5: 258 | BT5: 258 | BU5: 258 | BV5: 258 | BW5: =IFERROR(IF(BW$4>=$F5, IF(BW$4>$G5, 0,$E5),0), 0) -> 258 | BX5: 258 | BY5: 258 | BZ5: 258 | CA5: 258 | CB5: 258 | CC5: 258 | CD5: 258 | CE5: 258 | CF5: 258 | CG5: 258 | CH5: 258 | CI5: 258 | CJ5: 258 | CK5: 258 | CL5: 258 | CM5: =IFERROR(IF(CM$4>=$F5, IF(CM$4>$G5, 0,$E5),0), 0) -> 258 | CN5: 258 | CO5: 258 | CP5: 258 | CQ5: 258 | CR5: 258 | CS5: 258 | CT5: 258 | CU5: 258 | CV5: 258 | CW5: 258 | CX5: 258 | CY5: 258 | CZ5: 258 | DA5: 258 | DB5: 258 | DC5: =IFERROR(IF(DC$4>=$F5, IF(DC$4>$G5, 0,$E5),0), 0) -> 258 | DD5: 258 | DE5: 0 | DF5: 0 | DG5: 0 | DH5: 0 | DI5: 0 | DJ5: 0 | DK5: 0 | DL5: 0 | DM5: 0 | DN5: 0 | DO5: 0 | DP5: 0 | DQ5: 0 | DR5: 0 | DS5: =IFERROR(IF(DS$4>=$F5, IF(DS$4>$G5, 0,$E5),0), 0) -> 0 | DT5: 0 | DU5: 0 | DV5: 0 | DW5: 0 | DX5: 0 | DY5: 0 | DZ5: 0 | EA5: 0 | EB5: 0 | EC5: 0 | ED5: 0 | EE5: 0 | EF5: 0 | EG5: 0 | EH5: 0 | EI5: =IFERROR(IF(EI$4>=$F5, IF(EI$4>$G5, 0,$E5),0), 0) -> 0 | EJ5: 0 | EK5: 0 | EL5: 0 | EM5: 0 | EN5: 0 | EO5: 0 | EP5: 0 | EQ5: 0 | ER5: 0 | ES5: 0 | ET5: 0 | EU5: 0 | EV5: 0 | EW5: 0 | EX5: 0 | EY5: 0 | EZ5: 0 | FA5: 0 | FB5: 0 | FC5: 0 | FD5: 0 | FE5: 0 | FF5: 0 | FG5: 0 | FH5: 0 | FI5: 0 | FJ5: 0 | FK5: 0 | FL5: 0 | FM5: 0 | FN5: 0 | FO5: 0 | FP5: 0 | FQ5: 0 | FR5: 0 | FS5: 0 | FT5: 0 | FU5: 0 | FV5: 0 | FW5: 0 | FX5: 0 | FY5: 0 | FZ5: 0 | GA5: 0 | GB5: 0 | GC5: 0 | GD5: 0 | GE5: 0 | GF5: 0 | GG5: 0 | GH5: 0 | GI5: 0 | GJ5: 0 | GK5: 0 | GL5: 0 | GM5: 0 | GN5: 0 | GO5: 0 | GP5: 0 | GQ5: 0 | GR5: 0 | GS5: 0 | GT5: 0 | GU5: =IFERROR(IF(GU$4>=$F5, IF(GU$4>$G5, 0,$E5),0), 0) -> 0 | GV5: 0 | GW5: 0 | GX5: 0 | GY5: 0 | GZ5: 0 | HA5: 0 | HB5: 0 | HC5: 0 | HD5: 0 | HE5: 0 | HF5: 0 | HG5: 0 | HH5: 0 | HI5: 0 | HJ5: 0 | HK5: 0 | HL5: 0 | HM5: =IFERROR(IF(HM$4>=$F5, IF(HM$4>$G5, 0,$E5),0), 0) -> 0 | HN5: 0 | HO5: 0 | HP5: 0 | HQ5: 0 | HR5: 0 | HS5: 0 | HT5: 0 | HU5: 0 | HV5: 0 | HW5: 0 | HX5: 0 | HY5: 0 | HZ5: 0 | IA5: 0 | IB5: 0 | IC5: 0 | ID5: =IFERROR(IF(ID$4>=$F5, IF(ID$4>$G5, 0,$E5),0), 0) -> 0 | IE5: 0 | IF5: 0 | IG5: 0 | IH5: 0 | II5: 0 | IJ5: 0 | IK5: 0 | IL5: 0 | IM5: 0 | IN5: 0 | IO5: 0 | IP5: 0 | IQ5: 0 | IR5: 0 | IS5: 0 | IT5: =IFERROR(IF(IT$4>=$F5, IF(IT$4>$G5, 0,$E5),0), 0) -> 0 | IU5: 0 | IV5: 0 | IW5: 0 | IX5: 0 | IY5: 0 | IZ5: 0 | JA5: 0 | JB5: 0 | JC5: 0 | JD5: 0
B6: =B5+1 -> 2 | C6: =IF('[4]2a. Rent Roll (Details)1'!D6=0, " ",'[4]2a. Rent Roll (Details)1'!D6) -> Sub Phase 1 - Enterprise | D6: =IF('[4]2a. Rent Roll (Details)1'!E6=0, " ",'[4]2a. Rent Roll (Details)1'!E6) -> Phase 1 | E6: ='[4]2a. Rent Roll (Details)1'!F6 -> 387 | F6: =IF('[4]2a. Rent Roll (Details)1'!G6<> "", '[4]2a. Rent Roll (Details)1'!G6, "Not available") -> 2027-04-01 | G6: =IF('[4]2a. Rent Roll (Details)1'!Q6<>"", '[4]2a. Rent Roll (Details)1'!Q6, "Not Available") -> 2030-03-31 | J6: =IFERROR(IF(J$4>=$F6, IF(J$4>$G6, 0,$E6),0), 0) -> 0 | K6: 0 | L6: 0 | M6: 0 | N6: 0 | O6: 0 | P6: 0 | Q6: 0 | R6: 0 | S6: 0 | T6: 0 | U6: 0 | V6: 0 | W6: 0 | X6: 0 | Y6: 0 | Z6: 0 | AA6: 0 | AB6: 0 | AC6: 0 | AD6: 0 | AE6: 0 | AF6: 0 | AG6: 0 | AH6: 0 | AI6: 0 | AJ6: 0 | AK6: 0 | AL6: 0 | AM6: 0 | AN6: 0 | AO6: 0 | AP6: 0 | AQ6: 0 | AR6: 0 | AS6: 0 | AT6: 0 | AU6: 0 | AV6: 0 | AW6: 387 | AX6: 387 | AY6: 387 | AZ6: 387 | BA6: 387 | BB6: 387 | BC6: 387 | BD6: 387 | BE6: 387 | BF6: 387 | BG6: 387 | BH6: 387 | BI6: 387 | BJ6: 387 | BK6: 387 | BL6: 387 | BM6: 387 | BN6: 387 | BO6: 387 | BP6: 387 | BQ6: 387 | BR6: 387 | BS6: 387 | BT6: 387 | BU6: 387 | BV6: 387 | BW6: 387 | BX6: 387 | BY6: 387 | BZ6: 387 | CA6: 387 | CB6: 387 | CC6: 387 | CD6: 387 | CE6: 387 | CF6: 387 | CG6: 0 | CH6: 0 | CI6: 0 | CJ6: 0 | CK6: 0 | CL6: 0 | CM6: 0 | CN6: 0 | CO6: 0 | CP6: 0 | CQ6: 0 | CR6: 0 | CS6: 0 | CT6: 0 | CU6: 0 | CV6: 0 | CW6: 0 | CX6: 0 | CY6: 0 | CZ6: 0 | DA6: 0 | DB6: 0 | DC6: 0 | DD6: 0 | DE6: 0 | DF6: 0 | DG6: 0 | DH6: 0 | DI6: 0 | DJ6: 0 | DK6: 0 | DL6: 0 | DM6: 0 | DN6: 0 | DO6: 0 | DP6: 0 | DQ6: 0 | DR6: 0 | DS6: 0 | DT6: 0 | DU6: 0 | DV6: 0 | DW6: 0 | DX6: 0 | DY6: 0 | DZ6: 0 | EA6: 0 | EB6: 0 | EC6: 0 | ED6: 0 | EE6: 0 | EF6: 0 | EG6: 0 | EH6: 0 | EI6: 0 | EJ6: 0 | EK6: 0 | EL6: 0 | EM6: 0 | EN6: 0 | EO6: 0 | EP6: 0 | EQ6: 0 | ER6: 0 | ES6: 0 | ET6: 0 | EU6: 0 | EV6: 0 | EW6: 0 | EX6: 0 | EY6: 0 | EZ6: 0 | FA6: 0 | FB6: 0 | FC6: 0 | FD6: 0 | FE6: 0 | FF6: 0 | FG6: 0 | FH6: 0 | FI6: 0 | FJ6: 0 | FK6: 0 | FL6: 0 | FM6: 0 | FN6: 0 | FO6: 0 | FP6: 0 | FQ6: 0 | FR6: 0 | FS6: 0 | FT6: 0 | FU6: 0 | FV6: 0 | FW6: 0 | FX6: 0 | FY6: 0 | FZ6: 0 | GA6: 0 | GB6: 0 | GC6: 0 | GD6: 0 | GE6: 0 | GF6: 0 | GG6: 0 | GH6: 0 | GI6: 0 | GJ6: 0 | GK6: 0 | GL6: 0 | GM6: 0 | GN6: 0 | GO6: 0 | GP6: 0 | GQ6: 0 | GR6: 0 | GS6: 0 | GT6: 0 | GU6: 0 | GV6: 0 | GW6: 0 | GX6: 0 | GY6: 0 | GZ6: 0 | HA6: 0 | HB6: 0 | HC6: 0 | HD6: 0 | HE6: 0 | HF6: 0 | HG6: 0 | HH6: 0 | HI6: 0 | HJ6: 0 | HK6: 0 | HL6: 0 | HM6: 0 | HN6: 0 | HO6: 0 | HP6: 0 | HQ6: 0 | HR6: 0 | HS6: 0 | HT6: 0 | HU6: 0 | HV6: 0 | HW6: 0 | HX6: 0 | HY6: 0 | HZ6: 0 | IA6: 0 | IB6: 0 | IC6: 0 | ID6: 0 | IE6: 0 | IF6: 0 | IG6: 0 | IH6: 0 | II6: 0 | IJ6: 0 | IK6: 0 | IL6: 0 | IM6: 0 | IN6: 0 | IO6: 0 | IP6: 0 | IQ6: 0 | IR6: 0 | IS6: 0 | IT6: 0 | IU6: 0 | IV6: 0 | IW6: 0 | IX6: 0 | IY6: 0 | IZ6: 0 | JA6: 0 | JB6: 0 | JC6: 0 | JD6: 0
B7: =B6+1 -> 3 | C7: =IF('[4]2a. Rent Roll (Details)1'!D7=0, " ",'[4]2a. Rent Roll (Details)1'!D7) -> Sub Phase 1 - Hyperscaler | D7: =IF('[4]2a. Rent Roll (Details)1'!E7=0, " ",'[4]2a. Rent Roll (Details)1'!E7) -> Phase 1 | E7: ='[4]2a. Rent Roll (Details)1'!F7 -> 258 | F7: =IF('[4]2a. Rent Roll (Details)1'!G7<> "", '[4]2a. Rent Roll (Details)1'!G7, "Not available") -> 2027-05-01 | G7: =IF('[4]2a. Rent Roll (Details)1'!Q7<>"", '[4]2a. Rent Roll (Details)1'!Q7, "Not Available") -> 2032-04-30 | J7: 0 | K7: 0 | L7: 0 | M7: 0 | N7: 0 | O7: 0 | P7: 0 | Q7: 0 | R7: 0 | S7: 0 | T7: 0 | U7: 0 | V7: 0 | W7: 0 | X7: 0 | Y7: 0 | Z7: 0 | AA7: 0 | AB7: 0 | AC7: 0 | AD7: 0 | AE7: 0 | AF7: 0 | AG7: 0 | AH7: 0 | AI7: 0 | AJ7: 0 | AK7: 0 | AL7: 0 | AM7: 0 | AN7: 0 | AO7: 0 | AP7: 0 | AQ7: 0 | AR7: 0 | AS7: 0 | AT7: 0 | AU7: 0 | AV7: 0 | AW7: 0 | AX7: 258 | AY7: 258 | AZ7: 258 | BA7: 258 | BB7: 258 | BC7: 258 | BD7: 258 | BE7: 258 | BF7: 258 | BG7: 258 | BH7: 258 | BI7: 258 | BJ7: 258 | BK7: 258 | BL7: 258 | BM7: 258 | BN7: 258 | BO7: 258 | BP7: 258 | BQ7: 258 | BR7: 258 | BS7: 258 | BT7: 258 | BU7: 258 | BV7: 258 | BW7: 258 | BX7: 258 | BY7: 258 | BZ7: 258 | CA7: 258 | CB7: 258 | CC7: 258 | CD7: 258 | CE7: 258 | CF7: 258 | CG7: 258 | CH7: 258 | CI7: 258 | CJ7: 258 | CK7: 258 | CL7: 258 | CM7: 258 | CN7: 258 | CO7: 258 | CP7: 258 | CQ7: 258 | CR7: 258 | CS7: 258 | CT7: 258 | CU7: 258 | CV7: 258 | CW7: 258 | CX7: 258 | CY7: 258 | CZ7: 258 | DA7: 258 | DB7: 258 | DC7: 258 | DD7: 258 | DE7: 258 | DF7: 0 | DG7: 0 | DH7: 0 | DI7: 0 | DJ7: 0 | DK7: 0 | DL7: 0 | DM7: 0 | DN7: 0 | DO7: 0 | DP7: 0 | DQ7: 0 | DR7: 0 | DS7: 0 | DT7: 0 | DU7: 0 | DV7: 0 | DW7: 0 | DX7: 0 | DY7: 0 | DZ7: 0 | EA7: 0 | EB7: 0 | EC7: 0 | ED7: 0 | EE7: 0 | EF7: 0 | EG7: 0 | EH7: 0 | EI7: 0 | EJ7: 0 | EK7: 0 | EL7: 0 | EM7: 0 | EN7: 0 | EO7: 0 | EP7: 0 | EQ7: 0 | ER7: 0 | ES7: 0 | ET7: 0 | EU7: 0 | EV7: 0 | EW7: 0 | EX7: 0 | EY7: 0 | EZ7: 0 | FA7: 0 | FB7: 0 | FC7: 0 | FD7: 0 | FE7: 0 | FF7: 0 | FG7: 0 | FH7: 0 | FI7: 0 | FJ7: 0 | FK7: 0 | FL7: 0 | FM7: 0 | FN7: 0 | FO7: 0 | FP7: 0 | FQ7: 0 | FR7: 0 | FS7: 0 | FT7: 0 | FU7: 0 | FV7: 0 | FW7: 0 | FX7: 0 | FY7: 0 | FZ7: 0 | GA7: 0 | GB7: 0 | GC7: 0 | GD7: 0 | GE7: 0 | GF7: 0 | GG7: 0 | GH7: 0 | GI7: 0 | GJ7: 0 | GK7: 0 | GL7: 0 | GM7: 0 | GN7: 0 | GO7: 0 | GP7: 0 | GQ7: 0 | GR7: 0 | GS7: 0 | GT7: 0 | GU7: 0 | GV7: 0 | GW7: 0 | GX7: 0 | GY7: 0 | GZ7: 0 | HA7: 0 | HB7: 0 | HC7: 0 | HD7: 0 | HE7: 0 | HF7: 0 | HG7: 0 | HH7: 0 | HI7: 0 | HJ7: 0 | HK7: 0 | HL7: 0 | HM7: 0 | HN7: 0 | HO7: 0 | HP7: 0 | HQ7: 0 | HR7: 0 | HS7: 0 | HT7: 0 | HU7: 0 | HV7: 0 | HW7: 0 | HX7: 0 | HY7: 0 | HZ7: 0 | IA7: 0 | IB7: 0 | IC7: 0 | ID7: 0 | IE7: 0 | IF7: 0 | IG7: 0 | IH7: 0 | II7: 0 | IJ7: 0 | IK7: 0 | IL7: 0 | IM7: 0 | IN7: 0 | IO7: 0 | IP7: 0 | IQ7: 0 | IR7: 0 | IS7: 0 | IT7: 0 | IU7: 0 | IV7: 0 | IW7: 0 | IX7: 0 | IY7: 0 | IZ7: 0 | JA7: 0 | JB7: 0 | JC7: 0 | JD7: 0
... 8 more rows

Sheet 2c. Lease Schedule (INR)1
B1: Rent Roll (Monthly) and Straightlining of Rent (Monthly) - INR | CB1: =CB80/CA7 -> 0 | CT1: ='[4]2a. Rent Roll (Details)1'!$AJ9 -> 2029-05-01 | DE1: =DE5/E5 -> 9871.462242 | DF1: =7200 -> 7200 | DG1: =DE1/DF1-1 -> 0.3710364225
I2: Please do not change this>>>
K3: =J4+1 -> 2024-01-01 | L3: =K4+1 -> 2024-02-01 | M3: =L4+1 -> 2024-03-01 | N3: 2024-04-01 | O3: 2024-05-01 | P3: 2024-06-01 | Q3: 2024-07-01 | R3: 2024-08-01 | S3: 2024-09-01 | T3: 2024-10-01 | U3: 2024-11-01 | V3: 2024-12-01 | W3: 2025-01-01 | X3: 2025-02-01 | Y3: 2025-03-01 | Z3: 2025-04-01 | AA3: 2025-05-01 | AB3: 2025-06-01 | AC3: 2025-07-01 | AD3: 2025-08-01 | AE3: 2025-09-01 | AF3: 2025-10-01 | AG3: 2025-11-01 | AH3: 2025-12-01 | AI3: 2026-01-01 | AJ3: 2026-02-01 | AK3: 2026-03-01 | AL3: 2026-04-01 | AM3: 2026-05-01 | AN3: 2026-06-01 | AO3: 2026-07-01 | AP3: 2026-08-01 | AQ3: 2026-09-01 | AR3: 2026-10-01 | AS3: 2026-11-01 | AT3: 2026-12-01 | AU3: 2027-01-01 | AV3: 2027-02-01 | AW3: 2027-03-01 | AX3: 2027-04-01 | AY3: 2027-05-01 | AZ3: 2027-06-01 | BA3: 2027-07-01 | BB3: 2027-08-01 | BC3: 2027-09-01 | BD3: 2027-10-01 | BE3: 2027-11-01 | BF3: 2027-12-01 | BG3: 2028-01-01 | BH3: 2028-02-01 | BI3: 2028-03-01 | BJ3: 2028-04-01 | BK3: 2028-05-01 | BL3: 2028-06-01 | BM3: 2028-07-01 | BN3: 2028-08-01 | BO3: 2028-09-01 | BP3: 2028-10-01 | BQ3: 2028-11-01 | BR3: 2028-12-01 | BS3: 2029-01-01 | BT3: 2029-02-01 | BU3: 2029-03-01 | BV3: 2029-04-01 | BW3: 2029-05-01 | BX3: 2029-06-01 | BY3: =BX4+1 -> 2029-07-01 | BZ3: 2029-08-01 | CA3: 2029-09-01 | CB3: 2029-10-01 | CC3: 2029-11-01 | CD3: 2029-12-01 | CE3: 2030-01-01 | CF3: 2030-02-01 | CG3: 2030-03-01 | CH3: 2030-04-01 | CI3: 2030-05-01 | CJ3: 2030-06-01 | CK3: 2030-07-01 | CL3: 2030-08-01 | CM3: 2030-09-01 | CN3: 2030-10-01 | CO3: 2030-11-01 | CP3: 2030-12-01 | CQ3: 2031-01-01 | CR3: 2031-02-01 | CS3: 2031-03-01 | CT3: 2031-04-01 | CU3: 2031-05-01 | CV3: 2031-06-01 | CW3: 2031-07-01 | CX3: 2031-08-01 | CY3: 2031-09-01 | CZ3: 2031-10-01 | DA3: 2031-11-01 | DB3: 2031-12-01 | DC3: 2032-01-01 | DD3: 2032-02-01 | DE3: 2032-03-01 | DF3: 2032-04-01 | DG3: 2032-05-01 | DH3: 2032-06-01 | DI3: 2032-07-01 | DJ3: 2032-08-01 | DK3: 2032-09-01 | DL3: 2032-10-01 | DM3: 2032-11-01 | DN3: 2032-12-01 | DO3: 2033-01-01 | DP3: 2033-02-01 | DQ3: 2033-03-01 | DR3: 2033-04-01 | DS3: 2033-05-01 | DT3: 2033-06-01 | DU3: 2033-07-01 | DV3: 2033-08-01 | DW3: 2033-09-01 | DX3: 2033-10-01 | DY3: 2033-11-01 | DZ3: 2033-12-01 | EA3: 2034-01-01 | EB3: 2034-02-01 | EC3: 2034-03-01 | ED3: 2034-04-01 | EE3: 2034-05-01 | EF3: 2034-06-01 | EG3: 2034-07-01 | EH3: 2034-08-01 | EI3: 2034-09-01 | EJ3: 2034-10-01 | EK3: =EJ4+1 -> 2034-11-01 | EL3: 2034-12-01 | EM3: 2035-01-01 | EN3: 2035-02-01 | EO3: 2035-03-01 | EP3: 2035-04-01 | EQ3: 2035-05-01 | ER3: 2035-06-01 | ES3: 2035-07-01 | ET3: 2035-08-01 | EU3: 2035-09-01 | EV3: 2035-10-01 | EW3: 2035-11-01 | EX3: 2035-12-01 | EY3: 2036-01-01 | EZ3: 2036-02-01 | FA3: 2036-03-01 | FB3: 2036-04-01 | FC3: 2036-05-01 | FD3: 2036-06-01 | FE3: 2036-07-01 | FF3: 2036-08-01 | FG3: 2036-09-01 | FH3: 2036-10-01 | FI3: 2036-11-01 | FJ3: 2036-12-01 | FK3: 2037-01-01 | FL3: 2037-02-01 | FM3: 2037-03-01 | FN3: 2037-04-01 | FO3: 2037-05-01 | FP3: 2037-06-01 | FQ3: 2037-07-01 | FR3: 2037-08-01 | FS3: 2037-09-01 | FT3: 2037-10-01 | FU3: 2037-11-01 | FV3: 2037-12-01 | FW3: 2038-01-01 | FX3: 2038-02-01 | FY3: 2038-03-01 | FZ3: 2038-04-01 | GA3: 2038-05-01 | GB3: 2038-06-01 | GC3: 2038-07-01 | GD3: 2038-08-01 | GE3: 2038-09-01 | GF3: 2038-10-01 | GG3: 2038-11-01 | GH3: 2038-12-01 | GI3: 2039-01-01 | GJ3: 2039-02-01 | GK3: 2039-03-01 | GL3: 2039-04-01 | GM3: 2039-05-01 | GN3: 2039-06-01 | GO3: 2039-07-01 | GP3: 2039-08-01 | GQ3: 2039-09-01 | GR3: 2039-10-01 | GS3: 2039-11-01 | GT3: 2039-12-01 | GU3: 2040-01-01 | GV3: 2040-02-01 | GW3: =GV4+1 -> 2040-03-01 | GX3: 2040-04-01 | GY3: 2040-05-01 | GZ3: 2040-06-01 | HA3: 2040-07-01 | HB3: 2040-08-01 | HC3: 2040-09-01 | HD3: 2040-10-01 | HE3: 2040-11-01 | HF3: 2040-12-01 | HG3: 2041-01-01 | HH3: 2041-02-01 | HI3: 2041-03-01 | HJ3: 2041-04-01 | HK3: 2041-05-01 | HL3: 2041-06-01 | HM3: 2041-07-01 | HN3: 2041-08-01 | HO3: 2041-09-01 | HP3: 2041-10-01 | HQ3: 2041-11-01 | HR3: 2041-12-01 | HS3: 2042-01-01 | HT3: 2042-02-01 | HU3: 2042-03-01 | HV3: 2042-04-01 | HW3: 2042-05-01 | HX3: 2042-06-01 | HY3: 2042-07-01 | HZ3: 2042-08-01 | IA3: 2042-09-01 | IB3: 2042-10-01 | IC3: 2042-11-01 | ID3: 2042-12-01 | IE3: 2043-01-01 | IF3: 2043-02-01 | IG3: 2043-03-01 | IH3: 2043-04-01 | II3: 2043-05-01 | IJ3: 2043-06-01 | IK3: 2043-07-01 | IL3: 2043-08-01 | IM3: 2043-09-01 | IN3: 2043-10-01 | IO3: 2043-11-01 | IP3: 2043-12-01 | IQ3: 2044-01-01 | IR3: 2044-02-01 | IS3: 2044-03-01 | IT3: 2044-04-01 | IU3: 2044-05-01 | IV3: 2044-06-01 | IW3: 2044-07-01 | IX3: 2044-08-01 | IY3: 2044-09-01 | IZ3: 2044-10-01 | JA3: 2044-11-01 | JB3: 2044-12-01 | JC3: 2045-01-01 | JD3: 2045-02-01 | JE3: 2045-03-01
A4: =SUM(A5:A214) -> 17447.69471 | B4: S/N | C4: Tenant Name | D4: Phase | E4: IT Load (KW) | F4: Rent Start Date (End of month) | G4: Lock-in End Date (End of Month) | H4: Lease End Date (End of month) | I4: Total Rent | J4: ='[4]2b. Lease Schedule (IT Load)1'!I4 -> 2023-12-31 | K4: =EOMONTH(K3, 0) -> 2024-01-31 | L4: =EOMONTH(L3, 0) -> 2024-02-29 | M4: =EOMONTH(M3, 0) -> 2024-03-31 | N4: 2024-04-30 | O4: 2024-05-31 | P4: 2024-06-30 | Q4: 2024-07-31 | R4: 2024-08-31 | S4: 2024-09-30 | T4: 2024-10-31 | U4: 2024-11-30 | V4: 2024-12-31 | W4: 2025-01-31 | X4: 2025-02-28 | Y4: 2025-03-31 | Z4: 2025-04-30 | AA4: 2025-05-31 | AB4: 2025-06-30 | AC4: 2025-07-31 | AD4: 2025-08-31 | AE4: 2025-09-30 | AF4: 2025-10-31 | AG4: 2025-11-30 | AH4: 2025-12-31 | AI4: 2026-01-31 | AJ4: 2026-02-28 | AK4: 2026-03-31 | AL4: 2026-04-30 | AM4: 2026-05-31 | AN4: 2026-06-30 | AO4: 2026-07-31 | AP4: 2026-08-31 | AQ4: 2026-09-30 | AR4: 2026-10-31 | AS4: 2026-11-30 | AT4: 2026-12-31 | AU4: 2027-01-31 | AV4: 2027-02-28 | AW4: 2027-03-31 | AX4: 2027-04-30 | AY4: 2027-05-31 | AZ4: 2027-06-30 | BA4: 2027-07-31 | BB4: 2027-08-31 | BC4: 2027-09-30 | BD4: 2027-10-31 | BE4: 2027-11-30 | BF4: 2027-12-31 | BG4: 2028-01-31 | BH4: 2028-02-29 | BI4: 2028-03-31 | BJ4: 2028-04-30 | BK4: 2028-05-31 | BL4: 2028-06-30 | BM4: 2028-07-31 | BN4: 2028-08-31 | BO4: 2028-09-30 | BP4: 2028-10-31 | BQ4: 2028-11-30 | BR4: 2028-12-31 | BS4: 2029-01-31 | BT4: 2029-02-28 | BU4: 2029-03-31 | BV4: 2029-04-30 | BW4: 2029-05-31 | BX4: 2029-06-30 | BY4: =EOMONTH(BY3, 0) -> 2029-07-31 | BZ4: 2029-08-31 | CA4: 2029-09-30 | CB4: 2029-10-31 | CC4: 2029-11-30 | CD4: 2029-12-31 | CE4: 2030-01-31 | CF4: 2030-02-28 | CG4: 2030-03-31 | CH4: 2030-04-30 | CI4: 2030-05-31 | CJ4: 2030-06-30 | CK4: 2030-07-31 | CL4: 2030-08-31 | CM4: 2030-09-30 | CN4: 2030-10-31 | CO4: 2030-11-30 | CP4: 2030-12-31 | CQ4: 2031-01-31 | CR4: 2031-02-28 | CS4: 2031-03-31 | CT4: 2031-04-30 | CU4: 2031-05-31 | CV4: 2031-06-30 | CW4: 2031-07-31 | CX4: 2031-08-31 | CY4: 2031-09-30 | CZ4: 2031-10-31 | DA4: 2031-11-30 | DB4: 2031-12-31 | DC4: 2032-01-31 | DD4: 2032-02-29 | DE4: 2032-03-31 | DF4: 2032-04-30 | DG4: 2032-05-31 | DH4: 2032-06-30 | DI4: 2032-07-31 | DJ4: 2032-08-31 | DK4: 2032-09-30 | DL4: 2032-10-31 | DM4: 2032-11-30 | DN4: 2032-12-31 | DO4: 2033-01-31 | DP4: 2033-02-28 | DQ4: 2033-03-31 | DR4: 2033-04-30 | DS4: 2033-05-31 | DT4: 2033-06-30 | DU4: 2033-07-31 | DV4: 2033-08-31 | DW4: 2033-09-30 | DX4: 2033-10-31 | DY4: 2033-11-30 | DZ4: 2033-12-31 | EA4: 2034-01-31 | EB4: 2034-02-28 | EC4: 2034-03-31 | ED4: 2034-04-30 | EE4: 2034-05-31 | EF4: 2034-06-30 | EG4: 2034-07-31 | EH4: 2034-08-31 | EI4: 2034-09-30 | EJ4: 2034-10-31 | EK4: =EOMONTH(EK3, 0) -> 2034-11-30 | EL4: =EOMONTH(EL3, 0) -> 2034-12-31 | EM4: =EOMONTH(EM3, 0) -> 2035-01-31 | EN4: =EOMONTH(EN3, 0) -> 2035-02-28 | EO4: =EOMONTH(EO3, 0) -> 2035-03-31 | EP4: 2035-04-30 | EQ4: 2035-05-31 | ER4: 2035-06-30 | ES4: 2035-07-31 | ET4: 2035-08-31 | EU4: 2035-09-30 | EV4: 2035-10-31 | EW4: 2035-11-30 | EX4: 2035-12-31 | EY4: 2036-01-31 | EZ4: 2036-02-29 | FA4: 2036-03-31 | FB4: 2036-04-30 | FC4: 2036-05-31 | FD4: 2036-06-30 | FE4: 2036-07-31 | FF4: 2036-08-31 | FG4: 2036-09-30 | FH4: 2036-10-31 | FI4: 2036-11-30 | FJ4: 2036-12-31 | FK4: 2037-01-31 | FL4: 2037-02-28 | FM4: 2037-03-31 | FN4: 2037-04-30 | FO4: 2037-05-31 | FP4: 2037-06-30 | FQ4: 2037-07-31 | FR4: 2037-08-31 | FS4: 2037-09-30 | FT4: 2037-10-31 | FU4: 2037-11-30 | FV4: 2037-12-31 | FW4: 2038-01-31 | FX4: 2038-02-28 | FY4: 2038-03-31 | FZ4: 2038-04-30 | GA4: 2038-05-31 | GB4: 2038-06-30 | GC4: 2038-07-31 | GD4: 2038-08-31 | GE4: 2038-09-30 | GF4: 2038-10-31 | GG4: 2038-11-30 | GH4: 2038-12-31 | GI4: 2039-01-31 | GJ4: 2039-02-28 | GK4: 2039-03-31 | GL4: 2039-04-30 | GM4: 2039-05-31 | GN4: 2039-06-30 | GO4: 2039-07-31 | GP4: 2039-08-31 | GQ4: 2039-09-30 | GR4: 2039-10-31 | GS4: 2039-11-30 | GT4: 2039-12-31 | GU4: 2040-01-31 | GV4: 2040-02-29 | GW4: 2040-03-31 | GX4: 2040-04-30 | GY4: 2040-05-31 | GZ4: 2040-06-30 | HA4: =EOMONTH(HA3, 0) -> 2040-07-31 | HB4: 2040-08-31 | HC4: 2040-09-30 | HD4: 2040-10-31 | HE4: 2040-11-30 | HF4: 2040-12-31 | HG4: 2041-01-31 | HH4: 2041-02-28 | HI4: 2041-03-31 | HJ4: 2041-04-30 | HK4: 2041-05-31 | HL4: 2041-06-30 | HM4: 2041-07-31 | HN4: 2041-08-31 | HO4: 2041-09-30 | HP4: 2041-10-31 | HQ4: 2041-11-30 | HR4: 2041-12-31 | HS4: 2042-01-31 | HT4: 2042-02-28 | HU4: 2042-03-31 | HV4: 2042-04-30 | HW4: 2042-05-31 | HX4: 2042-06-30 | HY4: 2042-07-31 | HZ4: 2042-08-31 | IA4: 2042-09-30 | IB4: 2042-10-31 | IC4: 2042-11-30 | ID4: 2042-12-31 | IE4: 2043-01-31 | IF4: 2043-02-28 | IG4: 2043-03-31 | IH4: 2043-04-30 | II4: 2043-05-31 | IJ4: 2043-06-30 | IK4: 2043-07-31 | IL4: 2043-08-31 | IM4: 2043-09-30 | IN4: 2043-10-31 | IO4: 2043-11-30 | IP4: 2043-12-31 | IQ4: 2044-01-31 | IR4: 2044-02-29 | IS4: 2044-03-31 | IT4: 2044-04-30 | IU4: 2044-05-31 | IV4: 2044-06-30 | IW4: 2044-07-31 | IX4: 2044-08-31 | IY4: 2044-09-30 | IZ4: 2044-10-31 | JA4: 2044-11-30 | JB4: 2044-12-31 | JC4: 2045-01-31 | JD4: 2045-02-28 | JE4: 2045-03-31
